Inv Transaction,Supplier Name,Headserv Name,Stratdir Name,Account Description,Paid Date,Sum of Inv Amount
460472,Cygnet Healthcare t/a Broughton Lodge,Adult Social Care,Adults,Nursing Home Long Stay Fees,12/05/2023,"106,916.71"
460476,ANCHOR HANOVER GROUP TAS HATTON GRANGE CARE HOME,Adult Social Care,Adults,Nursing Home Long Stay Fees,30/06/2023,"6,997.15"
460476,HARBOUR HEALTHCARE LTD t/a HILLTOP COURT CARE HOME,Adult Social Care,Adults,Nursing Home Long Stay Fees,25/04/2023,"3,556.23"
460479,THE VICARAGE RESIDENTIAL CARE HOME,Adult Social Care,Adults,Nursing Home Long Stay Fees,05/04/2023,"12,345.73"
460480,CARE UK LTD TAS RIVERSIDE CARE CENTRE,Contingency,Contingency,Nursing Home Long Stay Fees,11/04/2023,"53,481.00"
460481,DEVONSHIRE CARE LIMITED TAS CHARNLEY HOUSE,Adult Social Care,Adults,Nursing Home Long Stay Fees,21/04/2023,"35,906.09"
460481,Fairfield View Care Home T/A Fairfield View Ltd (In Administration) T/A Fairfield View,Adult Social Care,Adults,Nursing Home Long Stay Fees,21/04/2023,"59,392.21"
460481,South Yorkshire Housing Association,Adult Social Care,Adults,Nursing Home Long Stay Fees,27/04/2023,"9,810.48"
460481,The Lakes Care Centre T/A Blackcliffe Ltd (In Administration) T/A The Lakes Care Centre,Adult Social Care,Adults,Nursing Home Long Stay Fees,21/04/2023,"104,043.58"
460482,ABBOTSFORD CARE HOME,Adult Social Care,Adults,Nursing Home Long Stay Fees,26/04/2023,"9,560.77"
460482,Achieve Together Limited,Adult Social Care,Adults,Nursing Home Long Stay Fees,26/04/2023,"3,705.94"
460482,Anchor,Adult Social Care,Adults,Nursing Home Long Stay Fees,26/04/2023,"2,428.46"
460482,ANCHOR HANOVER GROUP TAS HATTON GRANGE CARE HOME,Adult Social Care,Adults,Nursing Home Long Stay Fees,30/06/2023,"48,458.89"
460482,ASHGROVE HOUSE CARE LTD,Adult Social Care,Adults,Nursing Home Long Stay Fees,26/04/2023,"2,513.10"
460482,AUDEN HOUSE RESIDENTIAL HOME,Adult Social Care,Adults,Nursing Home Long Stay Fees,26/04/2023,"20,261.55"
460482,Barchester Healthcare t/a Glenroyd Care Home,Adult Social Care,Adults,Nursing Home Long Stay Fees,26/04/2023,"7,693.87"
460482,Beeches t/a Meridian Healthcare LTD,Adult Social Care,Adults,Nursing Home Long Stay Fees,26/04/2023,"52,744.50"
460482,BELMONT PARKHILL LTD,Adult Social Care,Adults,Nursing Home Long Stay Fees,26/04/2023,"50,091.22"
460482,BOWERFIELD COURT,Adult Social Care,Adults,Nursing Home Long Stay Fees,26/04/2023,"10,063.07"
460482,BROOKFIELD RESIDENTIAL CARE HOME,Adult Social Care,Adults,Nursing Home Long Stay Fees,26/04/2023,"2,711.96"
460482,BROOKVALE,Adult Social Care,Adults,Nursing Home Long Stay Fees,26/04/2023,"9,261.68"
460482,CAPSTONE CARE LTD T/A WALSHAW HALL,Adult Social Care,Adults,Nursing Home Long Stay Fees,26/04/2023,"2,240.23"
460482,CARE TECH - ALPHA HOUSE CARE HOME,Adult Social Care,Adults,Nursing Home Long Stay Fees,26/04/2023,"8,536.03"
460482,CARE UK LTD TAS RIVERSIDE CARE CENTRE,Adult Social Care,Adults,Nursing Home Long Stay Fees,26/04/2023,"149,604.52"
460482,Cartwright Care Balmoral Management Ltd,Adult Social Care,Adults,Nursing Home Long Stay Fees,26/04/2023,"30,370.03"
460482,CHERWOOD HOUSE CARE CENTRE,Adult Social Care,Adults,Nursing Home Long Stay Fees,26/04/2023,"2,576.83"
460482,Cheshire Springs Health Care Ltd,Adult Social Care,Adults,Nursing Home Long Stay Fees,26/04/2023,"1,650.93"
460482,Clarence House Care Home,Adult Social Care,Adults,Nursing Home Long Stay Fees,26/04/2023,"11,528.10"
460482,D R Price Associates Limited t/a Chataway Nursing Home,Adult Social Care,Adults,Nursing Home Long Stay Fees,26/04/2023,"3,429.00"
460482,Daisy Nook House t/a Meridian Healthcare LTD,Adult Social Care,Adults,Nursing Home Long Stay Fees,26/04/2023,"41,225.50"
460482,DOMAIN CARE NORTH WEST LTD,Adult Social Care,Adults,Nursing Home Long Stay Fees,26/04/2023,"8,551.16"
460482,DOVES NEST LTD,Adult Social Care,Adults,Nursing Home Long Stay Fees,26/04/2023,"9,487.56"
460482,EAST CHESHIRE HOUSING CONSORTIUM TAS THE COURTYARD,Adult Social Care,Adults,Nursing Home Long Stay Fees,26/04/2023,"3,118.71"
460482,EHC MOSTON GRANGE LTD,Adult Social Care,Adults,Nursing Home Long Stay Fees,26/04/2023,"52,055.70"
460482,Redacted Supplier,Adult Social Care,Adults,Nursing Home Long Stay Fees,26/04/2023,"5,619.89"
460482,Elysium Healthcare,Adult Social Care,Adults,Nursing Home Long Stay Fees,26/04/2023,"15,127.76"
460482,Equilibrium Healthcare Ltd tas Oakland House Nursing Home,Adult Social Care,Adults,Nursing Home Long Stay Fees,26/04/2023,"33,203.13"
460482,FERN BANK THERAPEUTIC COMMUNITY LTD,Adult Social Care,Adults,Nursing Home Long Stay Fees,26/04/2023,"22,746.26"
460482,FIELDER LODGE,Adult Social Care,Adults,Nursing Home Long Stay Fees,26/04/2023,"4,169.87"
460482,FINBROOK LTD t/a BERRYCROFT MANOR,Adult Social Care,Adults,Nursing Home Long Stay Fees,26/04/2023,"2,942.40"
460482,Fir Trees t/a Meridian Healthcare LTD,Adult Social Care,Adults,Nursing Home Long Stay Fees,26/04/2023,"88,566.52"
460482,Greatwood House t/a Meridian Healthcare LTD,Adult Social Care,Adults,Nursing Home Long Stay Fees,26/04/2023,"67,113.34"
460482,HC ONE OF A KIND - KINGS PARK,Adult Social Care,Adults,Nursing Home Long Stay Fees,26/04/2023,"48,544.98"
460482,HC-ONE LIMITED - BROOKDALE VIEW,Adult Social Care,Adults,Nursing Home Long Stay Fees,26/04/2023,"1,393.21"
460482,"HC-ONE LTD, Sunnyside Care Home",Adult Social Care,Adults,Nursing Home Long Stay Fees,26/04/2023,"73,851.30"
460482,HEATHCOTES M LTD,Adult Social Care,Adults,Nursing Home Long Stay Fees,26/04/2023,"26,330.62"
460482,HEATHCOTES THE ROOKERY,Adult Social Care,Adults,Nursing Home Long Stay Fees,26/04/2023,"18,076.58"
460482,HEATON LODGE,Adult Social Care,Adults,Nursing Home Long Stay Fees,26/04/2023,"2,992.63"
460482,HIGHFIELD HOUSE CARE HOME,Adult Social Care,Adults,Nursing Home Long Stay Fees,26/04/2023,"2,455.71"
460482,Holme Lea t/a Meridian Healthcare LTD,Adult Social Care,Adults,Nursing Home Long Stay Fees,26/04/2023,"112,576.64"
460482,HURST HALL CARE HOME LTD,Adult Social Care,Adults,Nursing Home Long Stay Fees,26/04/2023,"74,915.16"
460482,Ideal Carehomes Number One Limited,Adult Social Care,Adults,Nursing Home Long Stay Fees,26/04/2023,"8,729.12"
460482,L & M HEALTHCARE,Adult Social Care,Adults,Nursing Home Long Stay Fees,26/04/2023,"3,826.50"
460482,LAUREL BANK RESIDENTIAL CARE HOME LTD,Adult Social Care,Adults,Nursing Home Long Stay Fees,26/04/2023,"18,531.39"
460482,LONGWOOD LODGE CARE LTD t/a Longwood Lodge Care Home,Adult Social Care,Adults,Nursing Home Long Stay Fees,26/04/2023,"5,402.85"
460482,MARPLE DALE HALL LTD,Adult Social Care,Adults,Nursing Home Long Stay Fees,26/04/2023,"6,203.44"
460482,Masterpalm Properties Ltd,Adult Social Care,Adults,Nursing Home Long Stay Fees,26/04/2023,"11,675.75"
460482,Maypole Health Care Ltd,Adult Social Care,Adults,Nursing Home Long Stay Fees,26/04/2023,"76,684.97"
460482,MBI SOCIAL CARE LTD TAS DOWNSHAW LODGE CARE HOME,Adult Social Care,Adults,Nursing Home Long Stay Fees,26/04/2023,"86,597.98"
460482,MERIDIAN HEALTH CARE LTD TAS GUIDE LANE,Adult Social Care,Adults,Nursing Home Long Stay Fees,26/04/2023,"46,083.22"
460482,Millbrook Care Home t/a Meridian Healthcare LTD,Adult Social Care,Adults,Nursing Home Long Stay Fees,26/04/2023,"27,041.64"
460482,MILLFIELD CARE HOME - QUALIA CARE,Adult Social Care,Adults,Nursing Home Long Stay Fees,26/04/2023,"5,257.94"
460482,MOSS COTTAGE NURSING HOME,Adult Social Care,Adults,Nursing Home Long Stay Fees,26/04/2023,"57,688.99"
460482,National Neurological Services,Adult Social Care,Adults,Nursing Home Long Stay Fees,10/05/2023,"123,110.43"
460482,Next Chapter Healthcare Ltd,Adult Social Care,Adults,Nursing Home Long Stay Fees,26/04/2023,"5,210.79"
460482,Northern Healthcare Limited tas Holland House/Montgomery House,Adult Social Care,Adults,Nursing Home Long Stay Fees,26/04/2023,"14,317.03"
460482,NYMS SERVICES LTD TAS PENNINE CARE CENTRE,Adult Social Care,Adults,Nursing Home Long Stay Fees,26/04/2023,"34,082.02"
460482,OAKDENE CARE HOME T/A OAKDENE CARE HOME LTD,Adult Social Care,Adults,Nursing Home Long Stay Fees,26/04/2023,"3,874.97"
460482,OAKWOOD CARE CENTRE,Adult Social Care,Adults,Nursing Home Long Stay Fees,26/04/2023,"36,311.39"
460482,PARKVIEW CARE HOME,Adult Social Care,Adults,Nursing Home Long Stay Fees,26/04/2023,"6,287.25"
460482,PARTNERSHIP CARING LTD TAS FIRBANK HOUSE NURSING & RESIDENTIAL CARE HOME,Adult Social Care,Adults,Nursing Home Long Stay Fees,26/04/2023,"51,951.34"
460482,POLEBANK HALL RESIDENTIAL CARE HOME LTD,Adult Social Care,Adults,Nursing Home Long Stay Fees,26/04/2023,"14,129.77"
460482,Postgrad Ltd - Treelands Care Home,Adult Social Care,Adults,Nursing Home Long Stay Fees,26/04/2023,"2,932.24"
460482,PROGRESS CARE & EDUCATION LTD,Adult Social Care,Adults,Nursing Home Long Stay Fees,26/04/2023,"16,643.96"
460482,ROEFIELD SPECIALIST CARE LIMITED t/a THISTLE MANOR,Adult Social Care,Adults,Nursing Home Long Stay Fees,26/04/2023,"39,197.58"
460482,Redacted Supplier,Adult Social Care,Adults,Nursing Home Long Stay Fees,26/04/2023,"15,732.69"
460482,ROYAL MASONIC BENEVOLENT INSTITUTION,Adult Social Care,Adults,Nursing Home Long Stay Fees,26/04/2023,"3,001.07"
460482,SALUTEM LD BIDCO IV LIMITED T/A AMBITO CARE AND EDUCATION,Adult Social Care,Adults,Nursing Home Long Stay Fees,26/04/2023,"20,497.75"
460482,Sandon House t/a Meridian Healthcare LTD,Adult Social Care,Adults,Nursing Home Long Stay Fees,26/04/2023,"76,711.56"
460482,SIGN,Adult Social Care,Adults,Nursing Home Long Stay Fees,26/04/2023,"8,096.49"
460482,St Christopher�s Trust,Adult Social Care,Adults,Nursing Home Long Stay Fees,26/04/2023,"6,864.00"
460482,ST GEORGE'S NURSING HOME (OLDHAM) LTD,Adult Social Care,Adults,Nursing Home Long Stay Fees,26/04/2023,"39,854.82"
460482,ST LAWRENCES LODGE,Adult Social Care,Adults,Nursing Home Long Stay Fees,26/04/2023,"16,481.42"
460482,STALEY HOUSE EPH,Adult Social Care,Adults,Nursing Home Long Stay Fees,26/04/2023,"51,630.79"
460482,Stamford Court Nursing t/a Meridian Healthcare LTD,Adult Social Care,Adults,Nursing Home Long Stay Fees,26/04/2023,"70,727.26"
460482,Sun Healthcare T/A Tapton Grove Care Home,Adult Social Care,Adults,Nursing Home Long Stay Fees,26/04/2023,"4,654.54"
460482,SUNNY BANK PRS LTD,Adult Social Care,Adults,Nursing Home Long Stay Fees,26/04/2023,"3,224.96"
460482,Thames House t/a Exemplar Health Care Partnerships LTD,Adult Social Care,Adults,Nursing Home Long Stay Fees,26/04/2023,"28,208.67"
460482,The Coppice Care Home,Adult Social Care,Adults,Nursing Home Long Stay Fees,26/04/2023,"2,684.57"
460482,THE FIRS CARE HOME LTD,Adult Social Care,Adults,Nursing Home Long Stay Fees,26/04/2023,"3,342.86"
460482,THE LIGHT HOUSE (Bloomcare Group),Adult Social Care,Adults,Nursing Home Long Stay Fees,26/04/2023,"25,256.61"
460482,THE ROYAL ELMS CARE HOME,Adult Social Care,Adults,Nursing Home Long Stay Fees,26/04/2023,"5,135.40"
460482,THE SEYMOUR HOME LTD t/a Seymour Care Home,Adult Social Care,Adults,Nursing Home Long Stay Fees,26/04/2023,"2,619.13"
460482,The Sycamores t/a Meridian Health Care LTD,Adult Social Care,Adults,Nursing Home Long Stay Fees,26/04/2023,"84,604.17"
460482,THE VICARAGE RESIDENTIAL CARE HOME,Adult Social Care,Adults,Nursing Home Long Stay Fees,26/04/2023,"23,045.85"
460482,THORNCLIFFE GRANGE NURSING HOME,Adult Social Care,Adults,Nursing Home Long Stay Fees,26/04/2023,"69,048.92"
460482,TREETOPS,Adult Social Care,Adults,Nursing Home Long Stay Fees,26/04/2023,"60,816.37"
460482,Tulsi Homes Ltd T/A Clarkson House (new),Adult Social Care,Adults,Nursing Home Long Stay Fees,26/04/2023,"36,398.55"
460482,VOYAGE CARE LIMITED,Adult Social Care,Adults,Nursing Home Long Stay Fees,26/04/2023,"22,489.41"
460482,Wellington Healthcare (Arden) Ltd t/a Bloomcare,Adult Social Care,Adults,Nursing Home Long Stay Fees,26/04/2023,"5,504.72"
460482,Western Park Leicester Limited t/a Western Park Nursing Home,Adult Social Care,Adults,Nursing Home Long Stay Fees,26/04/2023,"2,875.71"
460482,Yew Trees t/a Meridian Healthcare LTD,Adult Social Care,Adults,Nursing Home Long Stay Fees,26/04/2023,"104,240.09"
460483,DEVONSHIRE CARE LIMITED TAS CHARNLEY HOUSE,Adult Social Care,Adults,Nursing Home Long Stay Fees,24/05/2023,"77,220.46"
460483,The Lakes Care Centre T/A Blackcliffe Ltd (In Administration) T/A The Lakes Care Centre,Adult Social Care,Adults,Nursing Home Long Stay Fees,24/05/2023,"122,300.41"
460484,ABBOTSFORD CARE HOME,Adult Social Care,Adults,Nursing Home Long Stay Fees,26/05/2023,"6,826.22"
460484,Anchor,Adult Social Care,Adults,Nursing Home Long Stay Fees,26/05/2023,"2,840.20"
460484,ANCHOR HANOVER GROUP TAS HATTON GRANGE CARE HOME,Adult Social Care,Adults,Nursing Home Long Stay Fees,30/06/2023,"58,033.64"
460484,Appleton Manor T/A HC One Ltd,Adult Social Care,Adults,Nursing Home Long Stay Fees,26/05/2023,"16,185.96"
460484,ARBOUR COURT,Adult Social Care,Adults,Nursing Home Long Stay Fees,26/05/2023,"30,301.87"
460484,ASHGROVE HOUSE CARE LTD,Adult Social Care,Adults,Nursing Home Long Stay Fees,26/05/2023,"2,939.26"
460484,AUDEN HOUSE RESIDENTIAL HOME,Adult Social Care,Adults,Nursing Home Long Stay Fees,26/05/2023,"41,614.73"
460484,Avery Homes Moston Ltd- Acacia Lodge,Adult Social Care,Adults,Nursing Home Long Stay Fees,26/05/2023,"20,216.90"
460484,Barchester Healthcare t/a Glenroyd Care Home,Adult Social Care,Adults,Nursing Home Long Stay Fees,26/05/2023,"11,381.39"
460484,Beeches t/a Meridian Healthcare LTD,Adult Social Care,Adults,Nursing Home Long Stay Fees,26/05/2023,"66,068.03"
460484,BELMONT PARKHILL LTD,Adult Social Care,Adults,Nursing Home Long Stay Fees,26/05/2023,"63,469.64"
460484,BROOKVALE,Adult Social Care,Adults,Nursing Home Long Stay Fees,26/05/2023,"10,832.23"
460484,BROUGHTON HOUSE HOME FOR  EX-SERVICE PERSONNEL,Adult Social Care,Adults,Nursing Home Long Stay Fees,26/05/2023,"18,201.87"
460484,CAPSTONE CARE LTD T/A WALSHAW HALL,Adult Social Care,Adults,Nursing Home Long Stay Fees,26/05/2023,"2,621.82"
460484,CARE TECH - ALPHA HOUSE CARE HOME,Adult Social Care,Adults,Nursing Home Long Stay Fees,26/05/2023,"9,167.31"
460484,CARE UK LTD TAS RIVERSIDE CARE CENTRE,Adult Social Care,Adults,Nursing Home Long Stay Fees,26/05/2023,"184,806.64"
460484,Cartwright Care Balmoral Management Ltd,Adult Social Care,Adults,Nursing Home Long Stay Fees,26/05/2023,"36,654.78"
460484,CHADDERTON TOTAL CAREUNIT LTD,Adult Social Care,Adults,Nursing Home Long Stay Fees,26/05/2023,"9,921.22"
460484,CHERWOOD HOUSE CARE CENTRE,Adult Social Care,Adults,Nursing Home Long Stay Fees,26/05/2023,905.82
460484,Clarence House Care Home,Adult Social Care,Adults,Nursing Home Long Stay Fees,26/05/2023,"13,482.86"
460484,D R Price Associates Limited t/a Chataway Nursing Home,Adult Social Care,Adults,Nursing Home Long Stay Fees,26/05/2023,"4,010.48"
460484,Daisy Nook House t/a Meridian Healthcare LTD,Adult Social Care,Adults,Nursing Home Long Stay Fees,26/05/2023,"60,987.25"
460484,DOMAIN CARE NORTH WEST LTD,Adult Social Care,Adults,Nursing Home Long Stay Fees,26/05/2023,"8,836.20"
460484,DOVES NEST LTD,Adult Social Care,Adults,Nursing Home Long Stay Fees,26/05/2023,"7,806.01"
460484,EAST CHESHIRE HOUSING CONSORTIUM TAS THE COURTYARD,Adult Social Care,Adults,Nursing Home Long Stay Fees,26/05/2023,"3,647.58"
460484,EHC MOSTON GRANGE LTD,Adult Social Care,Adults,Nursing Home Long Stay Fees,26/05/2023,"49,227.58"
460484,Redacted Supplier,Adult Social Care,Adults,Nursing Home Long Stay Fees,26/05/2023,"6,444.50"
460484,Elysium Healthcare,Adult Social Care,Adults,Nursing Home Long Stay Fees,26/05/2023,"17,692.94"
460484,Equilibrium Healthcare Ltd tas Oakland House Nursing Home,Adult Social Care,Adults,Nursing Home Long Stay Fees,26/05/2023,"37,639.99"
460484,FERN BANK THERAPEUTIC COMMUNITY LTD,Adult Social Care,Adults,Nursing Home Long Stay Fees,26/05/2023,"35,415.88"
460484,FIELDER LODGE,Adult Social Care,Adults,Nursing Home Long Stay Fees,26/05/2023,"4,876.96"
460484,FINBROOK LTD t/a BERRYCROFT MANOR,Adult Social Care,Adults,Nursing Home Long Stay Fees,26/05/2023,"3,441.33"
460484,Fir Trees t/a Meridian Healthcare LTD,Adult Social Care,Adults,Nursing Home Long Stay Fees,26/05/2023,"105,138.52"
460484,Greatwood House t/a Meridian Healthcare LTD,Adult Social Care,Adults,Nursing Home Long Stay Fees,26/05/2023,"94,189.38"
460484,HC One Ltd,Adult Social Care,Adults,Nursing Home Long Stay Fees,26/05/2023,"7,835.42"
460484,HC ONE OF A KIND - KINGS PARK,Adult Social Care,Adults,Nursing Home Long Stay Fees,26/05/2023,"94,985.79"
460484,HC-ONE LIMITED - BROOKDALE VIEW,Adult Social Care,Adults,Nursing Home Long Stay Fees,26/05/2023,"3,577.80"
460484,"HC-ONE LTD, Sunnyside Care Home",Adult Social Care,Adults,Nursing Home Long Stay Fees,26/05/2023,"81,768.50"
460484,HEATHCOTES M LTD,Adult Social Care,Adults,Nursing Home Long Stay Fees,26/05/2023,"33,900.70"
460484,HEATHCOTES THE ROOKERY,Adult Social Care,Adults,Nursing Home Long Stay Fees,26/05/2023,"23,973.78"
460484,HEATON LODGE,Adult Social Care,Adults,Nursing Home Long Stay Fees,26/05/2023,"3,500.04"
460484,Holme Lea t/a Meridian Healthcare LTD,Adult Social Care,Adults,Nursing Home Long Stay Fees,26/05/2023,"120,879.97"
460484,HURST HALL CARE HOME LTD,Adult Social Care,Adults,Nursing Home Long Stay Fees,26/05/2023,"116,929.96"
460484,Ideal Carehomes Number One Limited,Adult Social Care,Adults,Nursing Home Long Stay Fees,26/05/2023,"3,441.33"
460484,L & M HEALTHCARE,Adult Social Care,Adults,Nursing Home Long Stay Fees,26/05/2023,"4,596.40"
460484,LAUREL BANK RESIDENTIAL CARE HOME LTD,Adult Social Care,Adults,Nursing Home Long Stay Fees,26/05/2023,"13,187.47"
460484,LONGWOOD LODGE CARE LTD t/a Longwood Lodge Care Home,Adult Social Care,Adults,Nursing Home Long Stay Fees,26/05/2023,"3,107.71"
460484,MARPLE DALE HALL LTD,Adult Social Care,Adults,Nursing Home Long Stay Fees,26/05/2023,"7,127.06"
460484,Masterpalm Properties Ltd,Adult Social Care,Adults,Nursing Home Long Stay Fees,26/05/2023,"6,715.86"
460484,MBI SOCIAL CARE LTD TAS DOWNSHAW LODGE CARE HOME,Adult Social Care,Adults,Nursing Home Long Stay Fees,26/05/2023,"77,480.95"
460484,MENTAL HEALTHCARE UK LTD,Adult Social Care,Adults,Nursing Home Long Stay Fees,26/05/2023,"278,523.73"
460484,MERIDIAN HEALTH CARE LTD TAS GUIDE LANE,Adult Social Care,Adults,Nursing Home Long Stay Fees,26/05/2023,"65,665.36"
460484,Millbrook Care Home t/a Meridian Healthcare LTD,Adult Social Care,Adults,Nursing Home Long Stay Fees,26/05/2023,"57,801.73"
460484,MILLFIELD CARE HOME - QUALIA CARE,Adult Social Care,Adults,Nursing Home Long Stay Fees,26/05/2023,"3,024.38"
460484,MOSS COTTAGE NURSING HOME,Adult Social Care,Adults,Nursing Home Long Stay Fees,26/05/2023,"131,409.82"
460484,National Neurological Services,Adult Social Care,Adults,Nursing Home Long Stay Fees,26/05/2023,"13,756.60"
460484,Next Chapter Healthcare Ltd,Adult Social Care,Adults,Nursing Home Long Stay Fees,26/05/2023,"10,341.90"
460484,NYMS SERVICES LTD TAS PENNINE CARE CENTRE,Adult Social Care,Adults,Nursing Home Long Stay Fees,26/05/2023,"28,599.09"
460484,OAKDENE CARE HOME T/A OAKDENE CARE HOME LTD,Adult Social Care,Adults,Nursing Home Long Stay Fees,26/05/2023,"4,344.81"
460484,OAKWOOD CARE CENTRE,Adult Social Care,Adults,Nursing Home Long Stay Fees,26/05/2023,"34,434.00"
460484,PARKVIEW CARE HOME,Adult Social Care,Adults,Nursing Home Long Stay Fees,26/05/2023,"4,859.09"
460484,PARTNERSHIP CARING LTD TAS FIRBANK HOUSE NURSING & RESIDENTIAL CARE HOME,Adult Social Care,Adults,Nursing Home Long Stay Fees,26/05/2023,"90,652.60"
460484,Pendlebury Care Homes Ltd tas Regency Hall Care Home,Adult Social Care,Adults,Nursing Home Long Stay Fees,26/05/2023,"10,427.07"
460484,POLEBANK HALL RESIDENTIAL CARE HOME LTD,Adult Social Care,Adults,Nursing Home Long Stay Fees,26/05/2023,"31,023.34"
460484,Postgrad Ltd - Treelands Care Home,Adult Social Care,Adults,Nursing Home Long Stay Fees,26/05/2023,"3,429.45"
460484,ROEFIELD SPECIALIST CARE LIMITED t/a THISTLE MANOR,Adult Social Care,Adults,Nursing Home Long Stay Fees,26/05/2023,"40,819.87"
460484,Redacted Supplier,Adult Social Care,Adults,Nursing Home Long Stay Fees,26/05/2023,"18,400.39"
460484,ROYAL MASONIC BENEVOLENT INSTITUTION,Adult Social Care,Adults,Nursing Home Long Stay Fees,26/05/2023,"3,509.99"
460484,SALUTEM LD BIDCO IV LIMITED T/A AMBITO CARE AND EDUCATION,Adult Social Care,Adults,Nursing Home Long Stay Fees,26/05/2023,"11,790.26"
460484,Sandon House t/a Meridian Healthcare LTD,Adult Social Care,Adults,Nursing Home Long Stay Fees,26/05/2023,"61,492.61"
460484,SIGN,Adult Social Care,Adults,Nursing Home Long Stay Fees,26/05/2023,"13,556.86"
460484,St Christopher�s Trust,Adult Social Care,Adults,Nursing Home Long Stay Fees,26/05/2023,"4,631.50"
460484,ST GEORGE'S NURSING HOME (OLDHAM) LTD,Adult Social Care,Adults,Nursing Home Long Stay Fees,26/05/2023,"53,114.97"
460484,ST LAWRENCES LODGE,Adult Social Care,Adults,Nursing Home Long Stay Fees,26/05/2023,"23,320.04"
460484,STALEY HOUSE EPH,Adult Social Care,Adults,Nursing Home Long Stay Fees,26/05/2023,"53,868.08"
460484,Stamford Court Nursing t/a Meridian Healthcare LTD,Adult Social Care,Adults,Nursing Home Long Stay Fees,26/05/2023,"102,311.71"
460484,Sun Healthcare T/A Tapton Grove Care Home,Adult Social Care,Adults,Nursing Home Long Stay Fees,26/05/2023,"5,443.83"
460484,SUNNY BANK PRS LTD,Adult Social Care,Adults,Nursing Home Long Stay Fees,26/05/2023,"3,771.83"
460484,Thames House t/a Exemplar Health Care Partnerships LTD,Adult Social Care,Adults,Nursing Home Long Stay Fees,26/05/2023,"16,225.50"
460484,THE LIGHT HOUSE (Bloomcare Group),Adult Social Care,Adults,Nursing Home Long Stay Fees,26/05/2023,"40,323.86"
460484,THE ROYAL ELMS CARE HOME,Adult Social Care,Adults,Nursing Home Long Stay Fees,26/05/2023,"6,014.02"
460484,THE SEYMOUR HOME LTD t/a Seymour Care Home,Adult Social Care,Adults,Nursing Home Long Stay Fees,26/05/2023,"2,887.78"
460484,The Sycamores t/a Meridian Health Care LTD,Adult Social Care,Adults,Nursing Home Long Stay Fees,26/05/2023,"101,534.25"
460484,THE VICARAGE RESIDENTIAL CARE HOME,Adult Social Care,Adults,Nursing Home Long Stay Fees,26/05/2023,"32,743.56"
460484,THORNCLIFFE GRANGE NURSING HOME,Adult Social Care,Adults,Nursing Home Long Stay Fees,26/05/2023,"104,325.38"
460484,TRACS Limited,Adult Social Care,Adults,Nursing Home Long Stay Fees,26/05/2023,"23,493.72"
460484,TREETOPS,Adult Social Care,Adults,Nursing Home Long Stay Fees,26/05/2023,"89,453.29"
460484,Tulsi Homes Ltd T/A Clarkson House (new),Adult Social Care,Adults,Nursing Home Long Stay Fees,26/05/2023,"38,249.85"
460484,VOYAGE CARE LIMITED,Adult Social Care,Adults,Nursing Home Long Stay Fees,26/05/2023,"24,545.68"
460484,Wellington Healthcare (Arden) Ltd t/a Bloomcare,Adult Social Care,Adults,Nursing Home Long Stay Fees,26/05/2023,"3,166.27"
460484,Western Park Leicester Limited t/a Western Park Nursing Home,Adult Social Care,Adults,Nursing Home Long Stay Fees,26/05/2023,"3,363.41"
460484,Yew Trees t/a Meridian Healthcare LTD,Adult Social Care,Adults,Nursing Home Long Stay Fees,26/05/2023,"111,737.92"
460485,DIWALI LTD T/A DIWALI NIVAS,Adult Social Care,Adults,Nursing Home Long Stay Fees,15/06/2023,"10,043.43"
460486,DEVONSHIRE CARE LIMITED TAS CHARNLEY HOUSE,Adult Social Care,Adults,Nursing Home Long Stay Fees,22/06/2023,"49,843.05"
460486,Fairfield View Care Home T/A Fairfield View Ltd (In Administration) T/A Fairfield View,Adult Social Care,Adults,Nursing Home Long Stay Fees,22/06/2023,"84,156.32"
460486,The Lakes Care Centre T/A Blackcliffe Ltd (In Administration) T/A The Lakes Care Centre,Adult Social Care,Adults,Nursing Home Long Stay Fees,22/06/2023,"99,976.52"
460487,Achieve Together Limited,Adult Social Care,Adults,Nursing Home Long Stay Fees,28/06/2023,"8,288.63"
460487,Advinia Care Homes Ltd,Adult Social Care,Adults,Nursing Home Long Stay Fees,28/06/2023,"11,244.72"
460487,ANCHOR HANOVER GROUP TAS HATTON GRANGE CARE HOME,Adult Social Care,Adults,Nursing Home Long Stay Fees,30/06/2023,"60,190.40"
460487,Appleton Manor T/A HC One Ltd,Adult Social Care,Adults,Nursing Home Long Stay Fees,28/06/2023,"13,558.53"
460487,ASHGROVE HOUSE CARE LTD,Adult Social Care,Adults,Nursing Home Long Stay Fees,28/06/2023,"2,681.49"
460487,AUDEN HOUSE RESIDENTIAL HOME,Adult Social Care,Adults,Nursing Home Long Stay Fees,28/06/2023,"19,581.41"
460487,Avery Homes Moston Ltd- Acacia Lodge,Adult Social Care,Adults,Nursing Home Long Stay Fees,28/06/2023,"5,290.89"
460487,Barchester Healthcare t/a Glenroyd Care Home,Adult Social Care,Adults,Nursing Home Long Stay Fees,28/06/2023,"7,023.34"
460487,Beeches t/a Meridian Healthcare LTD,Adult Social Care,Adults,Nursing Home Long Stay Fees,28/06/2023,"56,130.08"
460487,BELMONT PARKHILL LTD,Adult Social Care,Adults,Nursing Home Long Stay Fees,28/06/2023,"53,540.00"
460487,BOWERFIELD COURT,Adult Social Care,Adults,Nursing Home Long Stay Fees,28/06/2023,"22,506.74"
460487,BROOKFIELD RESIDENTIAL CARE HOME,Adult Social Care,Adults,Nursing Home Long Stay Fees,28/06/2023,"6,065.51"
460487,BROOKVALE,Adult Social Care,Adults,Nursing Home Long Stay Fees,28/06/2023,"9,882.25"
460487,BROWNLOW HOUSE RESIDENTIAL CARE,Adult Social Care,Adults,Nursing Home Long Stay Fees,28/06/2023,"27,382.48"
460487,CAPSTONE CARE LTD T/A WALSHAW HALL,Adult Social Care,Adults,Nursing Home Long Stay Fees,28/06/2023,"2,391.17"
460487,CARE TECH - ALPHA HOUSE CARE HOME,Adult Social Care,Adults,Nursing Home Long Stay Fees,28/06/2023,"8,706.56"
460487,CARE UK LTD TAS RIVERSIDE CARE CENTRE,Adult Social Care,Adults,Nursing Home Long Stay Fees,28/06/2023,"143,689.53"
460487,Cartwright Care Balmoral Management Ltd,Adult Social Care,Adults,Nursing Home Long Stay Fees,28/06/2023,"29,878.29"
460487,Clarence House Care Home,Adult Social Care,Adults,Nursing Home Long Stay Fees,28/06/2023,"12,300.47"
460487,Cygnet Healthcare t/a Broughton Lodge,Adult Social Care,Adults,Nursing Home Long Stay Fees,28/06/2023,"110,694.16"
460487,CYGNET LEARNING DISABILITIES LTD,Adult Social Care,Adults,Nursing Home Long Stay Fees,28/06/2023,"55,569.64"
460487,D R Price Associates Limited t/a Chataway Nursing Home,Adult Social Care,Adults,Nursing Home Long Stay Fees,28/06/2023,"3,658.76"
460487,Daisy Nook House t/a Meridian Healthcare LTD,Adult Social Care,Adults,Nursing Home Long Stay Fees,28/06/2023,"54,734.61"
460487,Dalesview Partnership Limited,Adult Social Care,Adults,Nursing Home Long Stay Fees,28/06/2023,"45,172.66"
460487,DOMAIN CARE NORTH WEST LTD,Adult Social Care,Adults,Nursing Home Long Stay Fees,28/06/2023,"8,551.15"
460487,DOVES NEST LTD,Adult Social Care,Adults,Nursing Home Long Stay Fees,28/06/2023,"3,967.16"
460487,EAST CHESHIRE HOUSING CONSORTIUM TAS THE COURTYARD,Adult Social Care,Adults,Nursing Home Long Stay Fees,28/06/2023,"3,327.69"
460487,Elysium Healthcare,Adult Social Care,Adults,Nursing Home Long Stay Fees,28/06/2023,"16,141.33"
460487,FERN BANK THERAPEUTIC COMMUNITY LTD,Adult Social Care,Adults,Nursing Home Long Stay Fees,28/06/2023,"30,900.97"
460487,FIELDER LODGE,Adult Social Care,Adults,Nursing Home Long Stay Fees,28/06/2023,"4,449.26"
460487,FINBROOK LTD t/a BERRYCROFT MANOR,Adult Social Care,Adults,Nursing Home Long Stay Fees,28/06/2023,"3,139.54"
460487,Fir Trees t/a Meridian Healthcare LTD,Adult Social Care,Adults,Nursing Home Long Stay Fees,28/06/2023,"78,603.35"
460487,FRANCIS HOUSE FAMILIES LTD,Adult Social Care,Adults,Nursing Home Long Stay Fees,28/06/2023,"22,100.00"
460487,Greatwood House t/a Meridian Healthcare LTD,Adult Social Care,Adults,Nursing Home Long Stay Fees,28/06/2023,"77,991.60"
460487,HC ONE OF A KIND - KINGS PARK,Adult Social Care,Adults,Nursing Home Long Stay Fees,28/06/2023,"71,444.00"
460487,HC-ONE LIMITED - BROOKDALE VIEW,Adult Social Care,Adults,Nursing Home Long Stay Fees,28/06/2023,"3,089.96"
460487,"HC-ONE LTD, Sunnyside Care Home",Adult Social Care,Adults,Nursing Home Long Stay Fees,28/06/2023,"80,403.09"
460487,HEATON LODGE,Adult Social Care,Adults,Nursing Home Long Stay Fees,28/06/2023,"3,193.11"
460487,HIGHFIELD HOUSE CARE HOME,Adult Social Care,Adults,Nursing Home Long Stay Fees,28/06/2023,"5,492.36"
460487,Holme Lea t/a Meridian Healthcare LTD,Adult Social Care,Adults,Nursing Home Long Stay Fees,28/06/2023,"104,438.07"
460487,HURST HALL CARE HOME LTD,Adult Social Care,Adults,Nursing Home Long Stay Fees,28/06/2023,"97,798.54"
460487,Ideal Carehomes Number One Limited,Adult Social Care,Adults,Nursing Home Long Stay Fees,28/06/2023,"3,139.54"
460487,JVT CARE HOMES LTD T/A WATFORD HOUSE CARE HOME,Adult Social Care,Adults,Nursing Home Long Stay Fees,28/06/2023,"9,145.89"
460487,LAUREL BANK RESIDENTIAL CARE HOME LTD,Adult Social Care,Adults,Nursing Home Long Stay Fees,28/06/2023,"12,042.29"
460487,LEONARD CHESHIRE DISABILITY,Adult Social Care,Adults,Nursing Home Long Stay Fees,28/06/2023,"39,173.68"
460487,LONGWOOD LODGE CARE LTD t/a Longwood Lodge Care Home,Adult Social Care,Adults,Nursing Home Long Stay Fees,28/06/2023,"2,835.17"
460487,MARPLE DALE HALL LTD,Adult Social Care,Adults,Nursing Home Long Stay Fees,28/06/2023,"4,264.72"
460487,Masterpalm Properties Ltd,Adult Social Care,Adults,Nursing Home Long Stay Fees,28/06/2023,"6,126.90"
460487,Maypole Health Care Ltd,Adult Social Care,Adults,Nursing Home Long Stay Fees,28/06/2023,"25,471.86"
460487,MBI SOCIAL CARE LTD TAS DOWNSHAW LODGE CARE HOME,Adult Social Care,Adults,Nursing Home Long Stay Fees,28/06/2023,"75,446.49"
460487,MERIDIAN HEALTH CARE LTD TAS GUIDE LANE,Adult Social Care,Adults,Nursing Home Long Stay Fees,28/06/2023,"57,249.76"
460487,Millbrook Care Home t/a Meridian Healthcare LTD,Adult Social Care,Adults,Nursing Home Long Stay Fees,28/06/2023,"37,448.73"
460487,MILLFIELD CARE HOME - QUALIA CARE,Adult Social Care,Adults,Nursing Home Long Stay Fees,28/06/2023,"2,759.14"
460487,MOSS COTTAGE NURSING HOME,Adult Social Care,Adults,Nursing Home Long Stay Fees,28/06/2023,"32,563.99"
460487,National Neurological Services,Adult Social Care,Adults,Nursing Home Long Stay Fees,28/06/2023,"12,550.20"
460487,Newlands t/a HC-ONE LTD,Adult Social Care,Adults,Nursing Home Long Stay Fees,28/06/2023,"1,019.75"
460487,Next Chapter Healthcare Ltd,Adult Social Care,Adults,Nursing Home Long Stay Fees,28/06/2023,"5,559.90"
460487,NYMS SERVICES LTD TAS PENNINE CARE CENTRE,Adult Social Care,Adults,Nursing Home Long Stay Fees,28/06/2023,"42,842.43"
460487,OAKDENE CARE HOME T/A OAKDENE CARE HOME LTD,Adult Social Care,Adults,Nursing Home Long Stay Fees,28/06/2023,"4,071.51"
460487,OAKWOOD CARE CENTRE,Adult Social Care,Adults,Nursing Home Long Stay Fees,28/06/2023,"45,982.08"
460487,PARKVIEW CARE HOME,Adult Social Care,Adults,Nursing Home Long Stay Fees,28/06/2023,"3,250.20"
460487,PARTNERSHIP CARING LTD TAS FIRBANK HOUSE NURSING & RESIDENTIAL CARE HOME,Adult Social Care,Adults,Nursing Home Long Stay Fees,28/06/2023,"72,094.60"
460487,Pendlebury Care Homes Ltd tas Regency Hall Care Home,Adult Social Care,Adults,Nursing Home Long Stay Fees,28/06/2023,"17,617.81"
460487,POLEBANK HALL RESIDENTIAL CARE HOME LTD,Adult Social Care,Adults,Nursing Home Long Stay Fees,28/06/2023,"26,341.87"
460487,Postgrad Ltd - Treelands Care Home,Adult Social Care,Adults,Nursing Home Long Stay Fees,28/06/2023,"3,128.70"
460487,PROGRESS CARE & EDUCATION LTD,Adult Social Care,Adults,Nursing Home Long Stay Fees,28/06/2023,"37,225.31"
460487,ROEFIELD SPECIALIST CARE LIMITED t/a THISTLE MANOR,Adult Social Care,Adults,Nursing Home Long Stay Fees,28/06/2023,"39,503.10"
460487,Redacted Supplier,Adult Social Care,Adults,Nursing Home Long Stay Fees,28/06/2023,"16,786.76"
460487,ROYAL MASONIC BENEVOLENT INSTITUTION,Adult Social Care,Adults,Nursing Home Long Stay Fees,28/06/2023,"3,202.16"
460487,SALUTEM LD BIDCO IV LIMITED T/A AMBITO CARE AND EDUCATION,Adult Social Care,Adults,Nursing Home Long Stay Fees,28/06/2023,"10,756.29"
460487,Sandon House t/a Meridian Healthcare LTD,Adult Social Care,Adults,Nursing Home Long Stay Fees,28/06/2023,"67,388.29"
460487,South Yorkshire Housing Association,Adult Social Care,Adults,Nursing Home Long Stay Fees,28/06/2023,"7,811.61"
460487,SPINAL UNIT ACTION GROUP,Adult Social Care,Adults,Nursing Home Long Stay Fees,28/06/2023,"15,197.00"
460487,St Christopher�s Trust,Adult Social Care,Adults,Nursing Home Long Stay Fees,28/06/2023,"4,225.33"
460487,ST GEORGE'S NURSING HOME (OLDHAM) LTD,Adult Social Care,Adults,Nursing Home Long Stay Fees,28/06/2023,"67,876.39"
460487,ST LAWRENCES LODGE,Adult Social Care,Adults,Nursing Home Long Stay Fees,28/06/2023,"21,308.68"
460487,STALEY HOUSE EPH,Adult Social Care,Adults,Nursing Home Long Stay Fees,28/06/2023,"53,735.01"
460487,Stamford Court Nursing t/a Meridian Healthcare LTD,Adult Social Care,Adults,Nursing Home Long Stay Fees,28/06/2023,"71,301.20"
460487,Sun Healthcare T/A Tapton Grove Care Home,Adult Social Care,Adults,Nursing Home Long Stay Fees,28/06/2023,"4,966.41"
460487,SUNNY BANK PRS LTD,Adult Social Care,Adults,Nursing Home Long Stay Fees,28/06/2023,"3,441.04"
460487,THE JOSEPH COX CHARITY,Adult Social Care,Adults,Nursing Home Long Stay Fees,28/06/2023,"40,437.61"
460487,THE LIGHT HOUSE (Bloomcare Group),Adult Social Care,Adults,Nursing Home Long Stay Fees,28/06/2023,"23,213.80"
460487,THE ROYAL ELMS CARE HOME,Adult Social Care,Adults,Nursing Home Long Stay Fees,28/06/2023,"5,483.32"
460487,THE SEYMOUR HOME LTD t/a Seymour Care Home,Adult Social Care,Adults,Nursing Home Long Stay Fees,28/06/2023,"2,794.63"
460487,The Sycamores t/a Meridian Health Care LTD,Adult Social Care,Adults,Nursing Home Long Stay Fees,28/06/2023,"111,380.43"
460487,THE VICARAGE RESIDENTIAL CARE HOME,Adult Social Care,Adults,Nursing Home Long Stay Fees,28/06/2023,"21,192.42"
460487,THORNCLIFFE GRANGE NURSING HOME,Adult Social Care,Adults,Nursing Home Long Stay Fees,28/06/2023,"99,056.24"
460487,TRACS Limited,Adult Social Care,Adults,Nursing Home Long Stay Fees,28/06/2023,"11,554.29"
460487,TREETOPS,Adult Social Care,Adults,Nursing Home Long Stay Fees,28/06/2023,"106,238.34"
460487,Tulsi Homes Ltd T/A Clarkson House (new),Adult Social Care,Adults,Nursing Home Long Stay Fees,28/06/2023,"40,939.08"
460487,Wellington Healthcare (Arden) Ltd t/a Bloomcare,Adult Social Care,Adults,Nursing Home Long Stay Fees,28/06/2023,"2,888.61"
460487,Western Park Leicester Limited t/a Western Park Nursing Home,Adult Social Care,Adults,Nursing Home Long Stay Fees,28/06/2023,"3,068.44"
460487,Woodrow House ( Cygnet Healthcare),Adult Social Care,Adults,Nursing Home Long Stay Fees,28/06/2023,"246,536.54"
460487,Yew Trees t/a Meridian Healthcare LTD,Adult Social Care,Adults,Nursing Home Long Stay Fees,28/06/2023,"93,802.07"
471004,AGGREGATE INDUSTRIES UK LIMITED,Operations and Neighbourhoods,Operations and Neighbourhoods,General Materials,12/04/2023,"4,707.23"
471004,CASTINGS SERVICES LTD,Civil Engineers,Director of Place,Debits Goods Received,12/04/2023,525
471004,CASTINGS SERVICES LTD,Operations and Neighbourhoods,Operations and Neighbourhoods,General Materials,12/04/2023,105
471004,COLAS LTD,Operations and Neighbourhoods,Operations and Neighbourhoods,General Materials,12/04/2023,663.84
471004,KEN TAYLOR SUPPLIES LTD,Operations and Neighbourhoods,Operations and Neighbourhoods,General Materials,12/04/2023,943.75
471004,MALLATITE LTD,Civil Engineers,Director of Place,Debits Goods Received,12/04/2023,"48,424.00"
471004,TARMAC CENTRAL LIMITED,Operations and Neighbourhoods,Operations and Neighbourhoods,General Materials,12/04/2023,"3,620.62"
471004,WOLSELEY UK LTD,Civil Engineers,Director of Place,Debits Goods Received,12/04/2023,455.48
471004,WOLSELEY UK LTD,Operations and Neighbourhoods,Operations and Neighbourhoods,General Materials,12/04/2023,215.82
471005,ALTITUDE SERVICES,Operations and Neighbourhoods,Operations and Neighbourhoods,General Materials,17/04/2023,551.03
471005,ALTITUDE SERVICES,Operations and Neighbourhoods,Operations and Neighbourhoods,Sub-contractor Services,17/04/2023,"16,877.63"
471005,EAGLE CIVIL ENGINEERING LTD,Operations and Neighbourhoods,Operations and Neighbourhoods,General Materials,17/04/2023,"10,433.50"
471005,EAGLE CIVIL ENGINEERING LTD,Operations and Neighbourhoods,Operations and Neighbourhoods,Sub-contractor Services,17/04/2023,"27,715.17"
471005,ELECTRICITY NORTH WEST LTD,Operations and Neighbourhoods,Operations and Neighbourhoods,Sub-contractor Services,17/04/2023,587.52
471005,NORTHWEST UTILITY SOLUTIONS LTD,Operations and Neighbourhoods,Operations and Neighbourhoods,General Materials,17/04/2023,300
471005,NORTHWEST UTILITY SOLUTIONS LTD,Operations and Neighbourhoods,Operations and Neighbourhoods,Sub-contractor Services,17/04/2023,"7,350.00"
471005,PG FABRICATIONS,Multiple Heads of Service,Multiple Strategic Directorates,Tax Retained Sub Contractors,17/04/2023,-90.4
471005,PG FABRICATIONS,Operations and Neighbourhoods,Operations and Neighbourhoods,Sub-contractor Services,17/04/2023,"1,060.00"
471005,TRAFFIC DIRECT LTD,Operations and Neighbourhoods,Operations and Neighbourhoods,Sub-contractor Services,17/04/2023,"15,639.00"
471005,UBU ENVIRONMENTAL LTD,Operations and Neighbourhoods,Operations and Neighbourhoods,Sub-contractor Services,17/04/2023,"1,822.50"
471006,3B TRAINING LIMITED,Operations and Neighbourhoods,Operations and Neighbourhoods,General Materials,24/04/2023,628
471006,ABBEY INDUSTRIAL SOLUTIONS LTD,Operations and Neighbourhoods,Operations and Neighbourhoods,Sub-contractor Services,24/04/2023,572.32
471006,AGGREGATE INDUSTRIES UK LIMITED,Operations and Neighbourhoods,Operations and Neighbourhoods,General Materials,24/04/2023,"4,437.72"
471006,BRIDGE ELECTRICALSUPPLIES LTD,Civil Engineers,Director of Place,Debits Goods Received,24/04/2023,"1,395.00"
471006,BROXAP LIMITED,Operations and Neighbourhoods,Operations and Neighbourhoods,General Materials,24/04/2023,"1,049.00"
471006,EAGLE CIVIL ENGINEERING LTD,Operations and Neighbourhoods,Operations and Neighbourhoods,General Materials,24/04/2023,"2,270.07"
471006,INSTARMAC GROUP PLC,Civil Engineers,Director of Place,Debits Goods Received,24/04/2023,747.76
471006,KEN TAYLOR SUPPLIES LTD,Civil Engineers,Director of Place,Debits Goods Received,24/04/2023,189.5
471006,KEN TAYLOR SUPPLIES LTD,Operations and Neighbourhoods,Operations and Neighbourhoods,General Materials,24/04/2023,"1,005.00"
471006,MARCHINGTON STONE,Operations and Neighbourhoods,Operations and Neighbourhoods,General Materials,24/04/2023,"1,890.93"
471006,NORTHWEST UTILITY SOLUTIONS LTD,Operations and Neighbourhoods,Operations and Neighbourhoods,General Materials,24/04/2023,600
471006,NORTHWEST UTILITY SOLUTIONS LTD,Operations and Neighbourhoods,Operations and Neighbourhoods,Sub-contractor Services,24/04/2023,"6,300.00"
471006,ROWAN ASHWORTH LIMITED,Operations and Neighbourhoods,Operations and Neighbourhoods,Sub-contractor Services,24/04/2023,"9,060.00"
471006,TARMAC CENTRAL LIMITED,Operations and Neighbourhoods,Operations and Neighbourhoods,General Materials,24/04/2023,"2,651.03"
471006,TOTALLY LOCAL COMPANY LIMITED,Operations and Neighbourhoods,Operations and Neighbourhoods,Tipping Facility Fees,24/04/2023,975
471006,TRAFFIC DIRECT LTD,Operations and Neighbourhoods,Operations and Neighbourhoods,Sub-contractor Services,24/04/2023,"15,195.00"
471006,TRAFFIC DIRECT LTD,(blank),(blank),Traffic Signs,24/04/2023,"4,630.00"
471006,UBU ENVIRONMENTAL LTD,Operations and Neighbourhoods,Operations and Neighbourhoods,Sub-contractor Services,24/04/2023,"3,217.50"
471006,WOTMIX LIMITED,Operations and Neighbourhoods,Operations and Neighbourhoods,General Materials,24/04/2023,510
471007,ABBEY INDUSTRIAL SOLUTIONS LTD,Operations and Neighbourhoods,Operations and Neighbourhoods,General Materials,02/05/2023,"1,795.71"
471007,ABBEY INDUSTRIAL SOLUTIONS LTD,Operations and Neighbourhoods,Operations and Neighbourhoods,Sub-contractor Services,02/05/2023,367.45
471007,Dynamic Response (Noise and Vibration Consultants) Ltd,Operations and Neighbourhoods,Operations and Neighbourhoods,General Materials,02/05/2023,725
471007,Holroyds Skip Hire Limited,Operations and Neighbourhoods,Operations and Neighbourhoods,General Materials,02/05/2023,"1,500.00"
471007,NORTHWEST UTILITY SOLUTIONS LTD,Operations and Neighbourhoods,Operations and Neighbourhoods,Sub-contractor Services,02/05/2023,"7,875.00"
471007,REACTEC LIMITED,Operations and Neighbourhoods,Operations and Neighbourhoods,General Materials,02/05/2023,"9,990.17"
471007,ROWAN ASHWORTH LIMITED,Operations and Neighbourhoods,Operations and Neighbourhoods,Sub-contractor Services,02/05/2023,960
471007,Saint-Gobain Building Distribution Limited t/a Benchmark Building Supplies,Civil Engineers,Director of Place,Debits Goods Received,02/05/2023,"1,224.00"
471008,AGGREGATE INDUSTRIES UK LIMITED,Operations and Neighbourhoods,Operations and Neighbourhoods,General Materials,05/05/2023,"3,147.89"
471008,EAGLE CIVIL ENGINEERING LTD,Operations and Neighbourhoods,Operations and Neighbourhoods,Sub-contractor Services,05/05/2023,999.18
471008,ENVIRONMENT AGENCY,Operations and Neighbourhoods,Operations and Neighbourhoods,General Materials,05/05/2023,"3,960.55"
471008,P F CUSACK LTD,Civil Engineers,Director of Place,Debits Goods Received,05/05/2023,"1,050.00"
471008,Professional Quality Management Services Limited,Operations and Neighbourhoods,Operations and Neighbourhoods,Training Course Costs,05/05/2023,"3,245.50"
471008,TARMAC CENTRAL LIMITED,Operations and Neighbourhoods,Operations and Neighbourhoods,General Materials,05/05/2023,"11,974.68"
471008,Vertical Access Ltd,Operations and Neighbourhoods,Operations and Neighbourhoods,Sub-contractor Services,05/05/2023,"3,350.00"
471009,4WAY CONSULTING LTD,Operations and Neighbourhoods,Operations and Neighbourhoods,Engineers Recharge - Reactive Works (Internal),15/05/2023,"1,946.70"
471009,AGGREGATE INDUSTRIES UK LIMITED,Operations and Neighbourhoods,Operations and Neighbourhoods,General Materials,15/05/2023,"3,161.26"
471009,ALTITUDE SERVICES,Operations and Neighbourhoods,Operations and Neighbourhoods,General Materials,15/05/2023,"8,872.49"
471009,ALTITUDE SERVICES,Operations and Neighbourhoods,Operations and Neighbourhoods,Sub-contractor Services,15/05/2023,"1,848.20"
471009,ELECTRICITY NORTH WEST LTD,Operations and Neighbourhoods,Operations and Neighbourhoods,Sub-contractor Services,15/05/2023,"1,534.72"
471009,KEN TAYLOR SUPPLIES LTD,Operations and Neighbourhoods,Operations and Neighbourhoods,General Materials,15/05/2023,608
471009,MARCHINGTON STONE,Operations and Neighbourhoods,Operations and Neighbourhoods,General Materials,15/05/2023,769.44
471009,NORTHWEST UTILITY SOLUTIONS LTD,Operations and Neighbourhoods,Operations and Neighbourhoods,Sub-contractor Services,15/05/2023,"29,325.00"
471009,Saint-Gobain Building Distribution Limited t/a Benchmark Building Supplies,Civil Engineers,Director of Place,Debits Goods Received,15/05/2023,"2,862.40"
471009,Saint-Gobain Building Distribution Limited t/a Benchmark Building Supplies,Operations and Neighbourhoods,Operations and Neighbourhoods,General Materials,15/05/2023,43.46
471009,TARMAC CENTRAL LIMITED,Operations and Neighbourhoods,Operations and Neighbourhoods,General Materials,15/05/2023,"4,407.52"
471009,UBU ENVIRONMENTAL LTD,Operations and Neighbourhoods,Operations and Neighbourhoods,Sub-contractor Services,15/05/2023,"1,350.00"
471010,AGGREGATE INDUSTRIES UK LIMITED,Operations and Neighbourhoods,Operations and Neighbourhoods,General Materials,22/05/2023,"8,000.69"
471010,ALTITUDE SERVICES,Operations and Neighbourhoods,Operations and Neighbourhoods,Sub-contractor Services,22/05/2023,"31,678.40"
471010,ARCO LIMITED,Operations and Neighbourhoods,Operations and Neighbourhoods,General Materials,22/05/2023,607.22
471010,BRAMHALL SURFACING LTD,Operations and Neighbourhoods,Operations and Neighbourhoods,Sub-contractor Services,22/05/2023,"8,750.00"
471010,BROXAP LIMITED,Operations and Neighbourhoods,Operations and Neighbourhoods,General Materials,22/05/2023,"7,923.00"
471010,DIAMOND DECORATORS UK LTD,Operations and Neighbourhoods,Operations and Neighbourhoods,Sub-contractor Services,22/05/2023,"4,189.29"
471010,EAGLE CIVIL ENGINEERING LTD,Operations and Neighbourhoods,Operations and Neighbourhoods,General Materials,22/05/2023,"5,984.07"
471010,EAGLE CIVIL ENGINEERING LTD,Operations and Neighbourhoods,Operations and Neighbourhoods,Sub-contractor Services,22/05/2023,928.2
471010,FAIRWAY LANDSCAPES LTD,Operations and Neighbourhoods,Operations and Neighbourhoods,General Materials,22/05/2023,"10,880.50"
471010,FAIRWAY LANDSCAPES LTD,Operations and Neighbourhoods,Operations and Neighbourhoods,Sub-contractor Services,22/05/2023,653
471010,GARIC LTD,Operations and Neighbourhoods,Operations and Neighbourhoods,General Materials,22/05/2023,582.4
471010,Holroyds Skip Hire Limited,Operations and Neighbourhoods,Operations and Neighbourhoods,General Materials,22/05/2023,"2,888.33"
471010,MULTEVO LIMITED,Operations and Neighbourhoods,Operations and Neighbourhoods,General Materials,22/05/2023,750
471010,Saint-Gobain Building Distribution Limited t/a Benchmark Building Supplies,Civil Engineers,Director of Place,Debits Goods Received,22/05/2023,690
471010,TARMAC CENTRAL LIMITED,Operations and Neighbourhoods,Operations and Neighbourhoods,General Materials,22/05/2023,"3,517.07"
471010,UBU ENVIRONMENTAL LTD,Operations and Neighbourhoods,Operations and Neighbourhoods,Sub-contractor Services,22/05/2023,"1,800.00"
471010,WOLSELEY UK LTD,Civil Engineers,Director of Place,Debits Goods Received,22/05/2023,"4,382.67"
471010,WOLSELEY UK LTD,Operations and Neighbourhoods,Operations and Neighbourhoods,General Materials,22/05/2023,207.94
471011,ABBEY INDUSTRIAL SOLUTIONS LTD,Operations and Neighbourhoods,Operations and Neighbourhoods,Sub-contractor Services,30/05/2023,562.68
471011,AGGREGATE INDUSTRIES UK LIMITED,Operations and Neighbourhoods,Operations and Neighbourhoods,General Materials,30/05/2023,"1,270.33"
471011,ALTITUDE SERVICES,Operations and Neighbourhoods,Operations and Neighbourhoods,General Materials,30/05/2023,655.48
471011,BLOK N MESH UK LTD,Operations and Neighbourhoods,Operations and Neighbourhoods,General Materials,30/05/2023,"1,100.00"
471011,BRIDGE ELECTRICALSUPPLIES LTD,Civil Engineers,Director of Place,Debits Goods Received,30/05/2023,264
471011,BRIDGE ELECTRICALSUPPLIES LTD,Operations and Neighbourhoods,Operations and Neighbourhoods,General Materials,30/05/2023,430
471011,COLAS LTD,Civil Engineers,Director of Place,Debits Goods Received,30/05/2023,844.8
471011,EAGLE CIVIL ENGINEERING LTD,Operations and Neighbourhoods,Operations and Neighbourhoods,General Materials,30/05/2023,"2,839.60"
471011,ELECTRICITY NORTH WEST LTD,Operations and Neighbourhoods,Operations and Neighbourhoods,General Materials,30/05/2023,998.33
471011,HSS HIRE SERVICE GROUP  PLC,Governance,Governance,General Materials,30/05/2023,"1,063.28"
471011,INSTARMAC GROUP PLC,Civil Engineers,Director of Place,Debits Goods Received,30/05/2023,"1,641.60"
471011,KEN TAYLOR SUPPLIES LTD,Operations and Neighbourhoods,Operations and Neighbourhoods,General Materials,30/05/2023,"1,035.21"
471011,MARWOOD ELECTRICAL CO,Operations and Neighbourhoods,Operations and Neighbourhoods,Sub-contractor Services,30/05/2023,"5,522.60"
471011,NORTHWEST UTILITY SOLUTIONS LTD,Operations and Neighbourhoods,Operations and Neighbourhoods,Sub-contractor Services,30/05/2023,"13,800.00"
471011,P F CUSACK LTD,Civil Engineers,Director of Place,Debits Goods Received,30/05/2023,"1,050.00"
471011,pro garden projects,Operations and Neighbourhoods,Operations and Neighbourhoods,Sub-contractor Services,30/05/2023,"1,000.00"
471011,SPEEDY ASSET SERVICES LTD,Operations and Neighbourhoods,Operations and Neighbourhoods,General Materials,30/05/2023,688.22
471011,TARMAC CENTRAL LIMITED,Operations and Neighbourhoods,Operations and Neighbourhoods,General Materials,30/05/2023,"1,581.43"
471011,TRAFFIC DIRECT LTD,Operations and Neighbourhoods,Operations and Neighbourhoods,General Materials,30/05/2023,"2,000.00"
471011,UBU ENVIRONMENTAL LTD,Operations and Neighbourhoods,Operations and Neighbourhoods,Sub-contractor Services,30/05/2023,"1,822.50"
471011,WOLSELEY UK LTD,Civil Engineers,Director of Place,Debits Goods Received,30/05/2023,415.7
471011,WOLSELEY UK LTD,Operations and Neighbourhoods,Operations and Neighbourhoods,General Materials,30/05/2023,297.93
471011,WOTMIX LIMITED,Operations and Neighbourhoods,Operations and Neighbourhoods,General Materials,30/05/2023,870.5
471012,AGGREGATE INDUSTRIES UK LIMITED,Operations and Neighbourhoods,Operations and Neighbourhoods,General Materials,05/06/2023,"9,025.08"
471012,ALTITUDE SERVICES,Operations and Neighbourhoods,Operations and Neighbourhoods,General Materials,05/06/2023,551.03
471012,ARCO LIMITED,Adult Social Care,Adults,General Materials,05/06/2023,143.03
471012,ARCO LIMITED,Civil Engineers,Director of Place,Debits Goods Received,05/06/2023,"1,775.96"
471012,ARCO LIMITED,Operations and Neighbourhoods,Operations and Neighbourhoods,General Materials,05/06/2023,618.95
471012,BRAMHALL SURFACING LTD,Operations and Neighbourhoods,Operations and Neighbourhoods,Sub-contractor Services,05/06/2023,"109,324.23"
471012,COLAS LTD,Operations and Neighbourhoods,Operations and Neighbourhoods,General Materials,05/06/2023,"1,482.00"
471012,DIAMOND DECORATORS UK LTD,Operations and Neighbourhoods,Operations and Neighbourhoods,Sub-contractor Services,05/06/2023,"2,595.00"
471012,FAIRWAY LANDSCAPES LTD,Operations and Neighbourhoods,Operations and Neighbourhoods,Sub-contractor Services,05/06/2023,"28,923.55"
471012,INSTARMAC GROUP PLC,Civil Engineers,Director of Place,Debits Goods Received,05/06/2023,"1,641.60"
471012,KEN TAYLOR SUPPLIES LTD,Civil Engineers,Director of Place,Debits Goods Received,05/06/2023,461.65
471012,KEN TAYLOR SUPPLIES LTD,Operations and Neighbourhoods,Operations and Neighbourhoods,General Materials,05/06/2023,97.5
471012,LIMELIGHT SIGNS LIMITED,Civil Engineers,Director of Place,Debits Goods Received,05/06/2023,"5,889.00"
471012,LIMELIGHT SIGNS LIMITED,Operations and Neighbourhoods,Operations and Neighbourhoods,General Materials,05/06/2023,606.66
471012,MARCHINGTON STONE,Civil Engineers,Director of Place,Debits Goods Received,05/06/2023,509.66
471012,North West Training Academy Ltd,Operations and Neighbourhoods,Operations and Neighbourhoods,Training Course Costs,05/06/2023,"1,170.00"
471012,NORTHWEST UTILITY SOLUTIONS LTD,Operations and Neighbourhoods,Operations and Neighbourhoods,Sub-contractor Services,05/06/2023,"12,862.50"
471012,pro garden projects,Operations and Neighbourhoods,Operations and Neighbourhoods,Sub-contractor Services,05/06/2023,699.42
471012,ROWAN ASHWORTH LIMITED,Operations and Neighbourhoods,Operations and Neighbourhoods,Sub-contractor Services,05/06/2023,"7,820.00"
471012,ROWAN ASHWORTH LIMITED,Operations and Neighbourhoods,Operations and Neighbourhoods,Tipping Facility Fees,05/06/2023,"1,760.00"
471012,TARMAC CENTRAL LIMITED,Operations and Neighbourhoods,Operations and Neighbourhoods,General Materials,05/06/2023,"6,791.33"
471012,TRAFFIC DIRECT LTD,Operations and Neighbourhoods,Operations and Neighbourhoods,General Materials,05/06/2023,"12,505.00"
471012,UBU ENVIRONMENTAL LTD,Operations and Neighbourhoods,Operations and Neighbourhoods,Sub-contractor Services,05/06/2023,"4,545.00"
471012,WICKSTEED LEISURE LIMITED T/A WICKSTEED PLAYGROUNDS,Operations and Neighbourhoods,Operations and Neighbourhoods,General Materials,05/06/2023,"9,894.04"
471012,WOLSELEY UK LTD,Civil Engineers,Director of Place,Debits Goods Received,05/06/2023,"1,222.94"
471012,WOLSELEY UK LTD,Operations and Neighbourhoods,Operations and Neighbourhoods,General Materials,05/06/2023,529.87
471012,WOTMIX LIMITED,Operations and Neighbourhoods,Operations and Neighbourhoods,General Materials,05/06/2023,"3,723.75"
471013,4WAY CONSULTING LTD,Engineers Client,Director of Place,Street Lighting Works,12/06/2023,"3,500.00"
471013,AGGREGATE INDUSTRIES UK LIMITED,Operations and Neighbourhoods,Operations and Neighbourhoods,General Materials,12/06/2023,"4,649.77"
471013,ALTITUDE SERVICES,Operations and Neighbourhoods,Operations and Neighbourhoods,General Materials,12/06/2023,"6,630.67"
471013,ALTITUDE SERVICES,Operations and Neighbourhoods,Operations and Neighbourhoods,Sub-contractor Services,12/06/2023,"6,582.00"
471013,ARCO LIMITED,Adult Social Care,Adults,General Materials,12/06/2023,-53.99
471013,ARCO LIMITED,Civil Engineers,Director of Place,Debits Goods Received,12/06/2023,929.8
471013,ARCO LIMITED,Operations and Neighbourhoods,Operations and Neighbourhoods,General Materials,12/06/2023,212
471013,ARCO LIMITED,Operations and Neighbourhoods,Operations and Neighbourhoods,Protective Clothing,12/06/2023,110.11
471013,BRAMHALL SURFACING LTD,Operations and Neighbourhoods,Operations and Neighbourhoods,Sub-contractor Services,12/06/2023,"6,336.67"
471013,CABLE SERVICES GROUP LIMITED,Civil Engineers,Director of Place,Debits Goods Received,12/06/2023,564
471013,COLAS LTD,Operations and Neighbourhoods,Operations and Neighbourhoods,General Materials,12/06/2023,"2,100.00"
471013,EAGLE CIVIL ENGINEERING LTD,Operations and Neighbourhoods,Operations and Neighbourhoods,General Materials,12/06/2023,"2,839.60"
471013,EAGLE CIVIL ENGINEERING LTD,Operations and Neighbourhoods,Operations and Neighbourhoods,Sub-contractor Services,12/06/2023,"2,611.46"
471013,FAIRWAY LANDSCAPES LTD,Operations and Neighbourhoods,Operations and Neighbourhoods,Sub-contractor Services,12/06/2023,"6,651.00"
471013,GLASDON UK LTD,Operations and Neighbourhoods,Operations and Neighbourhoods,General Materials,12/06/2023,"1,170.00"
471013,KEN TAYLOR SUPPLIES LTD,Civil Engineers,Director of Place,Debits Goods Received,12/06/2023,666.57
471013,"Larsen Manufacturing Ltd, t/a Larsen Building Products",Operations and Neighbourhoods,Operations and Neighbourhoods,General Materials,12/06/2023,"2,711.50"
471013,North West Training Academy Ltd,Operations and Neighbourhoods,Operations and Neighbourhoods,Training Course Costs,12/06/2023,840
471013,NORTHWEST UTILITY SOLUTIONS LTD,Operations and Neighbourhoods,Operations and Neighbourhoods,Sub-contractor Services,12/06/2023,600
471013,ROWAN ASHWORTH LIMITED,Operations and Neighbourhoods,Operations and Neighbourhoods,Sub-contractor Services,12/06/2023,"8,740.00"
471013,TARMAC CENTRAL LIMITED,Operations and Neighbourhoods,Operations and Neighbourhoods,General Materials,12/06/2023,"3,367.51"
471013,TRAFFIC DIRECT LTD,Operations and Neighbourhoods,Operations and Neighbourhoods,General Materials,12/06/2023,"9,225.00"
471013,UBU ENVIRONMENTAL LTD,Operations and Neighbourhoods,Operations and Neighbourhoods,Sub-contractor Services,12/06/2023,"3,150.00"
471013,WOTMIX LIMITED,Operations and Neighbourhoods,Operations and Neighbourhoods,General Materials,12/06/2023,612
471014,ACORN LIGHTING SERVICES LTD,Operations and Neighbourhoods,Operations and Neighbourhoods,Sub-contractor Services,19/06/2023,"10,910.00"
471014,AGGREGATE INDUSTRIES UK LIMITED,Operations and Neighbourhoods,Operations and Neighbourhoods,General Materials,19/06/2023,"2,355.02"
471014,ALTITUDE SERVICES,Operations and Neighbourhoods,Operations and Neighbourhoods,Sub-contractor Services,19/06/2023,"3,092.57"
471014,ARCO LIMITED,Civil Engineers,Director of Place,Debits Goods Received,19/06/2023,850.38
471014,ARCO LIMITED,Place,Growth,General Materials,19/06/2023,20.14
471014,BRAMHALL SURFACING LTD,Operations and Neighbourhoods,Operations and Neighbourhoods,Sub-contractor Services,19/06/2023,"9,888.92"
471014,CASTINGS SERVICES LTD,Civil Engineers,Director of Place,Debits Goods Received,19/06/2023,"1,815.50"
471014,CASTINGS SERVICES LTD,Operations and Neighbourhoods,Operations and Neighbourhoods,General Materials,19/06/2023,"1,365.00"
471014,DIAMOND DECORATORS UK LTD,Operations and Neighbourhoods,Operations and Neighbourhoods,Sub-contractor Services,19/06/2023,800
471014,ECON ENGINEERING LTD,Operations and Neighbourhoods,Operations and Neighbourhoods,General Materials,19/06/2023,"8,756.59"
471014,ELECTRICITY NORTH WEST LTD,Operations and Neighbourhoods,Operations and Neighbourhoods,Sub-contractor Services,19/06/2023,998.33
471014,FAIRWAY LANDSCAPES LTD,Operations and Neighbourhoods,Operations and Neighbourhoods,Sub-contractor Services,19/06/2023,"10,657.50"
471014,KEN TAYLOR SUPPLIES LTD,Civil Engineers,Director of Place,Debits Goods Received,19/06/2023,62.75
471014,KEN TAYLOR SUPPLIES LTD,Operations and Neighbourhoods,Operations and Neighbourhoods,General Materials,19/06/2023,"2,081.55"
471014,"Larsen Manufacturing Ltd, t/a Larsen Building Products",Operations and Neighbourhoods,Operations and Neighbourhoods,General Materials,19/06/2023,"1,620.00"
471014,LIMELIGHT SIGNS LIMITED,Engineers Client,Director of Place,General Materials,19/06/2023,308.45
471014,LIMELIGHT SIGNS LIMITED,Operations and Neighbourhoods,Operations and Neighbourhoods,General Materials,19/06/2023,345.6
471014,NORTHWEST UTILITY SOLUTIONS LTD,Operations and Neighbourhoods,Operations and Neighbourhoods,Sub-contractor Services,19/06/2023,600
471014,PG FABRICATIONS,Multiple Heads of Service,Multiple Strategic Directorates,Tax Retained Sub Contractors,19/06/2023,-104
471014,PG FABRICATIONS,Operations and Neighbourhoods,Operations and Neighbourhoods,General Materials,19/06/2023,164
471014,PG FABRICATIONS,Operations and Neighbourhoods,Operations and Neighbourhoods,Sub-contractor Services,19/06/2023,700
471014,Saint-Gobain Building Distribution Limited t/a Benchmark Building Supplies,Civil Engineers,Director of Place,Debits Goods Received,19/06/2023,"1,380.00"
471014,Saint-Gobain Building Distribution Limited t/a Benchmark Building Supplies,Operations and Neighbourhoods,Operations and Neighbourhoods,General Materials,19/06/2023,497.73
471014,TARMAC CENTRAL LIMITED,Operations and Neighbourhoods,Operations and Neighbourhoods,General Materials,19/06/2023,"5,119.40"
471014,TRAFFIC DIRECT LTD,Operations and Neighbourhoods,Operations and Neighbourhoods,Sub-contractor Services,19/06/2023,770
471014,UBU ENVIRONMENTAL LTD,Operations and Neighbourhoods,Operations and Neighbourhoods,Sub-contractor Services,19/06/2023,"2,272.50"
471014,WOTMIX LIMITED,Operations and Neighbourhoods,Operations and Neighbourhoods,General Materials,19/06/2023,"1,312.50"
471015,AGGREGATE INDUSTRIES UK LIMITED,Operations and Neighbourhoods,Operations and Neighbourhoods,General Materials,26/06/2023,"3,833.52"
471015,BRAMHALL SURFACING LTD,Operations and Neighbourhoods,Operations and Neighbourhoods,General Materials,26/06/2023,"8,719.52"
471015,BRAMHALL SURFACING LTD,Operations and Neighbourhoods,Operations and Neighbourhoods,Sub-contractor Services,26/06/2023,"43,978.79"
471015,BRIDGE ELECTRICALSUPPLIES LTD,Civil Engineers,Director of Place,Debits Goods Received,26/06/2023,445
471015,BRIDGE ELECTRICALSUPPLIES LTD,Operations and Neighbourhoods,Operations and Neighbourhoods,General Materials,26/06/2023,600
471015,CASTINGS SERVICES LTD,Civil Engineers,Director of Place,Debits Goods Received,26/06/2023,"1,573.00"
471015,CASTINGS SERVICES LTD,Operations and Neighbourhoods,Operations and Neighbourhoods,General Materials,26/06/2023,"3,966.00"
471015,CBS Building and Maintenance,Operations and Neighbourhoods,Operations and Neighbourhoods,Sub-contractor Services,26/06/2023,"1,263.00"
471015,CENTREWIRE LTD,Engineers Client,Director of Place,Highway Construction,26/06/2023,"4,080.00"
471015,LIMELIGHT SIGNS LIMITED,Civil Engineers,Director of Place,Debits Goods Received,26/06/2023,880.25
471015,LIMELIGHT SIGNS LIMITED,Engineers Client,Director of Place,General Materials,26/06/2023,78.84
471015,LIMELIGHT SIGNS LIMITED,Operations and Neighbourhoods,Operations and Neighbourhoods,General Materials,26/06/2023,187.81
471015,North West Training Academy Ltd,Operations and Neighbourhoods,Operations and Neighbourhoods,Training Course Costs,26/06/2023,500
471015,NORTHWEST UTILITY SOLUTIONS LTD,Operations and Neighbourhoods,Operations and Neighbourhoods,Sub-contractor Services,26/06/2023,"18,975.00"
471015,PG FABRICATIONS,Multiple Heads of Service,Multiple Strategic Directorates,Tax Retained Sub Contractors,26/06/2023,-248.04
471015,PG FABRICATIONS,Operations and Neighbourhoods,Operations and Neighbourhoods,General Materials,26/06/2023,295
471015,PG FABRICATIONS,Operations and Neighbourhoods,Operations and Neighbourhoods,Sub-contractor Services,26/06/2023,"5,066.00"
471015,REDDILIGHT LTD,Civil Engineers,Director of Place,Debits Goods Received,26/06/2023,"1,300.00"
471015,Saint-Gobain Building Distribution Limited t/a Benchmark Building Supplies,Civil Engineers,Director of Place,Debits Goods Received,26/06/2023,398.4
471015,Saint-Gobain Building Distribution Limited t/a Benchmark Building Supplies,Operations and Neighbourhoods,Operations and Neighbourhoods,General Materials,26/06/2023,177.38
471015,TARMAC CENTRAL LIMITED,Operations and Neighbourhoods,Operations and Neighbourhoods,General Materials,26/06/2023,"4,321.58"
471015,TRAFFIC DIRECT LTD,Operations and Neighbourhoods,Operations and Neighbourhoods,General Materials,26/06/2023,592.5
471015,TRAFFIC DIRECT LTD,Operations and Neighbourhoods,Operations and Neighbourhoods,Sub-contractor Services,26/06/2023,"1,052.50"
471015,UBU ENVIRONMENTAL LTD,Operations and Neighbourhoods,Operations and Neighbourhoods,Sub-contractor Services,26/06/2023,"2,295.00"
3250909,A & J MOTORSPARES,Operations and Neighbourhoods,Operations and Neighbourhoods,Consumable Materials,06/04/2023,49.95
3250909,A & J MOTORSPARES,Operations and Neighbourhoods,Operations and Neighbourhoods,General Materials,06/04/2023,652.75
3250909,A & J MOTORSPARES,Transport,Director of Place,Debits Goods Received,06/04/2023,26.85
3250909,ARNOLD PLANT HIRE LTD,Operations and Neighbourhoods,Operations and Neighbourhoods,Additional Hire,06/04/2023,605
3250909,ARNOLD PLANT HIRE LTD,Operations and Neighbourhoods,Operations and Neighbourhoods,Replacement Hire,06/04/2023,20
3250909,ARNOLD PLANT HIRE LTD,Operations and Neighbourhoods,Operations and Neighbourhoods,Workshop Recharges including Misuse & Damage Costs,06/04/2023,367.6
3250909,Car Hire (Day of Swansea) Ltd t/a Days Rental,Operations and Neighbourhoods,Operations and Neighbourhoods,Additional Hire,06/04/2023,"2,455.20"
3250909,G B OILS TA CARLTON FUELS,Transport,Director of Place,Diesel Fuel,06/04/2023,"35,367.08"
3250909,HTF TYRE SERVICES LTD,Operations and Neighbourhoods,Operations and Neighbourhoods,Tyre Costs,06/04/2023,"2,993.56"
3250909,HYDRAULIC AND TRANSMISSION SERVICES LIMITED,Operations and Neighbourhoods,Operations and Neighbourhoods,Sub-contractor Services,06/04/2023,682
3250909,LEEDS COMMERCIAL LTD T/A LC VEHICLE HIRE,Operations and Neighbourhoods,Operations and Neighbourhoods,Additional Hire,06/04/2023,"6,440.00"
3250909,STOCKPORT TRUCK CENTRE LTD,Operations and Neighbourhoods,Operations and Neighbourhoods,Sub-contractor Services,06/04/2023,464.18
3250909,STOCKPORT TRUCK CENTRE LTD,Operations and Neighbourhoods,Operations and Neighbourhoods,Vehicle Inspection/Testing Costs,06/04/2023,385
3250909,T & C MOTOR PANELS LIMITED,Operations and Neighbourhoods,Operations and Neighbourhoods,Sub-contractor Services,06/04/2023,540
3250909,WASTE PARTS UK LTD,Transport,Director of Place,Debits Goods Received,06/04/2023,501.18
3250910,A & J MOTORSPARES,Operations and Neighbourhoods,Operations and Neighbourhoods,General Materials,13/04/2023,775.9
3250910,AEBI SCHMIDT UK LTD,Operations and Neighbourhoods,Operations and Neighbourhoods,General Materials,13/04/2023,651.17
3250910,AUTOSMART INTERNATIONAL,Operations and Neighbourhoods,Operations and Neighbourhoods,Consumable Materials,13/04/2023,164.42
3250910,AUTOSMART INTERNATIONAL,Operations and Neighbourhoods,Operations and Neighbourhoods,General Equipment Repair & Maintenance,13/04/2023,533
3250910,DAWSONGROUP BUS AND COACH,Operations and Neighbourhoods,Operations and Neighbourhoods,Additional Hire,13/04/2023,"1,032.00"
3250910,ECLIPSE AUTOMOTIVE TECHNOLOGY LTD,Operations and Neighbourhoods,Operations and Neighbourhoods,General Equipment Repair & Maintenance,13/04/2023,"2,090.00"
3250910,ECLIPSE AUTOMOTIVE TECHNOLOGY LTD,Operations and Neighbourhoods,Operations and Neighbourhoods,Training Course Costs,13/04/2023,"1,190.00"
3250910,FREIGHT TRANSPORT ASSOCIATION,Operations and Neighbourhoods,Operations and Neighbourhoods,Vehicle Inspection/Testing Costs,13/04/2023,"8,125.72"
3250910,GARIC LTD,Operations and Neighbourhoods,Operations and Neighbourhoods,Additional Hire,13/04/2023,"1,421.40"
3250910,INDUSTRIAL & HYDRAULIC SERVICES,Operations and Neighbourhoods,Operations and Neighbourhoods,Sub-contractor Services,13/04/2023,988.18
3250910,JOHNSONS APPARELMASTER LTD,Operations and Neighbourhoods,Operations and Neighbourhoods,Protective Clothing,13/04/2023,840.24
3250910,JOHNSTON SWEEPERS LTD,Operations and Neighbourhoods,Operations and Neighbourhoods,Sub-contractor Services,13/04/2023,"1,804.54"
3250910,MOTUS COMMERCIALS OLDHAM,Operations and Neighbourhoods,Operations and Neighbourhoods,General Materials,13/04/2023,"1,143.75"
3250910,NTM GB LTD,Operations and Neighbourhoods,Operations and Neighbourhoods,General Materials,13/04/2023,"1,730.45"
3250910,Redacted Supplier,Operations and Neighbourhoods,Operations and Neighbourhoods,Additional Hire,13/04/2023,"3,256.00"
3250910,RIVERSIDE TRUCK RENTAL LIMITED,Operations and Neighbourhoods,Operations and Neighbourhoods,Additional Hire,13/04/2023,"4,117.00"
3250910,Teletrac Navman (UK) LTD,Operations and Neighbourhoods,Operations and Neighbourhoods,General Equipment Repair & Maintenance,13/04/2023,"5,385.33"
3250910,TOLLAND PRECISION ENGINEERING LTD,Operations and Neighbourhoods,Operations and Neighbourhoods,General Materials,13/04/2023,84
3250910,TOLLAND PRECISION ENGINEERING LTD,Operations and Neighbourhoods,Operations and Neighbourhoods,Sub-contractor Services,13/04/2023,740
3250911,A & J MOTORSPARES,Operations and Neighbourhoods,Operations and Neighbourhoods,General Materials,20/04/2023,"2,324.87"
3250911,A & J MOTORSPARES,Transport,Director of Place,Debits Goods Received,20/04/2023,73.75
3250911,AEBI SCHMIDT UK LTD,Operations and Neighbourhoods,Operations and Neighbourhoods,General Materials,20/04/2023,"2,626.26"
3250911,AEBI SCHMIDT UK LTD,Transport,Director of Place,Debits Goods Received,20/04/2023,"2,789.32"
3250911,CIVICA UK LIMITED,Operations and Neighbourhoods,Operations and Neighbourhoods,Computer Software,27/04/2023,"2,229.00"
3250911,DENNIS EAGLE LTD,Operations and Neighbourhoods,Operations and Neighbourhoods,General Materials,20/04/2023,"1,139.12"
3250911,DENNIS EAGLE LTD,Transport,Director of Place,Debits Goods Received,20/04/2023,"6,697.25"
3250911,INDUSTRIAL & HYDRAULIC SERVICES,Operations and Neighbourhoods,Operations and Neighbourhoods,Sub-contractor Services,20/04/2023,844.88
3250911,MOTUS COMMERCIALS OLDHAM,Operations and Neighbourhoods,Operations and Neighbourhoods,General Materials,20/04/2023,972.8
3250911,NTM GB LTD,Operations and Neighbourhoods,Operations and Neighbourhoods,General Materials,20/04/2023,"2,128.55"
3250911,OLDHAM ENGINE PARTS LTD,Operations and Neighbourhoods,Operations and Neighbourhoods,Sub-contractor Services,24/04/2023,530
3250911,STOCKPORT TRUCK CENTRE LTD,Operations and Neighbourhoods,Operations and Neighbourhoods,Vehicle Inspection/Testing Costs,20/04/2023,"7,000.00"
3250911,T H WHITE LIMITED t/a Palfinger UK,Operations and Neighbourhoods,Operations and Neighbourhoods,General Materials,20/04/2023,915
3250911,WASTE PARTS UK LTD,Transport,Director of Place,Debits Goods Received,20/04/2023,"2,770.71"
3250912,AEBI SCHMIDT UK LTD,Operations and Neighbourhoods,Operations and Neighbourhoods,General Materials,27/04/2023,"1,657.45"
3250912,AEBI SCHMIDT UK LTD,Transport,Director of Place,Debits Goods Received,27/04/2023,"2,808.07"
3250912,BRENNTAG UK LIMITED,Transport,Director of Place,Fuel / Ad Blu,27/04/2023,"2,563.00"
3250912,CIVICA UK LIMITED,Operations and Neighbourhoods,Operations and Neighbourhoods,Computer Software,27/04/2023,"9,873.75"
3250912,DAWSONGROUP BUS AND COACH,Operations and Neighbourhoods,Operations and Neighbourhoods,Additional Hire,27/04/2023,"1,032.00"
3250912,DENNIS EAGLE LTD,Operations and Neighbourhoods,Operations and Neighbourhoods,General Materials,27/04/2023,808.9
3250912,DENNIS EAGLE LTD,Operations and Neighbourhoods,Operations and Neighbourhoods,Sub-contractor Services,27/04/2023,580.01
3250912,DENNIS EAGLE LTD,Transport,Director of Place,Debits Goods Received,27/04/2023,"2,539.99"
3250912,G B OILS TA CARLTON FUELS,Transport,Director of Place,Diesel Fuel,27/04/2023,"22,515.13"
3250912,G B OILS TA CARLTON FUELS,Transport,Director of Place,Petrol Fuel,27/04/2023,"3,005.80"
3250912,HGV DIRECT LTD,Operations and Neighbourhoods,Operations and Neighbourhoods,General Materials,27/04/2023,804.55
3250912,HTF TYRE SERVICES LTD,Operations and Neighbourhoods,Operations and Neighbourhoods,Tyre Costs,27/04/2023,"1,667.33"
3250912,LEEDS COMMERCIAL LTD T/A LC VEHICLE HIRE,Operations and Neighbourhoods,Operations and Neighbourhoods,Additional Hire,27/04/2023,"1,120.00"
3250912,LEEDS COMMERCIAL LTD T/A LC VEHICLE HIRE,Operations and Neighbourhoods,Operations and Neighbourhoods,Sub-contractor Services,27/04/2023,807.53
3250912,PEAK PARTS,Operations and Neighbourhoods,Operations and Neighbourhoods,Consumable Materials,27/04/2023,603.13
3250912,TRUCTYRE ATS,Operations and Neighbourhoods,Operations and Neighbourhoods,Tyre Costs,27/04/2023,"1,309.51"
3250913,Crescent Motors Dukinfield Ltd,Operations and Neighbourhoods,Operations and Neighbourhoods,Sub-contractor Services,04/05/2023,"1,140.00"
3250913,DENNIS EAGLE LTD,Operations and Neighbourhoods,Operations and Neighbourhoods,General Materials,04/05/2023,"1,239.29"
3250913,DENNIS EAGLE LTD,Transport,Director of Place,Debits Goods Received,04/05/2023,"2,924.07"
3250913,F. R. SHARROCK LIMITED,Operations and Neighbourhoods,Operations and Neighbourhoods,General Materials,04/05/2023,735.15
3250913,F. R. SHARROCK LIMITED,Transport,Director of Place,Debits Goods Received,04/05/2023,479.25
3250913,G B OILS TA CARLTON FUELS,Transport,Director of Place,Diesel Fuel,04/05/2023,"33,255.00"
3250913,HTF TYRE SERVICES LTD,Operations and Neighbourhoods,Operations and Neighbourhoods,Tyre Costs,04/05/2023,"1,423.10"
3250913,INDUSTRIAL & HYDRAULIC SERVICES,Operations and Neighbourhoods,Operations and Neighbourhoods,Sub-contractor Services,04/05/2023,595.78
3250913,JDS TRUCKS LIMITED,Operations and Neighbourhoods,Operations and Neighbourhoods,General Materials,04/05/2023,556.98
3250913,MOTUS COMMERCIALS OLDHAM,Operations and Neighbourhoods,Operations and Neighbourhoods,General Materials,04/05/2023,"1,450.00"
3250913,SCARAB SWEEPERS LTD,Operations and Neighbourhoods,Operations and Neighbourhoods,General Materials,04/05/2023,"4,268.01"
3250913,SCARAB SWEEPERS LTD,Operations and Neighbourhoods,Operations and Neighbourhoods,Sub-contractor Services,04/05/2023,140
3250913,STOCKPORT TRUCK CENTRE LTD,Operations and Neighbourhoods,Operations and Neighbourhoods,Sub-contractor Services,04/05/2023,775.74
3250913,STOCKPORT TRUCK CENTRE LTD,Operations and Neighbourhoods,Operations and Neighbourhoods,Vehicle Inspection/Testing Costs,04/05/2023,220
3250913,TRUCTYRE ATS,Operations and Neighbourhoods,Operations and Neighbourhoods,Tyre Costs,04/05/2023,"1,238.52"
3250913,WASTE PARTS UK LTD,Transport,Director of Place,Debits Goods Received,04/05/2023,585.1
3250914,AEBI SCHMIDT UK LTD,Operations and Neighbourhoods,Operations and Neighbourhoods,General Materials,11/05/2023,894.42
3250914,ARNOLD PLANT HIRE LTD,Operations and Neighbourhoods,Operations and Neighbourhoods,Additional Hire,11/05/2023,"1,045.00"
3250914,ARNOLD PLANT HIRE LTD,Operations and Neighbourhoods,Operations and Neighbourhoods,Replacement Hire,11/05/2023,200
3250914,ARNOLD PLANT HIRE LTD,Operations and Neighbourhoods,Operations and Neighbourhoods,Workshop Recharges including Misuse & Damage Costs,11/05/2023,30
3250914,AUTOSMART INTERNATIONAL,Operations and Neighbourhoods,Operations and Neighbourhoods,Consumable Materials,11/05/2023,200.4
3250914,AUTOSMART INTERNATIONAL,Operations and Neighbourhoods,Operations and Neighbourhoods,General Equipment Repair & Maintenance,11/05/2023,458.43
3250914,Car Hire (Day of Swansea) Ltd t/a Days Rental,Operations and Neighbourhoods,Operations and Neighbourhoods,Additional Hire,11/05/2023,"2,376.00"
3250914,CHIPPINDALE PLANT LTD,Operations and Neighbourhoods,Operations and Neighbourhoods,General Materials,11/05/2023,950
3250914,COMPLETE WELDING SERVICES LTD,Operations and Neighbourhoods,Operations and Neighbourhoods,Protective Clothing,11/05/2023,871.5
3250914,GARIC LTD,Operations and Neighbourhoods,Operations and Neighbourhoods,Additional Hire,11/05/2023,"1,236.00"
3250914,GUNN JCB LTD,Operations and Neighbourhoods,Operations and Neighbourhoods,Sub-contractor Services,11/05/2023,"1,225.00"
3250914,INDUSTRIAL & HYDRAULIC SERVICES,Operations and Neighbourhoods,Operations and Neighbourhoods,Sub-contractor Services,11/05/2023,"1,315.84"
3250914,JOHNSTON SWEEPERS LTD,Operations and Neighbourhoods,Operations and Neighbourhoods,General Materials,11/05/2023,676.05
3250914,LEEDS COMMERCIAL LTD T/A LC VEHICLE HIRE,Operations and Neighbourhoods,Operations and Neighbourhoods,Additional Hire,11/05/2023,"4,240.00"
3250914,LEEDS COMMERCIAL LTD T/A LC VEHICLE HIRE,Operations and Neighbourhoods,Operations and Neighbourhoods,Replacement Hire,11/05/2023,630
3250914,LEEDS COMMERCIAL LTD T/A LC VEHICLE HIRE,Operations and Neighbourhoods,Operations and Neighbourhoods,Sub-contractor Services,11/05/2023,95.29
3250914,LEEDS COMMERCIAL LTD T/A LC VEHICLE HIRE,Operations and Neighbourhoods,Operations and Neighbourhoods,Workshop Recharges including Misuse & Damage Costs,11/05/2023,51
3250914,Redacted Supplier,Operations and Neighbourhoods,Operations and Neighbourhoods,Additional Hire,11/05/2023,"2,960.00"
3250914,RIVERSIDE TRUCK RENTAL LIMITED,Operations and Neighbourhoods,Operations and Neighbourhoods,Additional Hire,11/05/2023,"3,580.00"
3250914,S P HAMMERS LTD,Operations and Neighbourhoods,Operations and Neighbourhoods,Sub-contractor Services,11/05/2023,"1,910.00"
3250914,TRUCTYRE ATS,Operations and Neighbourhoods,Operations and Neighbourhoods,Tyre Costs,11/05/2023,532.8
3250915,AEBI SCHMIDT UK LTD,Operations and Neighbourhoods,Operations and Neighbourhoods,General Materials,18/05/2023,"2,457.44"
3250915,AIR PRODUCTS PLC,Operations and Neighbourhoods,Operations and Neighbourhoods,General Equipment Repair & Maintenance,18/05/2023,"1,057.74"
3250915,BRIT-TIPP LTD,Transport,Director of Place,Debits Goods Received,18/05/2023,634.88
3250915,DAWSONGROUP BUS AND COACH,Operations and Neighbourhoods,Operations and Neighbourhoods,Additional Hire,18/05/2023,"1,032.00"
3250915,DENNIS EAGLE LTD,Operations and Neighbourhoods,Operations and Neighbourhoods,General Materials,18/05/2023,"2,008.82"
3250915,DENNIS EAGLE LTD,Transport,Director of Place,Debits Goods Received,18/05/2023,"1,945.81"
3250915,G B OILS TA CARLTON FUELS,Transport,Director of Place,Diesel Fuel,18/05/2023,"20,785.04"
3250915,INDUSTRIAL & HYDRAULIC SERVICES,Operations and Neighbourhoods,Operations and Neighbourhoods,Sub-contractor Services,18/05/2023,524.96
3250915,JDS TRUCKS LIMITED,Operations and Neighbourhoods,Operations and Neighbourhoods,General Materials,18/05/2023,"1,560.65"
3250915,JDS TRUCKS LIMITED,Transport,Director of Place,Debits Goods Received,18/05/2023,206.68
3250915,JOHNSONS APPARELMASTER LTD,Operations and Neighbourhoods,Operations and Neighbourhoods,Protective Clothing,18/05/2023,840.24
3250915,LEEDS COMMERCIAL LTD T/A LC VEHICLE HIRE,Operations and Neighbourhoods,Operations and Neighbourhoods,Sub-contractor Services,18/05/2023,"1,926.58"
3250915,MOTUS COMMERCIALS OLDHAM,Operations and Neighbourhoods,Operations and Neighbourhoods,General Materials,18/05/2023,22.15
3250915,MOTUS COMMERCIALS OLDHAM,Transport,Director of Place,Debits Goods Received,18/05/2023,508.27
3250915,TRUCTYRE ATS,Operations and Neighbourhoods,Operations and Neighbourhoods,Tyre Costs,18/05/2023,962.24
3250915,WASTE PARTS UK LTD,Transport,Director of Place,Debits Goods Received,18/05/2023,934.25
3250916,A & J MOTORSPARES,Operations and Neighbourhoods,Operations and Neighbourhoods,Consumable Materials,25/05/2023,280.04
3250916,A & J MOTORSPARES,Operations and Neighbourhoods,Operations and Neighbourhoods,General Materials,25/05/2023,935.05
3250916,A & J MOTORSPARES,Transport,Director of Place,Debits Goods Received,25/05/2023,185.78
3250916,AEBI SCHMIDT UK LTD,Operations and Neighbourhoods,Operations and Neighbourhoods,General Materials,25/05/2023,"1,653.37"
3250916,AEBI SCHMIDT UK LTD,Transport,Director of Place,Debits Goods Received,25/05/2023,"1,997.63"
3250916,DENNIS EAGLE LTD,Operations and Neighbourhoods,Operations and Neighbourhoods,General Materials,25/05/2023,"1,213.28"
3250916,DENNIS EAGLE LTD,Transport,Director of Place,Debits Goods Received,25/05/2023,"5,380.89"
3250916,F. R. SHARROCK LIMITED,Operations and Neighbourhoods,Operations and Neighbourhoods,General Materials,25/05/2023,27.46
3250916,F. R. SHARROCK LIMITED,Transport,Director of Place,Debits Goods Received,25/05/2023,709.03
3250916,G B OILS TA CARLTON FUELS,Transport,Director of Place,Diesel Fuel,25/05/2023,"10,506.05"
3250916,HGV DIRECT LTD,Operations and Neighbourhoods,Operations and Neighbourhoods,General Materials,25/05/2023,"1,907.18"
3250916,INDUSTRIAL & HYDRAULIC SERVICES,Operations and Neighbourhoods,Operations and Neighbourhoods,Sub-contractor Services,25/05/2023,"1,374.40"
3250916,LEEDS COMMERCIAL LTD T/A LC VEHICLE HIRE,Operations and Neighbourhoods,Operations and Neighbourhoods,Additional Hire,25/05/2023,540
3250916,LEEDS COMMERCIAL LTD T/A LC VEHICLE HIRE,Operations and Neighbourhoods,Operations and Neighbourhoods,Sub-contractor Services,25/05/2023,"1,798.71"
3250916,MANCHESTER BREAKDOWN SERVICES LTD,Operations and Neighbourhoods,Operations and Neighbourhoods,Sub-contractor Services,25/05/2023,"1,257.50"
3250916,MOTUS COMMERCIALS OLDHAM,Operations and Neighbourhoods,Operations and Neighbourhoods,General Materials,25/05/2023,250
3250916,MOTUS COMMERCIALS OLDHAM,Transport,Director of Place,Debits Goods Received,25/05/2023,829.45
3250916,PARTS PLUS OLDHAM,Operations and Neighbourhoods,Operations and Neighbourhoods,Consumable Materials,25/05/2023,75.67
3250916,PARTS PLUS OLDHAM,Operations and Neighbourhoods,Operations and Neighbourhoods,General Materials,25/05/2023,159.54
3250916,PARTS PLUS OLDHAM,Transport,Director of Place,Debits Goods Received,25/05/2023,760.11
3250916,STOCKPORT TRUCK CENTRE LTD,Operations and Neighbourhoods,Operations and Neighbourhoods,Sub-contractor Services,25/05/2023,554.1
3250916,TRUCTYRE ATS,Operations and Neighbourhoods,Operations and Neighbourhoods,Tyre Costs,25/05/2023,898.39
3250916,WASTE PARTS UK LTD,Operations and Neighbourhoods,Operations and Neighbourhoods,General Materials,25/05/2023,366.89
3250916,WASTE PARTS UK LTD,Transport,Director of Place,Debits Goods Received,25/05/2023,271.26
3250917,A & J MOTORSPARES,Operations and Neighbourhoods,Operations and Neighbourhoods,General Materials,01/06/2023,442.68
3250917,A & J MOTORSPARES,Transport,Director of Place,Debits Goods Received,01/06/2023,598.6
3250917,DENNIS EAGLE LTD,Operations and Neighbourhoods,Operations and Neighbourhoods,General Materials,01/06/2023,378.38
3250917,DENNIS EAGLE LTD,Transport,Director of Place,Debits Goods Received,01/06/2023,"1,875.19"
3250917,FUCHS LUBRICANTS UK PLC,Transport,Director of Place,Debits Goods Received,01/06/2023,"3,040.00"
3250917,G B OILS TA CARLTON FUELS,Transport,Director of Place,Diesel Fuel,01/06/2023,"22,209.63"
3250917,HTF TYRE SERVICES LTD,Operations and Neighbourhoods,Operations and Neighbourhoods,Tyre Costs,01/06/2023,"2,724.25"
3250917,PEAK PARTS,Operations and Neighbourhoods,Operations and Neighbourhoods,Consumable Materials,01/06/2023,688.37
3250917,PEAK PARTS,Transport,Director of Place,Debits Goods Received,01/06/2023,51.5
3250917,Popcorn Rocks Limited t/a Green Motion,Operations and Neighbourhoods,Operations and Neighbourhoods,Additional Hire,01/06/2023,"1,468.33"
3250917,TERBERG MATEC UK LTD,Operations and Neighbourhoods,Operations and Neighbourhoods,General Materials,01/06/2023,"1,754.97"
3250917,TRUCTYRE ATS,Operations and Neighbourhoods,Operations and Neighbourhoods,Tyre Costs,01/06/2023,"1,878.07"
3250918,A & J MOTORSPARES,Operations and Neighbourhoods,Operations and Neighbourhoods,Consumable Materials,15/06/2023,135.52
3250918,A & J MOTORSPARES,Operations and Neighbourhoods,Operations and Neighbourhoods,General Materials,15/06/2023,888.76
3250918,A & J MOTORSPARES,Transport,Director of Place,Debits Goods Received,15/06/2023,51.42
3250918,A.R.B. SALES LTD,Operations and Neighbourhoods,Operations and Neighbourhoods,General Equipment Purchase,15/06/2023,"1,362.78"
3250918,AEBI SCHMIDT UK LTD,Operations and Neighbourhoods,Operations and Neighbourhoods,General Materials,15/06/2023,"1,183.42"
3250918,AEBI SCHMIDT UK LTD,Transport,Director of Place,Debits Goods Received,15/06/2023,"2,778.11"
3250918,ARNOLD PLANT HIRE LTD,Operations and Neighbourhoods,Operations and Neighbourhoods,Additional Hire,15/06/2023,"1,662.00"
3250918,ARNOLD PLANT HIRE LTD,Operations and Neighbourhoods,Operations and Neighbourhoods,Replacement Hire,15/06/2023,230
3250918,ARNOLD PLANT HIRE LTD,Operations and Neighbourhoods,Operations and Neighbourhoods,Workshop Recharges including Misuse & Damage Costs,15/06/2023,382.3
3250918,BALMERS GM LTD,Operations and Neighbourhoods,Operations and Neighbourhoods,Replacement Hire,15/06/2023,"2,000.00"
3250918,Car Hire (Day of Swansea) Ltd t/a Days Rental,Operations and Neighbourhoods,Operations and Neighbourhoods,Additional Hire,15/06/2023,"2,455.20"
3250918,Car Hire (Day of Swansea) Ltd t/a Days Rental,Operations and Neighbourhoods,Operations and Neighbourhoods,Workshop Recharges including Misuse & Damage Costs,15/06/2023,296.48
3250918,DAWSONGROUP BUS AND COACH,Operations and Neighbourhoods,Operations and Neighbourhoods,Additional Hire,15/06/2023,"4,079.71"
3250918,DENNIS EAGLE LTD,Operations and Neighbourhoods,Operations and Neighbourhoods,General Materials,15/06/2023,"2,314.95"
3250918,DENNIS EAGLE LTD,Transport,Director of Place,Debits Goods Received,15/06/2023,"4,124.96"
3250918,EUROSAFE SOLUTIONS LTD,Operations and Neighbourhoods,Operations and Neighbourhoods,General Equipment Purchase,15/06/2023,"11,745.00"
3250918,F. R. SHARROCK LIMITED,Operations and Neighbourhoods,Operations and Neighbourhoods,General Materials,15/06/2023,83.12
3250918,F. R. SHARROCK LIMITED,Transport,Director of Place,Debits Goods Received,15/06/2023,"1,089.41"
3250918,G B OILS TA CARLTON FUELS,Transport,Director of Place,Diesel Fuel,15/06/2023,"22,057.35"
3250918,G B OILS TA CARLTON FUELS,Transport,Director of Place,Petrol Fuel,15/06/2023,"2,814.50"
3250918,GUNN JCB LTD,Operations and Neighbourhoods,Operations and Neighbourhoods,Sub-contractor Services,15/06/2023,515.53
3250918,HGV DIRECT LTD,Operations and Neighbourhoods,Operations and Neighbourhoods,General Materials,15/06/2023,"1,311.12"
3250918,HGV DIRECT LTD,Transport,Director of Place,Debits Goods Received,15/06/2023,450.4
3250918,HTF TYRE SERVICES LTD,Operations and Neighbourhoods,Operations and Neighbourhoods,Tyre Costs,15/06/2023,"1,298.53"
3250918,JDS TRUCKS LIMITED,Operations and Neighbourhoods,Operations and Neighbourhoods,General Materials,15/06/2023,570.91
3250918,JOHNSONS APPARELMASTER LTD,Operations and Neighbourhoods,Operations and Neighbourhoods,Protective Clothing,15/06/2023,978.54
3250918,LEEDS COMMERCIAL LTD T/A LC VEHICLE HIRE,Operations and Neighbourhoods,Operations and Neighbourhoods,Additional Hire,15/06/2023,"1,170.00"
3250918,MOTUS COMMERCIALS OLDHAM,Operations and Neighbourhoods,Operations and Neighbourhoods,General Materials,15/06/2023,"1,802.30"
3250918,MOTUS COMMERCIALS OLDHAM,Transport,Director of Place,Debits Goods Received,15/06/2023,473.6
3250918,PEAK PARTS,Operations and Neighbourhoods,Operations and Neighbourhoods,Consumable Materials,15/06/2023,584.06
3250918,PEAK PARTS,Operations and Neighbourhoods,Operations and Neighbourhoods,General Materials,15/06/2023,7
3250918,Redacted Supplier,Operations and Neighbourhoods,Operations and Neighbourhoods,Additional Hire,15/06/2023,"3,404.00"
3250918,RIVERSIDE TRUCK RENTAL LIMITED,Operations and Neighbourhoods,Operations and Neighbourhoods,Additional Hire,15/06/2023,"9,704.20"
3250918,T & C MOTOR PANELS LIMITED,Transport,Director of Place,Debits Goods Received,15/06/2023,660
3250918,TERBERG MATEC UK LTD,Operations and Neighbourhoods,Operations and Neighbourhoods,General Materials,15/06/2023,12.99
3250918,TERBERG MATEC UK LTD,Transport,Director of Place,Debits Goods Received,15/06/2023,"1,644.92"
3250918,TOLLAND PRECISION ENGINEERING LTD,Transport,Director of Place,Debits Goods Received,15/06/2023,551.25
3250918,TRUCTYRE ATS,Operations and Neighbourhoods,Operations and Neighbourhoods,Tyre Costs,15/06/2023,"2,572.06"
3250918,WASTE PARTS UK LTD,Operations and Neighbourhoods,Operations and Neighbourhoods,General Materials,15/06/2023,595
3250918,WASTE PARTS UK LTD,Transport,Director of Place,Debits Goods Received,15/06/2023,"1,061.72"
3250919,A & J MOTORSPARES,Operations and Neighbourhoods,Operations and Neighbourhoods,Consumable Materials,22/06/2023,143.02
3250919,A & J MOTORSPARES,Operations and Neighbourhoods,Operations and Neighbourhoods,General Materials,22/06/2023,355.57
3250919,A & J MOTORSPARES,Operations and Neighbourhoods,Operations and Neighbourhoods,Sub-contractor Services,22/06/2023,93.27
3250919,AEBI SCHMIDT UK LTD,Operations and Neighbourhoods,Operations and Neighbourhoods,General Materials,22/06/2023,93.3
3250919,AEBI SCHMIDT UK LTD,Transport,Director of Place,Debits Goods Received,22/06/2023,"1,830.59"
3250919,AIR PRODUCTS PLC,Operations and Neighbourhoods,Operations and Neighbourhoods,General Equipment Repair & Maintenance,22/06/2023,537.54
3250919,BRENNTAG UK LIMITED,Transport,Director of Place,Fuel / Ad Blu,22/06/2023,"2,320.66"
3250919,BRIT-TIPP LTD,Operations and Neighbourhoods,Operations and Neighbourhoods,General Materials,22/06/2023,751.6
3250919,DENNIS EAGLE LTD,Operations and Neighbourhoods,Operations and Neighbourhoods,General Materials,22/06/2023,76.56
3250919,DENNIS EAGLE LTD,Transport,Director of Place,Debits Goods Received,22/06/2023,"2,945.50"
3250919,FUCHS LUBRICANTS UK PLC,Transport,Director of Place,Debits Goods Received,22/06/2023,528.9
3250919,G B OILS TA CARLTON FUELS,Transport,Director of Place,Diesel Fuel,22/06/2023,"10,713.00"
3250919,GUNN JCB LTD,Operations and Neighbourhoods,Operations and Neighbourhoods,General Materials,22/06/2023,"2,138.36"
3250919,INDUSTRIAL & HYDRAULIC SERVICES,Operations and Neighbourhoods,Operations and Neighbourhoods,Sub-contractor Services,22/06/2023,654.72
3250919,LPW EUROPE LTD,Operations and Neighbourhoods,Operations and Neighbourhoods,Building Repairs,22/06/2023,"4,750.60"
3250919,LPW EUROPE LTD,Operations and Neighbourhoods,Operations and Neighbourhoods,General Equipment Repair & Maintenance,22/06/2023,630
3250920,DENNIS EAGLE LTD,Operations and Neighbourhoods,Operations and Neighbourhoods,General Materials,29/06/2023,"1,773.24"
3250920,DENNIS EAGLE LTD,Transport,Director of Place,Debits Goods Received,29/06/2023,57.6
3250920,F. R. SHARROCK LIMITED,Operations and Neighbourhoods,Operations and Neighbourhoods,Sub-contractor Services,29/06/2023,954.3
3250920,F. R. SHARROCK LIMITED,Transport,Director of Place,Debits Goods Received,29/06/2023,558.95
3250920,G B OILS TA CARLTON FUELS,Transport,Director of Place,Diesel Fuel,29/06/2023,"10,779.31"
3250920,INDUSTRIAL & HYDRAULIC SERVICES,Operations and Neighbourhoods,Operations and Neighbourhoods,Sub-contractor Services,29/06/2023,"2,099.46"
3250920,TRUCTYRE ATS,Operations and Neighbourhoods,Operations and Neighbourhoods,Tyre Costs,29/06/2023,642.09
5401698,Redacted Supplier,Education,Children's Services,Other Local Authorities Fees,06/04/2023,"16,735.46"
5457625,Redacted Supplier,Education,Children's Services,Training Course Costs,12/06/2023,"3,100.00"
5469731,UK FOSTERING LTD,Childrens Services,Children's Services,Foster Carer Agency Fees,23/06/2023,"3,318.24"
5471203,Amore Social Care Ltd,Childrens Services,Children's Services,Childrens Homes Outside Local Authority Fees,20/04/2023,"9,498.04"
5477997,Amore Social Care Ltd,Childrens Services,Children's Services,Childrens Homes Outside Local Authority Fees,20/04/2023,"2,713.73"
5479102,THE FOSTER CARE CO-OPERATIVE LTD,Childrens Services,Children's Services,Foster Carer Agency Fees,27/04/2023,"1,011.36"
5481369,NEW BRIDGE HORIZONS,Adult Social Care,Adults,Day Care Fees,05/04/2023,"1,868.00"
5481490,LOCAL CARE FORCE,Adult Social Care,Adults,Residential Home Long Stay Fees,13/04/2023,"2,656.08"
5481492,LOCAL CARE FORCE,Adult Social Care,Adults,Residential Home Long Stay Fees,13/04/2023,"2,677.95"
5482281,PARALLEL PARENTS,Childrens Services,Children's Services,Foster Carer Agency Fees,16/05/2023,"3,371.40"
5482683,LOCAL CARE FORCE,Adult Social Care,Adults,Residential Home Long Stay Fees,13/04/2023,"2,588.19"
5483775,Safe Hands Care & Support Services,(blank),(blank),Living With Formal Support,22/05/2023,"7,115.28"
5483810,LOCAL CARE FORCE,Adult Social Care,Adults,Residential Home Long Stay Fees,13/04/2023,"2,679.25"
5483867,Vernon House T/A Kedleston (WoodGrove Childcare) Limited,Childrens Services,Children's Services,Childrens Homes Outside Local Authority Fees,24/05/2023,"9,300.00"
5484002,LOCAL CARE FORCE,Adult Social Care,Adults,Residential Home Long Stay Fees,13/04/2023,"2,603.04"
5484746,LOCAL CARE FORCE,Adult Social Care,Adults,Residential Home Long Stay Fees,13/04/2023,"2,472.64"
5485037,PARALLEL PARENTS,Childrens Services,Children's Services,Foster Carer Agency Fees,17/05/2023,"2,022.84"
5486766,Safe Hands Care & Support Services,(blank),(blank),Living With Formal Support,22/05/2023,"3,171.42"
5486811,Safe Hands Care & Support Services,(blank),(blank),Living With Formal Support,23/05/2023,"6,885.75"
5486878,Safe Hands Care & Support Services,Childrens Services,Children's Services,Living With Formal Support,23/05/2023,"1,585.71"
5486878,Safe Hands Care & Support Services,(blank),(blank),Living With Formal Support,23/05/2023,"1,691.42"
5486900,Safe Hands Care & Support Services,(blank),(blank),Living With Formal Support,23/05/2023,"7,115.28"
5488712,Amore Social Care Ltd,Childrens Services,Children's Services,Childrens Homes Outside Local Authority Fees,20/04/2023,"2,713.73"
5488735,TAMESIDE AND GLOSSOP INTEGRATED CARE NHS FOUNDATION TRUST,Adult Social Care,Adults,External Secondments,27/04/2023,"4,029.49"
5489568,Furniture Resource Centre Ltd,Operations and Neighbourhoods,Operations and Neighbourhoods,"Fixtures, Fittings & Furniture Purchase",03/04/2023,716.48
5489572,SafeNet Domestic Abuse Services Ltd,Childrens Services,Children's Services,Living With Formal Support,14/04/2023,"1,936.39"
5489608,SafeNet Domestic Abuse Services Ltd,Childrens Services,Children's Services,Living With Formal Support,14/04/2023,"1,936.39"
5489618,Inspired Spaces (ProjectCo1) LTD,Asset & Investment Partnership Management,Growth,PFI FM Fees and Insurance Costs,24/05/2023,"102,659.70"
5489627,INSPIREDSPACES TAMESIDE (PROJECTCO2) LTD,Asset & Investment Partnership Management,Growth,PFI FM Fees and Insurance Costs,24/05/2023,"8,161.64"
5490188,Complex Care Professionals Ltd,Adult Social Care,Adults,Homecare Fees,25/04/2023,"1,253.12"
5490189,Complex Care Professionals Ltd,Adult Social Care,Adults,Homecare Fees,25/04/2023,"1,029.00"
5490191,Complex Care Professionals Ltd,Adult Social Care,Adults,Homecare Fees,25/04/2023,"1,566.40"
5490476,Great Minds Together Ltd,Childrens Services,Children's Services,Childrens Homes Outside Local Authority Fees,09/05/2023,"6,410.71"
5490659,Imail Comms Limited,Exchequer,Governance,Printing And Stationery,01/06/2023,"4,351.50"
5491058,MANCHESTER CITY COUNCIL,Childrens Services,Children's Services,Foster Care Placement With Connected Person,02/06/2023,"2,297.29"
5491142,Imail Comms Limited,Adult Social Care,Adults,Printing And Stationery,06/04/2023,714.61
5491555,Your Chapter Limited,Childrens Services,Children's Services,Foster Carer Agency Fees,23/06/2023,"3,627.67"
5491565,SAAIL,Childrens Services,Children's Services,Living With Formal Support,25/04/2023,"4,135.88"
5491611,Your Chapter Limited,Childrens Services,Children's Services,Foster Carer Agency Fees,06/04/2023,"5,325.49"
5491615,Your Chapter Limited,Childrens Services,Children's Services,Foster Carer Agency Fees,19/05/2023,"2,478.93"
5491617,Your Chapter Limited,Childrens Services,Children's Services,Foster Carer Agency Fees,19/05/2023,"4,044.57"
5491624,Your Chapter Limited,Childrens Services,Children's Services,Foster Carer Agency Fees,19/05/2023,"5,918.83"
5491679,Inicio Group Ltd,(blank),(blank),Living With Formal Support,17/05/2023,"5,292.13"
5491791,TAMESIDE AND GLOSSOP INTEGRATED CARE NHS FOUNDATION TRUST,Hosted Services,Hosted Services,Professional Services,27/04/2023,"2,103,625.14"
5491793,TAMESIDE AND GLOSSOP INTEGRATED CARE NHS FOUNDATION TRUST,Adult Social Care,Adults,External Secondments,09/05/2023,"4,029.49"
5491840,CPC,Digital Tameside,Finance & IT,IT Equipment,03/04/2023,647
5491854,ANIMAL WARDENS LTD,Operations and Neighbourhoods,Operations and Neighbourhoods,Professional Consultancy Services,03/04/2023,621
5491990,Furniture Resource Centre Ltd,Operations and Neighbourhoods,Operations and Neighbourhoods,"Fixtures, Fittings & Furniture Purchase",03/04/2023,662.72
5491993,ANIMAL WARDENS LTD,Operations and Neighbourhoods,Operations and Neighbourhoods,Professional Consultancy Services,03/04/2023,750
5492022,XMA LIMITED,Digital Tameside,Finance & IT,IT Equipment,03/04/2023,"19,155.83"
5492027,Beacon Counselling,People and Workforce Development,Governance,Professional Medical Services,05/04/2023,"2,880.00"
5492028,ANIMAL WARDENS LTD,Operations and Neighbourhoods,Operations and Neighbourhoods,Professional Consultancy Services,03/04/2023,621
5492042,WJS Construction Ltd,Housing,Director of Place,Mandatory Adaptations Grant (DFG),05/04/2023,"6,205.00"
5492058,ABL HEALTH,Childrens Services,Children's Services,Homecare Fees,05/04/2023,"5,100.00"
5492063,CPC,Digital Tameside,Finance & IT,IT Equipment,03/04/2023,647
5492068,Northumbria Healthcare NHS Foundation Trust,(blank),(blank),Debits,05/04/2023,"14,202.19"
5492069,Howes&Moose Removals Ltd,Childrens Services,Children's Services,"Fixtures,Fittings & Furniture Purchase (Service Users)",19/04/2023,"1,695.00"
5492154,SafeNet Domestic Abuse Services Ltd,Childrens Services,Children's Services,Living With Formal Support,05/04/2023,"1,749.00"
5492180,Better Breastfeeding Ltd,(blank),(blank),Training Course Costs,05/04/2023,"1,950.00"
5492186,Bright Opportunities,Adult Social Care,Adults,Day Care Fees,05/04/2023,"1,640.00"
5492188,Bright Opportunities,Adult Social Care,Adults,Day Care Fees,05/04/2023,"1,340.00"
5492193,Next Stage 'A Way Forward' Youth Development LTD,(blank),(blank),Living With Formal Support,05/04/2023,"4,690.00"
5492198,THE AIM PROJECT,Childrens Services,Children's Services,Training Course Costs,05/04/2023,"2,786.97"
5492202,LANCASHIRE COUNTY COUNCIL,Education,Children's Services,Transport Of Ola Pupils,05/04/2023,"2,310.00"
5492217,Foundation 92,Operations and Neighbourhoods,Operations and Neighbourhoods,Project Costs,05/04/2023,"8,750.00"
5492222,SCHNEIDER ELECTRIC LIMITED,Operations and Neighbourhoods,Operations and Neighbourhoods,General Equipment Repair & Maintenance,03/04/2023,"2,104.90"
5492225,SCHNEIDER ELECTRIC LIMITED,Operations and Neighbourhoods,Operations and Neighbourhoods,Computer Software Maintenance Costs,03/04/2023,"1,376.75"
5492237,G4S CASH SOLUTIONS (UK) LIMITED,Finance,Finance & IT,Security Services,05/04/2023,643.7
5492239,Olive Branch Fostering LTD,Childrens Services,Children's Services,Foster Carer Agency Fees,05/04/2023,"1,497.75"
5492241,Olive Branch Fostering LTD,Childrens Services,Children's Services,Foster Carer Agency Fees,05/04/2023,"1,482.77"
5492242,Home Grown Ginger,Operations and Neighbourhoods,Operations and Neighbourhoods,Professional Entertainment Services,05/04/2023,"1,026.65"
5492260,Three Angels Healthcare,Adult Social Care,Adults,Homecare Fees,05/04/2023,"7,046.00"
5492261,LAVAT CONSULTING LIMITED,Finance,Finance & IT,Subscriptions,05/04/2023,"3,350.00"
5492276,Optima Health and Social Care Ltd,Childrens Services,Children's Services,Homecare Fees,05/04/2023,623.5
5492278,SEASHELL TRUST,Childrens Services,Children's Services,Residential Home Short Stay Fees,05/04/2023,"2,805.00"
5492279,The Professional Association for the Vision Impairment Education Workforce T/A VIEW,Education,Children's Services,Training Course Costs,24/05/2023,710
5492280,ASKEWS  AND HOLTS LIBRARY SERVICES LTD,Operations and Neighbourhoods,Operations and Neighbourhoods,Purchase Books,05/04/2023,"1,760.58"
5492284,Nola House Tutoring,Education,Children's Services,Independent School Fees,05/04/2023,"1,680.00"
5492285,N-Compass Northwest,Adult Social Care,Adults,Professional Services,06/04/2023,"3,628.38"
5492287,Phoenix Abbey LTD,(blank),(blank),Childrens Homes Outside Local Authority Fees,05/04/2023,"4,500.00"
5492289,YOUNG PEOPLE FIRST LIMITED,(blank),(blank),Living With Formal Support,05/04/2023,"1,275.00"
5492289,YOUNG PEOPLE FIRST LIMITED,(blank),(blank),Semi independent - Weekly Living Allowances,05/04/2023,61.05
5492290,TURNER GROUNDSCARE,Operations and Neighbourhoods,Operations and Neighbourhoods,General Materials,05/04/2023,608.92
5492292,MBL SEMINARS LIMITED,GMPF (FX),GMPF (FX),Training Course Costs,05/04/2023,295
5492292,MBL SEMINARS LIMITED,Governance,Governance,Training Course Costs,05/04/2023,295
5492293,BEDSPACE RESOURCE LTD,Adult Social Care,Adults,Residential Home Long Stay Fees,05/04/2023,"1,500.00"
5492295,DOMAIN CARE NORTH WEST LTD,Adult Social Care,Adults,Day Care Fees,05/04/2023,"1,335.32"
5492325,Excel Fostering Limited,Childrens Services,Children's Services,Foster Carer Agency Fees,06/04/2023,"3,968.62"
5492327,Redacted Supplier,Childrens Services,Children's Services,Childrens Homes Outside Local Authority Fees,06/04/2023,"13,000.12"
5492332,Excel Fostering Limited,Childrens Services,Children's Services,Foster Carer Agency Fees,06/04/2023,"1,280.20"
5492342,CROMWELL POLYTHENE LTD.,Operations and Neighbourhoods,Operations and Neighbourhoods,Purchase Plastic Sacks,06/04/2023,"5,635.20"
5492343,Furniture Resource Centre Ltd,Operations and Neighbourhoods,Operations and Neighbourhoods,"Fixtures, Fittings & Furniture Purchase",06/04/2023,"1,135.88"
5492345,Redacted Supplier,Operations and Neighbourhoods,Operations and Neighbourhoods,Professional Entertainment Services,06/04/2023,979.28
5492346,Synectics Security Limited,Digital Tameside,Finance & IT,Computer Equipment,23/06/2023,"1,701.78"
5492348,The Trafford College Group,Education,Children's Services,Post 16 FE College Fees,06/04/2023,"3,517.81"
5492350,Go To Investments Ltd t/a HALA GUEST HOUSE,(blank),(blank),Other Accommodation Related Costs,06/04/2023,"5,957.00"
5492351,Redacted Supplier,(blank),(blank),"Activity (Materials, Trips)",06/04/2023,500
5492354,Intraquest CIC,Childrens Services,Children's Services,Professional Services,06/04/2023,715
5492358,Redacted Supplier,Education,Children's Services,Professional Services,06/04/2023,825
5492361,Redacted Supplier,Education,Children's Services,Professional Services,06/04/2023,825
5492368,Redacted Supplier,Childrens Services,Children's Services,Childrens Homes Outside Local Authority Fees,06/04/2023,"26,350.00"
5492369,Redacted Supplier,Childrens Services,Children's Services,Childrens Homes Outside Local Authority Fees,06/04/2023,"5,100.00"
5492370,GREATER MANCHESTER COMBINED AUTHORITY,(blank),(blank),Highway Construction,06/04/2023,"4,260.64"
5492373,MOTT MACDONALD LIMITED,(blank),(blank),External  Consultants,06/04/2023,"8,150.00"
5492378,ULVERSCROFT LARGE PRINT  BOOKS LTD,Operations and Neighbourhoods,Operations and Neighbourhoods,Purchase Books,06/04/2023,"1,341.06"
5492387,Milk Education Limited,Education,Children's Services,Agency Staff,06/04/2023,"1,042.50"
5492389,Tynetec a group brand of Legrand Electric Ltd,Adult Social Care,Adults,IT Equipment,06/04/2023,"4,200.00"
5492394,LDM UK Ltd,Policy and Communications,Governance,"Marketing, Publicity and Recruitment",06/04/2023,"5,272.00"
5492400,Martin Walsh t/a MW Decorating,Adult Social Care,Adults,"Fixtures, Fittings & Furniture Purchase",06/04/2023,"2,035.00"
5492407,ELECTORAL REFORM SERVICES,Governance,Governance,Printing And Stationery,06/04/2023,"1,288.32"
5492422,BANNER GROUP LIMITED,(blank),(blank),Purchase General Office Equipment,06/04/2023,512.64
5492428,Exclusec Security Solutions Ltd,Operations and Neighbourhoods,Operations and Neighbourhoods,Security Services,06/04/2023,"19,786.20"
5492433,I Care GB Ltd,Adult Social Care,Adults,Homecare Fees,06/04/2023,"20,039.21"
5492434,AECOM LTD,(blank),(blank),External  Consultants,06/04/2023,"22,463.51"
5492437,PAYPARTNERS LTD (MONTHLY),Childrens Services,Children's Services,Direct Payments,06/04/2023,651.35
5492443,Compass Fostering North LTD,Childrens Services,Children's Services,Foster Carer Agency Fees,06/04/2023,"32,685.80"
5492444,Compass Fostering North LTD,Childrens Services,Children's Services,Foster Carer Agency Fees,06/04/2023,"33,656.65"
5492445,Compass Fostering North LTD,Childrens Services,Children's Services,Foster Carer Agency Fees,06/04/2023,"3,337.46"
5492446,Compass Fostering North LTD,Childrens Services,Children's Services,Foster Carer Agency Fees,06/04/2023,"3,764.33"
5492447,Compass Fostering North LTD,Childrens Services,Children's Services,Foster Carer Agency Fees,06/04/2023,"3,355.13"
5492448,Compass Fostering North LTD,Childrens Services,Children's Services,Foster Carer Agency Fees,06/04/2023,"3,764.33"
5492449,Compass Fostering North LTD,Childrens Services,Children's Services,Foster Carer Agency Fees,06/04/2023,"3,173.78"
5492450,Compass Fostering North LTD,Childrens Services,Children's Services,Foster Carer Agency Fees,06/04/2023,"3,764.33"
5492451,Compass Fostering North LTD,Childrens Services,Children's Services,Foster Carer Agency Fees,06/04/2023,"3,216.56"
5492452,Compass Fostering North LTD,Childrens Services,Children's Services,Foster Carer Agency Fees,06/04/2023,"3,255.66"
5492453,Compass Fostering North LTD,Childrens Services,Children's Services,Foster Carer Agency Fees,06/04/2023,"3,188.35"
5492454,Compass Fostering North LTD,Childrens Services,Children's Services,Foster Carer Agency Fees,06/04/2023,"3,427.10"
5492455,Compass Fostering North LTD,Childrens Services,Children's Services,Foster Carer Agency Fees,06/04/2023,"3,108.68"
5492456,Compass Fostering North LTD,Childrens Services,Children's Services,Foster Carer Agency Fees,06/04/2023,"3,333.04"
5492457,Compass Fostering North LTD,Childrens Services,Children's Services,Foster Carer Agency Fees,06/04/2023,"3,432.94"
5492459,CITY CARE SOLUTIONS LTD,Adult Social Care,Adults,Homecare Fees,06/04/2023,"3,129.35"
5492461,Redacted Supplier,Corporate Costs,Corporate Costs,Professional Services,06/04/2023,"1,364.50"
5492479,ACORN CARE & EDUCATION LTD (SALES),Adult Social Care,Adults,Residential Home Short Stay Fees,06/04/2023,"19,153.57"
5492481,Redacted Supplier,Education,Children's Services,Post 16 FE College Fees,06/04/2023,"25,103.10"
5492482,Redacted Supplier,Education,Children's Services,Other Local Authorities Fees,06/04/2023,"49,563.92"
5492483,Redacted Supplier,Education,Children's Services,Other Local Authorities Fees,06/04/2023,"24,572.26"
5492484,Redacted Supplier,Education,Children's Services,Other Local Authorities Fees,06/04/2023,"31,297.26"
5492485,Inicio Group Ltd,(blank),(blank),Living With Formal Support,17/05/2023,"5,037.17"
5492487,Chrysalis Community Group Limited T/A Medacs Healthcare,Adult Social Care,Adults,Homecare Fees,21/04/2023,"13,252.19"
5492488,CARE NEEDS LTD,Adult Social Care,Adults,Homecare Fees,06/04/2023,"5,700.00"
5492506,ALPHA BIOLABS,Childrens Services,Children's Services,Professional Medical Services,06/04/2023,818.4
5492516,SALISBURY SUPPORT 4 AUTISM,Adult Social Care,Adults,Joint Loans Store Fee,06/04/2023,"13,179.88"
5492517,LONICERA RESOURCES LTD,Adult Social Care,Adults,Professional Services,06/04/2023,"6,745.35"
5492519,LONICERA RESOURCES LTD,Adult Social Care,Adults,Professional Services,06/04/2023,"2,353.75"
5492520,ALPHA BIOLABS,Childrens Services,Children's Services,Professional Medical Services,06/04/2023,818.4
5492528,SWIIS FOSTER CARE LTD,Childrens Services,Children's Services,Foster Carer Agency Fees,06/04/2023,"1,694.98"
5492533,Imail Comms Limited,Operations and Neighbourhoods,Operations and Neighbourhoods,Event Related Activity,12/04/2023,"3,932.55"
5492535,Redacted Supplier,Childrens Services,Children's Services,Nursery Services,06/04/2023,623.25
5492539,VALE  ENGINEERING(YORK)LTD,Operations and Neighbourhoods,Operations and Neighbourhoods,Professional Weedspraying Services,06/04/2023,"10,500.00"
5492542,I Care GB Ltd,Adult Social Care,Adults,Homecare Fees,06/04/2023,"20,039.21"
5492548,CARE NEEDS LTD,Adult Social Care,Adults,Homecare Fees,06/04/2023,"5,250.00"
5492549,CARE NEEDS LTD,Adult Social Care,Adults,Homecare Fees,06/04/2023,"4,987.50"
5492550,CARE NEEDS LTD,Adult Social Care,Adults,Homecare Fees,06/04/2023,"4,875.00"
5492556,Future Focused Care,Childrens Services,Children's Services,Childrens Homes Outside Local Authority Fees,06/04/2023,"19,906.34"
5492558,POSITIVE STEPS OLDHAM,Place,Growth,Professional Services,06/04/2023,"64,109.59"
5492559,POSITIVE STEPS OLDHAM,Place,Growth,Professional Services,06/04/2023,"72,739.73"
5492565,Supporting Futures LTD,Childrens Services,Children's Services,Childrens Homes Outside Local Authority Fees,06/04/2023,"22,014.88"
5492566,Hydrock Consultants Ltd,Place,Growth,Professional Consultancy Services,06/04/2023,987.5
5492567,Aaban Partnership Limited,Childrens Services,Children's Services,Childrens Homes Outside Local Authority Fees,06/04/2023,"2,687.14"
5492568,Precision Resource Group Ltd t/a Panoramic Associates,Education,Children's Services,Agency Staff,06/04/2023,"2,350.00"
5492569,Her Majesty's Prison and Probation Service (National Offenders Management Service),Childrens Services,Children's Services,Other Accommodation Related Costs,06/04/2023,"9,517.00"
5492589,Furniture Resource Centre Ltd,Operations and Neighbourhoods,Operations and Neighbourhoods,"Fixtures, Fittings & Furniture Purchase",06/04/2023,916.15
5492592,Redacted Supplier,Education,Children's Services,Independent School Fees,06/04/2023,"10,373.00"
5492599,ORANGE PSYCHOLOGY LTD,Education,Children's Services,Professional Services,06/04/2023,"7,150.00"
5492603,DURHAM COUNTY COUNCIL,Childrens Services,Children's Services,Childrens Homes Outside Local Authority Fees,06/04/2023,"35,084.00"
5492605,IDOX SOFTWARE LIMITED,Digital Tameside,Finance & IT,Professional Services,06/04/2023,"2,100.00"
5492608,Holden Knight Healthcare Temp Ltd,Childrens Services,Children's Services,Living With Formal Support,06/04/2023,"2,609.25"
5492610,XMA LIMITED,Digital Tameside,Finance & IT,IT Equipment,06/04/2023,"1,460.10"
5492611,Rainbow Fostering Services Limited,Childrens Services,Children's Services,Foster Carer Agency Fees,06/04/2023,"3,981.28"
5492614,ADULLAM HOMES HOUSING ASSOC LTD,Operations and Neighbourhoods,Operations and Neighbourhoods,Supporting People Gross Contract,03/05/2023,"63,250.00"
5492616,RIGHT - STEP LIMITED T/A RSL,Childrens Services,Children's Services,Living With Formal Support,06/04/2023,"5,092.86"
5492617,Citywall,Education,Children's Services,Independent School Fees,06/04/2023,624
5492626,Redacted Supplier,Education,Children's Services,Other Local Authorities Fees,06/04/2023,"6,958.00"
5492630,SMS Coaching LTD,Education,Children's Services,Independent School Fees,06/04/2023,"9,150.00"
5492641,WILDE CONSULTING ENGINEERS,District Assemblies,"Community,Environmental,Adult and Health Services",Engineers -External,06/04/2023,558
5492642,Prospere Learning Trust,Education,Children's Services,Other Local Authorities Fees,06/04/2023,"23,975.00"
5492648,Redacted Supplier,Education,Children's Services,Independent School Fees,06/04/2023,"1,875.00"
5492649,WILDE CONSULTING ENGINEERS,(blank),(blank),Engineers -External,06/04/2023,"1,065.14"
5492657,HARDSCAPE PRODUCTS LTD,Engineers Client,Director of Place,Highway Construction,06/04/2023,"26,413.16"
5492658,Oxford Innovation LTD - ASHTON OLD BATHS,Place,Growth,Professional Services,06/04/2023,"33,366.54"
5492660,CITY LIFT SERVICES (NW) LTD,Adult Social Care,Adults,General Equipment Repair & Maintenance,06/04/2023,"1,140.00"
5492661,KEYS PCE LTD,Education,Children's Services,Independent School Fees,06/04/2023,"3,339.00"
5492662,KEYS PCE LTD,Education,Children's Services,Independent School Fees,06/04/2023,"3,784.20"
5492669,Prospere Learning Trust,Education,Children's Services,Other Local Authorities Fees,06/04/2023,"4,783.00"
5492672,UNITED UTILITIES,Place,Growth,Water (Metered and Rates),06/04/2023,"1,056.49"
5492673,K P DODD CONSTRUCTION LTD,Housing,Director of Place,Mandatory Adaptations Grant (DFG),06/04/2023,"7,796.35"
5492715,ROUTES HEALTHCARE (NORTH) LIMITED,Adult Social Care,Adults,Homecare Fees,06/04/2023,"5,708.02"
5492718,Mark Hancock Limited,Education,Children's Services,Professional Services,06/04/2023,"3,300.00"
5492724,Sli.do s. r. o.,Digital Tameside,Finance & IT,Computer Software,06/04/2023,570
5492725,Skills and Work Solutions Ltd t/a The Growth Company,Education,Children's Services,Post 16 FE College Fees,06/04/2023,"10,528.30"
5492730,K P DODD CONSTRUCTION LTD,Housing,Director of Place,Mandatory Adaptations Grant (DFG),05/04/2023,"3,247.44"
5492731,Redacted Supplier,Education,Children's Services,Professional Services,06/04/2023,"1,100.00"
5492735,CITY LIFT SERVICES (NW) LTD,Adult Social Care,Adults,General Equipment Repair & Maintenance,06/04/2023,"1,160.00"
5492736,Northern Community Pathways Limited,Adult Social Care,Adults,Homecare Fees,06/04/2023,"2,196.00"
5492739,APS Group,Operations and Neighbourhoods,Operations and Neighbourhoods,Professional Medical Services,06/04/2023,"1,047.77"
5492742,Redacted Supplier,Education,Children's Services,Training Course Costs,06/04/2023,"1,000.00"
5492745,National Youth Advocacy Service,Childrens Services,Children's Services,Professional Services,06/04/2023,"33,336.67"
5492746,ROUTES HEALTHCARE (NORTH) LIMITED,Adult Social Care,Adults,Homecare Fees,06/04/2023,"5,568.39"
5492747,WEIGHTMANS LLP,Finance,Finance & IT,Public Liability Insurance,06/04/2023,"3,098.55"
5492751,Imail Comms Limited,Exchequer,Governance,Printing And Stationery,06/04/2023,"3,567.82"
5492760,FOSTER CARE ASSOCIATES LTD (FCA),Childrens Services,Children's Services,Foster Carer Agency Fees,06/04/2023,"4,029.69"
5492761,FOSTER CARE ASSOCIATES LTD (FCA),Childrens Services,Children's Services,Foster Carer Agency Fees,06/04/2023,"3,719.24"
5492762,FOSTER CARE ASSOCIATES LTD (FCA),Childrens Services,Children's Services,Foster Carer Agency Fees,06/04/2023,"3,719.24"
5492764,FOSTER CARE ASSOCIATES LTD (FCA),Childrens Services,Children's Services,Foster Carer Agency Fees,12/04/2023,"3,640.02"
5492765,FOSTER CARE ASSOCIATES LTD (FCA),Childrens Services,Children's Services,Foster Carer Agency Fees,06/04/2023,"3,640.02"
5492766,FOSTER CARE ASSOCIATES LTD (FCA),Childrens Services,Children's Services,Foster Carer Agency Fees,06/04/2023,"3,934.21"
5492767,FOSTER CARE ASSOCIATES LTD (FCA),Childrens Services,Children's Services,Foster Carer Agency Fees,06/04/2023,"6,233.70"
5492768,FOSTER CARE ASSOCIATES LTD (FCA),Childrens Services,Children's Services,Foster Carer Agency Fees,06/04/2023,"4,173.53"
5492769,FOSTER CARE ASSOCIATES LTD (FCA),Childrens Services,Children's Services,Foster Carer Agency Fees,06/04/2023,"3,793.45"
5492770,CAPITA BUSINESS SERVICES LIMITED,Education,Children's Services,Computer Software Maintenance Costs,06/04/2023,"156,731.00"
5492771,Strategy for Change,Population Health,Population Health,Professional Services,06/04/2023,"2,400.00"
5492772,Redacted Supplier,Education,Children's Services,Professional Services,06/04/2023,"1,650.00"
5492774,Redacted Supplier,Education,Children's Services,Professional Services,06/04/2023,"1,100.00"
5492775,Chrysalis Community Group Limited T/A Medacs Healthcare,Adult Social Care,Adults,Homecare Fees,21/04/2023,"12,584.30"
5492776,Redacted Supplier,Education,Children's Services,Professional Services,06/04/2023,550
5492777,Redacted Supplier,Education,Children's Services,Professional Services,06/04/2023,"1,650.00"
5492780,XMA LIMITED,GMPF (FX),GMPF (FX),IT Equipment,06/04/2023,"3,887.76"
5492788,CAPITA BUSINESS SERVICES LIMITED,Digital Tameside,Finance & IT,Computer Software Maintenance Costs,06/04/2023,"6,799.33"
5492788,CAPITA BUSINESS SERVICES LIMITED,Exchequer,Governance,Computer Software Maintenance Costs,06/04/2023,"146,401.50"
5492788,CAPITA BUSINESS SERVICES LIMITED,Operations and Neighbourhoods,Operations and Neighbourhoods,Computer Software Maintenance Costs,06/04/2023,"10,800.00"
5492789,Oticon Ltd,Education,Children's Services,Educational Equipment,06/04/2023,"2,590.00"
5492797,Foundations Plus,Adult Social Care,Adults,Residential Home Long Stay Fees,11/04/2023,"4,985.00"
5492798,Foundations Plus,Adult Social Care,Adults,Residential Home Long Stay Fees,11/04/2023,"3,980.00"
5492897,J HOPKINS CONTRACTORS  LTD,(blank),(blank),Highway Construction,05/04/2023,"182,301.38"
5492898,The Networking People (TNP) Ltd,Digital Tameside,Finance & IT,Professional Services,12/04/2023,"1,100.00"
5492899,PROFILE SECURITY SERVICES LIMITED,Operations and Neighbourhoods,Operations and Neighbourhoods,Security Services,12/04/2023,"6,049.68"
5492900,PROFILE SECURITY SERVICES LIMITED,Operations and Neighbourhoods,Operations and Neighbourhoods,Security Services,12/04/2023,"3,792.24"
5492901,Zeno Ltd,Adult Social Care,Adults,Homecare Fees,12/04/2023,"10,800.26"
5492904,GRANART LIMITED,Operations and Neighbourhoods,Operations and Neighbourhoods,Plaques,12/04/2023,664
5492906,CARETECH COMMUNITY SERVICES LIMITED,Adult Social Care,Adults,Residential Home Long Stay Fees,21/04/2023,"3,764.95"
5492908,CARETECH COMMUNITY SERVICES LIMITED,Adult Social Care,Adults,Residential Home Long Stay Fees,21/04/2023,"3,764.95"
5492909,Furniture Resource Centre Ltd,Operations and Neighbourhoods,Operations and Neighbourhoods,"Fixtures, Fittings & Furniture Purchase",12/04/2023,"1,220.57"
5492911,CARETECH COMMUNITY SERVICES LIMITED,Adult Social Care,Adults,Residential Home Long Stay Fees,21/04/2023,"3,764.95"
5492912,CARETECH COMMUNITY SERVICES LIMITED,Adult Social Care,Adults,Residential Home Long Stay Fees,21/04/2023,"3,764.95"
5492914,CARETECH COMMUNITY SERVICES LIMITED,Adult Social Care,Adults,Residential Home Long Stay Fees,21/04/2023,"3,400.60"
5492915,CARETECH COMMUNITY SERVICES LIMITED,Adult Social Care,Adults,Residential Home Long Stay Fees,21/04/2023,"3,643.50"
5492916,CARETECH COMMUNITY SERVICES LIMITED,Adult Social Care,Adults,Residential Home Long Stay Fees,21/04/2023,"3,643.50"
5492917,CARETECH COMMUNITY SERVICES LIMITED,Adult Social Care,Adults,Residential Home Long Stay Fees,21/04/2023,"3,764.95"
5492918,CARETECH COMMUNITY SERVICES LIMITED,Adult Social Care,Adults,Residential Home Long Stay Fees,21/04/2023,"3,764.95"
5492919,CARETECH COMMUNITY SERVICES LIMITED,Adult Social Care,Adults,Residential Home Long Stay Fees,21/04/2023,"2,429.00"
5492920,CARETECH COMMUNITY SERVICES LIMITED,Adult Social Care,Adults,Residential Home Long Stay Fees,21/04/2023,"3,764.95"
5492921,CARETECH COMMUNITY SERVICES LIMITED,Adult Social Care,Adults,Residential Home Long Stay Fees,21/04/2023,"3,643.50"
5492922,ASKEWS  AND HOLTS LIBRARY SERVICES LTD,Operations and Neighbourhoods,Operations and Neighbourhoods,Purchase Books,12/04/2023,"2,614.24"
5492933,Vestacare (UK) Limited,Adult Social Care,Adults,Day Care Fees,12/04/2023,"1,272.00"
5492935,Vestacare (UK) Limited,Adult Social Care,Adults,Day Care Fees,19/04/2023,"1,272.00"
5492937,HARDSCAPE PRODUCTS LTD,Engineers Client,Director of Place,Highway Construction,06/04/2023,"33,621.00"
5492940,SYMOLOGY LIMITED,Operations and Neighbourhoods,Operations and Neighbourhoods,Computer Software,12/04/2023,"36,678.77"
5492947,Anglian Water Business (National) t/a Wave Utilities,Place,Growth,Water (Metered and Rates),12/04/2023,"65,768.32"
5492948,British Telecommunications PLC,Digital Tameside,Finance & IT,Telephone Landline Costs,11/04/2023,"1,799.61"
5492951,TRANSPORT FOR GREATER MANCHESTER,(blank),(blank),Fees,12/04/2023,"3,041.00"
5492953,CARRICK SIGNS LTD,(blank),(blank),Printing And Stationery,12/04/2023,502
5492954,CARRICK SIGNS LTD,(blank),(blank),Printing And Stationery,12/04/2023,"1,106.00"
5492961,YOUNG PEOPLE FIRST LIMITED,(blank),(blank),Living With Formal Support,12/04/2023,"1,275.00"
5492961,YOUNG PEOPLE FIRST LIMITED,(blank),(blank),Semi independent - Weekly Living Allowances,12/04/2023,61.05
5492962,CREATIVE SUPPORT LTD,Adult Social Care,Adults,Independent Sector Care Fees,03/04/2023,"89,008.07"
5492967,Pea Green Ltd,Place,Growth,Professional Services,12/04/2023,"4,750.00"
5492969,UNICEF BABY FRIENDLY INITIATIVE,(blank),(blank),Fees,12/04/2023,"1,500.00"
5492970,Global Grooves,(blank),(blank),Professional Entertainment Services,12/04/2023,"1,000.00"
5492972,Safe Hands Care & Support Services,(blank),(blank),Living With Formal Support,12/04/2023,"7,115.43"
5492973,Safe Hands Care & Support Services,(blank),(blank),Living With Formal Support,12/04/2023,"6,358.90"
5492976,Safe Hands Care & Support Services,(blank),(blank),Living With Formal Support,12/04/2023,"8,213.57"
5492977,CITY CARE SOLUTIONS LTD,Adult Social Care,Adults,Homecare Fees,12/04/2023,"2,968.88"
5492978,N.W.A Housing Ltd,(blank),(blank),Non-Authority Accommodation Rental,12/04/2023,"9,604.98"
5492979,N.W.A Housing Ltd,(blank),(blank),Non-Authority Accommodation Rental,12/04/2023,"9,427.11"
5492980,N.W.A Housing Ltd,(blank),(blank),Non-Authority Accommodation Rental,12/04/2023,"10,138.59"
5492982,REGENDA LIMITED,Adult Social Care,Adults,Non-Authority Accommodation Rental,12/04/2023,"16,751.24"
5492983,REGENDA LIMITED,Adult Social Care,Adults,Non-Authority Accommodation Rental,12/04/2023,"2,287.31"
5492984,FOUNTAINS & FEATURES LIMITED,Operations and Neighbourhoods,Operations and Neighbourhoods,General Materials,12/04/2023,"5,010.00"
5492987,THE UNIVERSITY OF MANCHESTER,Education,Children's Services,Training Course Costs,12/04/2023,"33,230.00"
5493019,BOOTS UK LTD,Population Health,Population Health,Local Enhanced Services,24/05/2023,"1,154.65"
5493023,KAYAN SOCIAL CARE LIMITED,Adult Social Care,Adults,Professional Services,12/04/2023,"1,432.80"
5493024,KAYAN SOCIAL CARE LIMITED,Adult Social Care,Adults,Professional Services,12/04/2023,"1,433.80"
5493033,Redacted Supplier,Education,Children's Services,Professional Services,28/04/2023,"1,348.02"
5493037,Safe Hands Care & Support Services,Childrens Services,Children's Services,Living With Formal Support,23/05/2023,"3,277.13"
5493043,KAYAN SOCIAL CARE LIMITED,Adult Social Care,Adults,Professional Services,12/04/2023,"1,430.70"
5493044,Safe Hands Care & Support Services,Childrens Services,Children's Services,Living With Formal Support,23/05/2023,"2,959.99"
5493045,Safe Hands Care & Support Services,(blank),(blank),Living With Formal Support,13/04/2023,"7,948.63"
5493046,Vernon House T/A Kedleston (WoodGrove Childcare) Limited,Childrens Services,Children's Services,Childrens Homes Outside Local Authority Fees,24/05/2023,"8,400.00"
5493053,MUSEUMS ASSOCIATION,Operations and Neighbourhoods,Operations and Neighbourhoods,Subscriptions,12/04/2023,638.12
5493054,Safe Hands Care & Support Services,(blank),(blank),Living With Formal Support,13/04/2023,"7,418.72"
5493059,Safe Hands Care & Support Services,(blank),(blank),Living With Formal Support,13/04/2023,"7,418.71"
5493060,Safe Hands Care & Support Services,(blank),(blank),Living With Formal Support,23/05/2023,"7,115.28"
5493061,Safe Hands Care & Support Services,(blank),(blank),Living With Formal Support,13/04/2023,"6,138.72"
5493062,Safe Hands Care & Support Services,(blank),(blank),Living With Formal Support,23/05/2023,"6,426.70"
5493064,Safe Hands Care & Support Services,(blank),(blank),Living With Formal Support,13/04/2023,"6,426.84"
5493066,Safe Hands Care & Support Services,(blank),(blank),Living With Formal Support,13/04/2023,"6,796.44"
5493068,P Casey & Co Limited,(blank),(blank),Refurbish Accommodation Works,12/04/2023,"139,233.83"
5493082,Milk Education Limited,Education,Children's Services,Agency Staff,12/04/2023,"1,042.50"
5493110,JC APPLICATIONS DEVELOPMENT,Finance,Finance & IT,Computer Software Maintenance Costs,13/04/2023,"1,370.00"
5493111,JC APPLICATIONS DEVELOPMENT,Finance,Finance & IT,Computer Software Maintenance Costs,13/04/2023,"6,199.00"
5493112,AMAZON COM INT'L SALES INC.,Childrens Services,Children's Services,Purchase General Office Equipment,13/04/2023,715.83
5493117,ALPHA BIOLABS,Childrens Services,Children's Services,Professional Medical Services,13/04/2023,587.3
5493118,Horizon Supported accommodation Ltd (formerly Key 2 Futures),Childrens Services,Children's Services,Living With Formal Support,13/04/2023,"3,835.02"
5493120,CARELINE HOMECARE LTD,Adult Social Care,Adults,Homecare Fees,04/04/2023,"1,101.36"
5493125,LEXISNEXIS UK,Governance,Governance,Text Books Periodicals and Newspapers,13/04/2023,583
5493132,Indie 16 Limited,(blank),(blank),Living With Formal Support,13/04/2023,"3,542.86"
5493135,Phoenix Abbey LTD,(blank),(blank),Childrens Homes Outside Local Authority Fees,13/04/2023,"4,500.00"
5493139,Go To Investments Ltd t/a HALA GUEST HOUSE,(blank),(blank),Other Accommodation Related Costs,13/04/2023,"6,342.00"
5493141,Made by Mortals,(blank),(blank),Event Related Activity,13/04/2023,"6,000.00"
5493151,Furniture Resource Centre Ltd,Operations and Neighbourhoods,Operations and Neighbourhoods,"Fixtures, Fittings & Furniture Purchase",13/04/2023,"1,284.25"
5493160,Redacted Supplier,Operations and Neighbourhoods,Operations and Neighbourhoods,Professional Services,13/04/2023,630
5493167,LG FUTURES LTD,Finance,Finance & IT,Subscriptions,13/04/2023,"11,590.00"
5493176,STOCKPORT CP  SOCIETY,Adult Social Care,Adults,Day Care Fees,13/04/2023,"1,298.88"
5493179,STOCKPORT CP  SOCIETY,Adult Social Care,Adults,Day Care Fees,14/04/2023,"1,298.88"
5493192,Advantage Healthcare Limited,Adult Social Care,Adults,Homecare Fees,13/04/2023,"1,628.00"
5493196,Complex Care Professionals Ltd,Adult Social Care,Adults,Homecare Fees,04/04/2023,"1,245.52"
5493198,Complex Care Professionals Ltd,Adult Social Care,Adults,Homecare Fees,04/04/2023,685.35
5493200,Complex Care Professionals Ltd,Adult Social Care,Adults,Homecare Fees,04/04/2023,"2,058.00"
5493203,Redacted Supplier,Education,Children's Services,Transport Of Ola Pupils,10/05/2023,960
5493206,Redacted Supplier,Education,Children's Services,Transport Of Post 16 Pupils,10/05/2023,780
5493209,Redacted Supplier,Operations and Neighbourhoods,Operations and Neighbourhoods,Hired Transport,10/05/2023,"1,462.00"
5493216,Redacted Supplier,Education,Children's Services,Professional Services,13/04/2023,"1,650.00"
5493277,WEIGHTMANS LLP,Education,Children's Services,Professional Services,14/04/2023,"3,386.00"
5493281,WILDE CONSULTING ENGINEERS,(blank),(blank),Engineers -External,13/04/2023,"1,166.96"
5493282,WILDE CONSULTING ENGINEERS,(blank),(blank),Engineers -External,13/04/2023,"1,080.43"
5493285,WILDE CONSULTING ENGINEERS,District Assemblies,"Community,Environmental,Adult and Health Services",Engineers -External,12/04/2023,"1,226.54"
5493287,FAMILY CARE FOSTERING LTD,Childrens Services,Children's Services,Foster Carer Agency Fees,14/04/2023,"3,862.07"
5493290,ORCHID CELLMARK LTD,Childrens Services,Children's Services,Professional Medical Services,14/04/2023,705
5493294,FAMILY CARE FOSTERING LTD,Childrens Services,Children's Services,Foster Carer Agency Fees,14/04/2023,"3,662.34"
5493295,PUBLIC-I GROUP LTD,GMPF (FX),GMPF (FX),Computer Hardware Maintenance Costs,14/04/2023,"3,014.29"
5493304,N A Brown Ltd,Operations and Neighbourhoods,Operations and Neighbourhoods,General Materials,14/04/2023,"2,633.24"
5493306,Meg Boustead t/a Meg Boustead Ltd,Governance,Governance,Professional Consultancy Services,14/04/2023,"2,080.00"
5493312,XMA LIMITED,Digital Tameside,Finance & IT,IT Equipment,14/04/2023,"4,710.00"
5493316,ORANGE PSYCHOLOGY LTD,Education,Children's Services,Professional Services,14/04/2023,"4,400.00"
5493321,Precision Resource Group Ltd t/a Panoramic Associates,Education,Children's Services,Agency Staff,14/04/2023,"2,350.00"
5493326,Constellia Public Ltd,Place,Growth,Professional Services,14/04/2023,"68,640.00"
5493331,SWIIS FOSTER CARE LTD,Childrens Services,Children's Services,Foster Carer Agency Fees,14/04/2023,"1,694.98"
5493332,MASSEY & HARRIS LTD,Operations and Neighbourhoods,Operations and Neighbourhoods,General Equipment Repair & Maintenance,14/04/2023,"1,350.00"
5493333,K P DODD CONSTRUCTION LTD,Housing,Director of Place,Minor Works - Building,14/04/2023,"1,500.00"
5493334,K P DODD CONSTRUCTION LTD,Housing,Director of Place,Minor Works - Building,14/04/2023,"1,000.00"
5493336,K P DODD CONSTRUCTION LTD,Housing,Director of Place,Minor Works - Building,14/04/2023,"1,450.00"
5493338,K P DODD CONSTRUCTION LTD,Housing,Director of Place,Minor Works - Building,14/04/2023,800
5493340,K P DODD CONSTRUCTION LTD,Housing,Director of Place,Minor Works - Building,14/04/2023,"1,000.00"
5493341,Fairfield Care Services,Adult Social Care,Adults,Day Care Fees,14/04/2023,"2,374.80"
5493343,West Yorkshire Support,Adult Social Care,Adults,Homecare Fees,14/04/2023,"24,257.20"
5493347,DARTINGTON HALL TRUST,Childrens Services,Children's Services,Training Course Costs,14/04/2023,"10,782.00"
5493348,MARTHALL TREE PRODUCTS LTD,Operations and Neighbourhoods,Operations and Neighbourhoods,General Materials,14/04/2023,"1,404.20"
5493352,TRAVELERS INSURANCE COMPANY LTD,Finance,Finance & IT,Public Liability Insurance,14/04/2023,"9,436.57"
5493358,NPOWER LIMITED,Operations and Neighbourhoods,Operations and Neighbourhoods,Electricity,14/04/2023,"153,004.95"
5493359,Shield Support Hub Limited,(blank),(blank),Living With Formal Support,14/04/2023,"6,421.42"
5493359,Shield Support Hub Limited,(blank),(blank),Semi independent - Weekly Living Allowances,14/04/2023,244.2
5493368,COMFORT CALL LIMITED,Adult Social Care,Adults,Homecare Fees,06/04/2023,"32,838.91"
5493369,CARELINE HOMECARE LTD,Adult Social Care,Adults,Homecare Fees,06/04/2023,"26,865.09"
5493373,CARELINE HOMECARE LTD,Adult Social Care,Adults,Homecare Fees,06/04/2023,"1,211.31"
5493380,TURNER GROUNDSCARE,Operations and Neighbourhoods,Operations and Neighbourhoods,General Equipment Repair & Maintenance,14/04/2023,697.8
5493390,CREATIVE IDEAS IN PRINT LTD,(blank),(blank),Printing And Stationery,14/04/2023,"1,195.00"
5493395,K P DODD CONSTRUCTION LTD,Housing,Director of Place,Minor Works - Building,14/04/2023,"1,475.00"
5493396,K P DODD CONSTRUCTION LTD,Housing,Director of Place,Minor Works - Building,14/04/2023,"1,462.00"
5493407,K P DODD CONSTRUCTION LTD,Housing,Director of Place,Mandatory Adaptations Grant (DFG),06/04/2023,"6,000.00"
5493429,HW Social Care Limited,Adult Social Care,Adults,Professional Services,11/04/2023,560.1
5493431,Pickering Psychology Services Limited,Childrens Services,Children's Services,Professional Child Services,14/04/2023,593.7
5493432,HW Social Care Limited,Adult Social Care,Adults,Professional Services,14/04/2023,578.8
5493433,HW Social Care Limited,Adult Social Care,Adults,Professional Services,11/04/2023,571.6
5493442,HC Assessment Ltd,Adult Social Care,Adults,Professional Services,14/04/2023,"2,321.35"
5493445,Chrysalis Community Group Limited T/A Medacs Healthcare,Adult Social Care,Adults,Homecare Fees,21/04/2023,"12,869.39"
5493446,Chrysalis Community Group Limited T/A Medacs Healthcare,Adult Social Care,Adults,Homecare Fees,21/04/2023,"28,631.78"
5493451,Pennine Medical Supplies Ltd T/A Pennine Workwear,Operations and Neighbourhoods,Operations and Neighbourhoods,Protective Clothing,14/04/2023,990
5493452,B&B Press (Parkgate) Ltd,(blank),(blank),Printing And Stationery,14/04/2023,"4,691.00"
5493453,CIPFA - PENNA (PENNA PLC),Finance,Finance & IT,Professional Consultancy Services,14/04/2023,"19,425.00"
5493454,CIPFA - PENNA (PENNA PLC),Finance,Finance & IT,Professional Consultancy Services,14/04/2023,"18,500.00"
5493455,NATIONAL FOSTERING AGENCY LTD,Childrens Services,Children's Services,Foster Carer Agency Fees,14/04/2023,571.32
5493456,NATIONAL FOSTERING AGENCY LTD,Childrens Services,Children's Services,Foster Carer Agency Fees,14/04/2023,554.76
5493457,CGL Services,Population Health,Population Health,Professional Services,14/04/2023,"255,750.00"
5493458,Redacted Supplier,Education,Children's Services,Professional Services,14/04/2023,"1,650.00"
5493459,PEARSON EDUCATION LTD,Education,Children's Services,Educational/Instructional Materials,14/04/2023,"2,500.00"
5493461,STOCKPORT CP  SOCIETY,Adult Social Care,Adults,Day Care Fees,14/04/2023,"1,298.88"
5493462,DISTRICT SURVEYORS ASSOCIATION LTD T/A LABC,Place,Growth,Subscriptions,14/04/2023,"2,628.82"
5493464,STOCKPORT CP  SOCIETY,Adult Social Care,Adults,Day Care Fees,14/04/2023,"1,298.88"
5493468,Redacted Supplier,Childrens Services,Children's Services,Professional Services,14/04/2023,"67,500.00"
5493488,SIGN,Adult Social Care,Adults,Residential Home Long Stay Fees,14/04/2023,513.6
5493498,SIGN,Adult Social Care,Adults,Residential Home Long Stay Fees,14/04/2023,856
5493499,SIGN,Adult Social Care,Adults,Residential Home Long Stay Fees,14/04/2023,770.4
5493500,SIGN,Adult Social Care,Adults,Residential Home Long Stay Fees,14/04/2023,533
5493501,SIGN,Adult Social Care,Adults,Residential Home Long Stay Fees,14/04/2023,684.8
5493502,SIGN,Adult Social Care,Adults,Residential Home Long Stay Fees,14/04/2023,599.2
5493503,SIGN,Adult Social Care,Adults,Residential Home Long Stay Fees,14/04/2023,770.4
5493513,NEWSCO INSIDER LTD,Place,Growth,"Marketing, Publicity and Recruitment",14/04/2023,"1,410.00"
5493609,TELEFONICA O2 (UK) LTD,Digital Tameside,Finance & IT,Mobile Telephones,17/04/2023,"6,864.75"
5493612,Optima Health,People and Workforce Development,Governance,Professional Medical Services,14/04/2023,"7,224.45"
5493625,The Veterans Food Co,Operations and Neighbourhoods,Operations and Neighbourhoods,Project Costs,14/04/2023,"1,515.00"
5493626,The Veterans Food Co,Operations and Neighbourhoods,Operations and Neighbourhoods,Project Costs,14/04/2023,"1,120.00"
5493627,NEW HORIZONS (STOCKPORT) LTD,Childrens Services,Children's Services,Childrens Homes Outside Local Authority Fees,14/04/2023,"22,588.46"
5493629,NEW HORIZONS (STOCKPORT) LTD,Childrens Services,Children's Services,Childrens Homes Outside Local Authority Fees,14/04/2023,"21,035.67"
5493630,NEW HORIZONS (STOCKPORT) LTD,Childrens Services,Children's Services,Childrens Homes Outside Local Authority Fees,14/04/2023,"21,035.67"
5493632,The Veterans Food Co,Operations and Neighbourhoods,Operations and Neighbourhoods,Project Costs,19/04/2023,"1,400.00"
5493633,Redacted Supplier,Education,Children's Services,Professional Services,14/04/2023,"7,500.00"
5493634,Valour Private Ltd t/a Valour Healthcare Services,Adult Social Care,Adults,Homecare Fees,14/04/2023,"7,029.95"
5493635,Valour Private Ltd t/a Valour Healthcare Services,Adult Social Care,Adults,Homecare Fees,14/04/2023,"7,012.22"
5493636,CAMPEY TURF CARE SYSTEMS,Operations and Neighbourhoods,Operations and Neighbourhoods,General Equipment Repair & Maintenance,14/04/2023,"2,687.88"
5493637,CAMPEY TURF CARE SYSTEMS,Operations and Neighbourhoods,Operations and Neighbourhoods,General Equipment Repair & Maintenance,14/04/2023,"2,720.24"
5493644,PHOENIX SOFTWARE LTD,GMPF (FX),GMPF (FX),IT Equipment,14/04/2023,"3,156.48"
5493646,SIZZLERS CATERING,(blank),(blank),Professional Services,14/04/2023,930.5
5493648,NATIONAL CHILDRENS BUREAU,Education,Children's Services,Purchase Books,14/04/2023,500
5493649,Redacted Supplier,Education,Children's Services,Professional Services,14/04/2023,"1,100.00"
5493653,The Veterans Food Co,Operations and Neighbourhoods,Operations and Neighbourhoods,Project Costs,14/04/2023,"1,212.00"
5493654,Xoom X Ltd,Operations and Neighbourhoods,Operations and Neighbourhoods,Hired Transport,06/04/2023,"3,368.00"
5493655,ELMAR HOME CARE MANCHESTER LTD,Adult Social Care,Adults,Homecare Fees,17/04/2023,"6,363.65"
5493657,Xoom X Ltd,Education,Children's Services,Transport Of Ola Pupils,06/04/2023,"1,372.00"
5493658,Xoom X Ltd,Education,Children's Services,Transport Of Pupils,06/04/2023,"1,225.00"
5493659,Xoom X Ltd,Operations and Neighbourhoods,Operations and Neighbourhoods,Hired Transport,06/04/2023,"1,065.00"
5493660,Xoom X Ltd,Education,Children's Services,Transport Of Ola Pupils,06/04/2023,"2,235.00"
5493661,YOUNG PEOPLE FIRST LIMITED,(blank),(blank),Living With Formal Support,18/04/2023,"1,275.00"
5493661,YOUNG PEOPLE FIRST LIMITED,(blank),(blank),Semi independent - Weekly Living Allowances,18/04/2023,61.05
5493662,Xoom X Ltd,Education,Children's Services,Transport Of Ola Pupils,06/04/2023,"1,520.00"
5493663,Xoom X Ltd,Education,Children's Services,Transport Of Ola Pupils,06/04/2023,980
5493665,Xoom X Ltd,Education,Children's Services,Transport Of Ola Pupils,06/04/2023,"1,218.00"
5493667,Xoom X Ltd,Education,Children's Services,Transport Of Ola Pupils,06/04/2023,987.5
5493668,Xoom X Ltd,Education,Children's Services,Transport Of Ola Pupils,06/04/2023,"1,140.00"
5493669,Xoom X Ltd,Education,Children's Services,Transport Of Ola Pupils,06/04/2023,994
5493671,ST PETER'S PARTNERSHIP,Operations and Neighbourhoods,Operations and Neighbourhoods,Project Costs,17/04/2023,"12,600.00"
5493672,Xoom X Ltd,Education,Children's Services,Transport Of Pupils,06/04/2023,"1,410.00"
5493676,Xoom X Ltd,Education,Children's Services,Transport Of Ola Pupils,06/04/2023,742
5493683,THE SUNFLOWER CHILDRENS CENTRE,Childrens Services,Children's Services,Nursery Services,13/04/2023,876
5493685,Xoom X Ltd,Education,Children's Services,Transport Of Pupils,06/04/2023,952
5493686,Xoom X Ltd,Education,Children's Services,Transport Of Pupils,06/04/2023,925
5493687,Xoom X Ltd,Education,Children's Services,Transport Of Ola Pupils,06/04/2023,701.5
5493688,Xoom X Ltd,Education,Children's Services,Transport Of Ola Pupils,06/04/2023,"1,483.00"
5493689,Xoom X Ltd,Education,Children's Services,Transport Of Ola Pupils,06/04/2023,756
5493690,Xoom X Ltd,Education,Children's Services,Transport Of Ola Pupils,06/04/2023,714
5493691,Xoom X Ltd,Education,Children's Services,Transport Of Ola Pupils,06/04/2023,968
5493695,Ecology Services Limited,Place,Growth,Miscellaneous Insurance,14/04/2023,"2,366.00"
5493696,Ecology Services Limited,Place,Growth,Miscellaneous Insurance,14/04/2023,"3,354.00"
5493697,SMI Group,Operations and Neighbourhoods,Operations and Neighbourhoods,Protective Clothing,17/04/2023,501.6
5493698,Ardeshir Goshtasb Pour T/A Tangerine Photography,Hosted Services,Hosted Services,Event Related Activity,17/04/2023,550
5493701,Constellia Public Ltd,Place,Growth,Professional Services,14/04/2023,"1,347.15"
5493842,Sams Helping Hands Limited,Childrens Services,Children's Services,Homecare Fees,05/04/2023,672
5493891,Redacted Supplier,Education,Children's Services,Professional Services,19/04/2023,"1,100.00"
5493900,INSPIREDSPACES TAMESIDE LTD,(blank),(blank),Fees,06/04/2023,347.12
5493900,INSPIREDSPACES TAMESIDE LTD,(blank),(blank),New Accommodation Works,06/04/2023,"17,355.86"
5493902,Stepping Stone Projects,Childrens Services,Children's Services,Living With Formal Support,19/04/2023,534.64
5493916,GREATER MANCHESTER COMBINED AUTHORITY,Governance,Governance,Subscriptions,03/04/2023,"5,206.00"
5493920,Xoom X Ltd,Childrens Services,Children's Services,Hired Transport,19/04/2023,912
5493921,Xoom X Ltd,Childrens Services,Children's Services,Hired Transport,20/04/2023,745.6
5493922,BT GLOBAL SERVICES,Digital Tameside,Finance & IT,Telephone Landline Costs,19/04/2023,"4,775.25"
5493926,FOSTER TALK,Childrens Services,Children's Services,Foster Carer Agency Fees,19/04/2023,554.65
5493927,STOCKPORT MBC,Corporate Costs,Corporate Costs,Coroners Service Costs,03/04/2023,"238,466.00"
5493928,KIDS,Education,Children's Services,Independent School Fees,19/04/2023,"3,252.50"
5493929,DOMAIN CARE NORTH WEST LTD,Adult Social Care,Adults,Day Care Fees,19/04/2023,667.66
5493930,Synectics Security Limited,Operations and Neighbourhoods,Operations and Neighbourhoods,Professional Services,19/04/2023,"2,013.33"
5493931,COMFORT CALL LIMITED,Adult Social Care,Adults,Homecare Fees,06/04/2023,"31,697.05"
5493932,CHILD ACTION NORTHWEST,Childrens Services,Children's Services,Professional Services,19/04/2023,673.08
5493933,CHILD ACTION NORTHWEST,Adult Social Care,Adults,Professional Services,19/04/2023,"1,322.10"
5493935,CARELINE HOMECARE LTD,Adult Social Care,Adults,Homecare Fees,06/04/2023,"29,240.30"
5493936,CARELINE HOMECARE LTD,Adult Social Care,Adults,Homecare Fees,06/04/2023,"26,946.78"
5493937,CARELINE HOMECARE LTD,Adult Social Care,Adults,Homecare Fees,06/04/2023,"28,521.28"
5493939,Redacted Supplier,(blank),(blank),Professional Entertainment Services,19/04/2023,500
5493942,Constellia Public Ltd,(blank),(blank),Professional Consultancy Services,19/04/2023,"71,287.56"
5493950,SANTANDER UK PLC,Finance,Finance & IT,National Giro,28/04/2023,"2,026.55"
5493952,NPOWER LIMITED,Adult Social Care,Adults,Electricity,19/04/2023,817.34
5493964,Complex Care Professionals Ltd,Adult Social Care,Adults,Homecare Fees,06/04/2023,"1,715.00"
5493966,Complex Care Professionals Ltd,Adult Social Care,Adults,Homecare Fees,06/04/2023,"1,715.00"
5493968,Complex Care Professionals Ltd,Adult Social Care,Adults,Homecare Fees,06/04/2023,"1,095.36"
5493969,ASKEWS  AND HOLTS LIBRARY SERVICES LTD,Operations and Neighbourhoods,Operations and Neighbourhoods,Purchase Books,19/04/2023,932.41
5493970,Complex Care Professionals Ltd,Adult Social Care,Adults,Homecare Fees,06/04/2023,"1,095.36"
5493971,WILDE CONSULTING ENGINEERS,Engineers Client,Director of Place,Engineers -External,17/04/2023,"15,152.70"
5493972,CARELINE HOMECARE LTD,Adult Social Care,Adults,Homecare Fees,06/04/2023,558.28
5493973,UNIVERSITY HOSPITALS BIRMINGHAM NHS FOUNDATION TRUST,(blank),(blank),Training Materials,19/04/2023,"2,415.00"
5493975,11KBW LIMITED,Hosted Services,Hosted Services,Licences,19/04/2023,"3,000.00"
5493977,Pell Frischmann Consultants Ltd,Engineers Client,Director of Place,External  Consultants,19/04/2023,"5,296.00"
5493980,STOCKPORT CP  SOCIETY,Adult Social Care,Adults,Day Care Fees,19/04/2023,"3,292.50"
5493981,CARELINE HOMECARE LTD,Adult Social Care,Adults,Homecare Fees,06/04/2023,"1,076.29"
5493982,CAPITA BUSINESS SERVICES LIMITED,Exchequer,Governance,Computer Software Maintenance Costs,19/04/2023,"1,750.00"
5493989,CREATIVE SUPPORT LTD,Adult Social Care,Adults,Homecare Fees,20/04/2023,"10,042.45"
5493990,CREATIVE SUPPORT LTD,Adult Social Care,Adults,Homecare Fees,20/04/2023,"10,148.16"
5493991,CREATIVE SUPPORT LTD,Adult Social Care,Adults,Homecare Fees,20/04/2023,"11,463.19"
5493992,CREATIVE SUPPORT LTD,Adult Social Care,Adults,Homecare Fees,20/04/2023,"10,180.26"
5493993,Randstad Solutions Ltd,Education,Children's Services,Agency Staff,20/04/2023,604.35
5493995,Randstad Solutions Ltd,Education,Children's Services,Agency Staff,20/04/2023,604.35
5493996,Randstad Solutions Ltd,Education,Children's Services,Agency Staff,20/04/2023,604.35
5493997,Randstad Solutions Ltd,Education,Children's Services,Agency Staff,20/04/2023,604.35
5494035,WILDE CONSULTING ENGINEERS,(blank),(blank),Engineers -External,18/04/2023,636.81
5494039,WILDE CONSULTING ENGINEERS,(blank),(blank),Engineers -External,18/04/2023,"1,233.48"
5494044,WILDE CONSULTING ENGINEERS,(blank),(blank),Engineers -External,18/04/2023,"2,923.65"
5494046,WILDE CONSULTING ENGINEERS,(blank),(blank),Engineers -External,18/04/2023,"2,827.04"
5494047,WILDE CONSULTING ENGINEERS,(blank),(blank),Engineers -External,18/04/2023,"1,191.52"
5494050,Compass Fostering North LTD,Childrens Services,Children's Services,Foster Carer Agency Fees,20/04/2023,"3,764.33"
5494051,Compass Fostering North LTD,Childrens Services,Children's Services,Foster Carer Agency Fees,20/04/2023,"3,764.33"
5494053,Compass Fostering North LTD,Childrens Services,Children's Services,Foster Carer Agency Fees,20/04/2023,"3,642.90"
5494054,Compass Fostering North LTD,Childrens Services,Children's Services,Foster Carer Agency Fees,20/04/2023,"1,092.87"
5494059,BROXAP LIMITED,Operations and Neighbourhoods,Operations and Neighbourhoods,General Materials,21/04/2023,546
5494115,CARETECH COMMUNITY SERVICES LIMITED,Adult Social Care,Adults,Residential Home Long Stay Fees,21/04/2023,"5,486.07"
5494116,CARETECH COMMUNITY SERVICES LIMITED,Adult Social Care,Adults,Residential Home Long Stay Fees,21/04/2023,"5,486.07"
5494117,CROMWELL POLYTHENE LTD.,Operations and Neighbourhoods,Operations and Neighbourhoods,Purchase Plastic Sacks,20/04/2023,"7,513.60"
5494118,CARETECH COMMUNITY SERVICES LIMITED,Adult Social Care,Adults,Residential Home Long Stay Fees,21/04/2023,"4,955.16"
5494119,CARETECH COMMUNITY SERVICES LIMITED,Adult Social Care,Adults,Residential Home Long Stay Fees,21/04/2023,"5,486.07"
5494120,CARETECH COMMUNITY SERVICES LIMITED,Adult Social Care,Adults,Residential Home Long Stay Fees,21/04/2023,"5,486.07"
5494121,CARETECH COMMUNITY SERVICES LIMITED,Adult Social Care,Adults,Residential Home Long Stay Fees,21/04/2023,"5,486.07"
5494122,CARETECH COMMUNITY SERVICES LIMITED,Adult Social Care,Adults,Residential Home Long Stay Fees,21/04/2023,"5,309.10"
5494123,CARETECH COMMUNITY SERVICES LIMITED,Adult Social Care,Adults,Residential Home Long Stay Fees,21/04/2023,"5,486.07"
5494124,CARETECH COMMUNITY SERVICES LIMITED,Adult Social Care,Adults,Residential Home Long Stay Fees,21/04/2023,"5,309.10"
5494125,CARETECH COMMUNITY SERVICES LIMITED,Adult Social Care,Adults,Residential Home Long Stay Fees,21/04/2023,"5,486.07"
5494126,CARETECH COMMUNITY SERVICES LIMITED,Adult Social Care,Adults,Residential Home Long Stay Fees,21/04/2023,"5,309.10"
5494137,J HOPKINS CONTRACTORS  LTD,(blank),(blank),Highway Construction,17/04/2023,"50,026.50"
5494139,CARETECH COMMUNITY SERVICES LIMITED,Adult Social Care,Adults,Residential Home Long Stay Fees,21/04/2023,"4,478.18"
5494144,TIPTOES CHILD THERAPY SERVICES (LTD),Childrens Services,Children's Services,Professional Medical Services,04/04/2023,840
5494149,CACI LTD,Childrens Services,Children's Services,Computer Software Maintenance Costs,20/04/2023,"1,350.00"
5494150,ASCENDANT LIFTS LIMITED,Adult Social Care,Adults,Firefighting Equipment,20/04/2023,909.5
5494157,Peterborough City Council,Childrens Services,Children's Services,Childrens Homes Outside Local Authority Fees,20/04/2023,"62,000.00"
5494160,Redacted Supplier,(blank),(blank),Project Costs,20/04/2023,500
5494161,Upwards Care Solutions,(blank),(blank),Living With Formal Support,20/04/2023,"3,606.86"
5494163,METRIC GROUP LTD,Operations and Neighbourhoods,Operations and Neighbourhoods,Repairs & Maintenance Of Car Park Equipment,20/04/2023,"4,036.62"
5494164,ONE 17 ED (Education) Ltd t/a 'Caring For Kids',Childrens Services,Children's Services,Postages,20/04/2023,60
5494164,ONE 17 ED (Education) Ltd t/a 'Caring For Kids',(blank),(blank),Purchase Books,20/04/2023,"1,050.00"
5494165,SADS UK,Operations and Neighbourhoods,Operations and Neighbourhoods,General Materials,20/04/2023,538.75
5494166,Kellys Home Cleaning,Adult Social Care,Adults,Homecare Fees,21/04/2023,"1,076.00"
5494168,WESSEX LIFT CO. LIMITED,Housing,Director of Place,Mandatory Adaptations Grant (DFG),03/04/2023,"12,563.00"
5494177,REMOTE AUDIO VISUAL,Hosted Services,Hosted Services,Event Related Activity,21/04/2023,"3,770.00"
5494198,iCare Solutions,Adult Social Care,Adults,Homecare Fees,21/04/2023,"16,087.91"
5494199,iCare Solutions,Adult Social Care,Adults,Homecare Fees,21/04/2023,"15,777.63"
5494200,iCare Solutions,Adult Social Care,Adults,Homecare Fees,21/04/2023,"15,777.63"
5494204,NHS Midlands & Lancashire CSU,Population Health,Population Health,Computer Hardware Maintenance Costs,21/04/2023,"11,520.00"
5494205,CARELINE HOMECARE LTD,Adult Social Care,Adults,Homecare Fees,12/04/2023,"29,807.67"
5494254,Redacted Supplier,Adult Social Care,Adults,Professional Medical Services,20/04/2023,"1,652.40"
5494255,ANGLIA DNA SERVICES LTD,Childrens Services,Children's Services,Professional Services,21/04/2023,828.75
5494309,CARE NEEDS LTD,Adult Social Care,Adults,Homecare Fees,21/04/2023,"4,762.50"
5494311,UK CONTAINER MAINTENANCE LTD,Operations and Neighbourhoods,Operations and Neighbourhoods,General Materials,21/04/2023,"5,876.00"
5494314,CARE NEEDS LTD,Adult Social Care,Adults,Homecare Fees,21/04/2023,"4,837.50"
5494317,CITY CARE SOLUTIONS LTD,Adult Social Care,Adults,Homecare Fees,21/04/2023,"3,155.96"
5494321,Valour Private Ltd t/a Valour Healthcare Services,Adult Social Care,Adults,Homecare Fees,21/04/2023,"3,371.71"
5494322,Valour Private Ltd t/a Valour Healthcare Services,Adult Social Care,Adults,Homecare Fees,21/04/2023,"7,508.66"
5494323,Valour Private Ltd t/a Valour Healthcare Services,Adult Social Care,Adults,Homecare Fees,21/04/2023,"6,855.66"
5494324,Aaban Partnership Limited,Childrens Services,Children's Services,Childrens Homes Outside Local Authority Fees,21/04/2023,"58,360.00"
5494325,Aaban Partnership Limited,Childrens Services,Children's Services,Childrens Homes Outside Local Authority Fees,21/04/2023,"40,000.00"
5494326,K P DODD CONSTRUCTION LTD,Housing,Director of Place,Mandatory Adaptations Grant (DFG),21/04/2023,"6,754.00"
5494329,NEW BRIDGE HORIZONS,Adult Social Care,Adults,Day Care Fees,21/04/2023,"2,563.83"
5494332,NEW BRIDGE HORIZONS,Adult Social Care,Adults,Day Care Fees,21/04/2023,"2,051.06"
5494333,NEW BRIDGE HORIZONS,Adult Social Care,Adults,Day Care Fees,21/04/2023,"1,976.40"
5494335,NEW BRIDGE HORIZONS,Adult Social Care,Adults,Day Care Fees,21/04/2023,"1,784.25"
5494336,FOUNTAINS & FEATURES LIMITED,Operations and Neighbourhoods,Operations and Neighbourhoods,General Equipment Repair & Maintenance,21/04/2023,695
5494337,ACORN CARE & EDUCATION LTD (SALES),Education,Children's Services,Independent School Fees,21/04/2023,"16,250.00"
5494338,NEW BRIDGE HORIZONS,Adult Social Care,Adults,Day Care Fees,21/04/2023,"1,115.57"
5494344,438 MARKETING LIMITED,(blank),(blank),"Activity (Materials, Trips)",21/04/2023,"3,713.00"
5494346,438 MARKETING LIMITED,(blank),(blank),"Marketing, Publicity and Recruitment",21/04/2023,"3,713.00"
5494347,438 MARKETING LIMITED,(blank),(blank),"Marketing, Publicity and Recruitment",21/04/2023,"3,713.00"
5494348,SWIIS FOSTER CARE LTD,Childrens Services,Children's Services,Foster Carer Agency Fees,21/04/2023,"1,694.98"
5494365,CGL Services,Population Health,Population Health,Professional Services,21/04/2023,"255,750.00"
5494370,GALA TENT LTD,(blank),(blank),General Materials,21/04/2023,924.92
5494373,TUDOR (UK) LTD T/A TUDOR ENVIRONMENTAL,Operations and Neighbourhoods,Operations and Neighbourhoods,Protective Clothing,21/04/2023,748.04
5494376,AUTISM INITIATIVES (UK),Adult Social Care,Adults,Homecare Fees,21/04/2023,"1,076.80"
5494381,Redacted Supplier,Education,Children's Services,Professional Services,21/04/2023,"1,100.00"
5494382,Freerun Private Services Ltd,Education,Children's Services,Transport Of Ola Pupils,21/04/2023,"1,140.00"
5494383,JENOPTIK UK LIMITED,Operations and Neighbourhoods,Operations and Neighbourhoods,Fees,21/04/2023,"2,037.00"
5494385,AUTISM INITIATIVES (UK),Adult Social Care,Adults,Homecare Fees,21/04/2023,"3,074.56"
5494388,AUTISM INITIATIVES (UK),Adult Social Care,Adults,Homecare Fees,21/04/2023,"3,074.56"
5494392,AUTISM INITIATIVES (UK),Adult Social Care,Adults,Homecare Fees,21/04/2023,"1,781.92"
5494394,Odlings Ltd t/a The Columbaria Company,Operations and Neighbourhoods,Operations and Neighbourhoods,Building Works,21/04/2023,"9,995.00"
5494407,GB Sports & Leisure,Operations and Neighbourhoods,Operations and Neighbourhoods,General Equipment Repair & Maintenance,21/04/2023,"2,660.79"
5494411,Redacted Supplier,Adult Social Care,Adults,"Fixtures, Fittings & Furniture Purchase",21/04/2023,"2,250.00"
5494412,Precision Resource Group Ltd t/a Panoramic Associates,Education,Children's Services,Agency Staff,21/04/2023,"2,350.00"
5494419,Place North West Ltd,Place,Growth,"Marketing, Publicity and Recruitment",21/04/2023,"1,000.00"
5494420,UNIVERSITY HOSPITALS BIRMINGHAM NHS FOUNDATION TRUST,(blank),(blank),Training Materials,21/04/2023,"1,400.00"
5494421,N.W.A Housing Ltd,(blank),(blank),Non-Authority Accommodation Rental,21/04/2023,"9,130.66"
5494423,CARELINE HOMECARE LTD,Adult Social Care,Adults,Homecare Fees,13/04/2023,"25,312.09"
5494424,PERSON CENTRED CARE SERVICES LIMITED,Adult Social Care,Adults,Homecare Fees,21/04/2023,"6,167.34"
5494431,TRAFFORD MBC,GMPF (FX),GMPF (FX),Members Responsibility Allowance,06/04/2023,"1,486.00"
5494441,MANCHESTER CITY COUNCIL,Childrens Services,Children's Services,Foster Care Placement With Connected Person,02/06/2023,"2,092.00"
5494457,Horizon Supported accommodation Ltd (formerly Key 2 Futures),Childrens Services,Children's Services,Living With Formal Support,21/04/2023,"17,896.76"
5494460,Horizon Supported accommodation Ltd (formerly Key 2 Futures),Childrens Services,Children's Services,Living With Formal Support,21/04/2023,"19,174.80"
5494462,Imail Comms Limited,Exchequer,Governance,Printing And Stationery,21/04/2023,"2,699.68"
5494466,MJ Transport Services,Operations and Neighbourhoods,Operations and Neighbourhoods,Furniture Removal Fees,03/04/2023,500
5494468,Millbrook Healthcare Ltd,Adult Social Care,Adults,"Fixtures,Fittings & Furniture Purchase (Service Users)",21/04/2023,"120,545.05"
5494469,Millbrook Healthcare Ltd,Adult Social Care,Adults,"Fixtures,Fittings & Furniture Purchase (Service Users)",21/04/2023,"12,620.89"
5494472,Valour Private Ltd t/a Valour Healthcare Services,Adult Social Care,Adults,Homecare Fees,21/04/2023,"7,118.60"
5494475,TUDOR (UK) LTD T/A TUDOR ENVIRONMENTAL,Operations and Neighbourhoods,Operations and Neighbourhoods,Volunteer Expenses,21/04/2023,512.24
5494476,Valour Private Ltd t/a Valour Healthcare Services,Adult Social Care,Adults,Homecare Fees,21/04/2023,"7,499.79"
5494490,IDOX SOFTWARE LIMITED,Digital Tameside,Finance & IT,Computer Software,21/04/2023,"66,172.30"
5494491,Redacted Supplier,Operations and Neighbourhoods,Operations and Neighbourhoods,Text Books Periodicals and Newspapers,12/05/2023,766.3
5494494,HEXAGON CARE SERVICES LTD,Childrens Services,Children's Services,Childrens Homes Outside Local Authority Fees,21/04/2023,"9,651.43"
5494495,LIMB TO LIMB TREE SERVICES LIMITED,Operations and Neighbourhoods,Operations and Neighbourhoods,General Equipment Repair & Maintenance,21/04/2023,"1,400.00"
5494496,Creative Support Rents,Adult Social Care,Adults,Residential Home Short Stay Fees,21/04/2023,"4,621.92"
5494498,Traffordcity Snowcentre Ltd,Childrens Services,Children's Services,"Activity (Materials, Trips)",21/04/2023,500
5494500,Traffordcity Snowcentre Ltd,Childrens Services,Children's Services,"Activity (Materials, Trips)",21/04/2023,500
5494502,Constellia Public Ltd,Tameside Investment Partnership,Director of Place,Consultancies,21/04/2023,"8,541.67"
5494503,COMFORT CALL LIMITED,Adult Social Care,Adults,Homecare Fees,13/04/2023,"33,245.80"
5494508,SURECARE TAMESIDE & OLDHAM,Adult Social Care,Adults,Homecare Fees,21/04/2023,"5,324.85"
5494509,SURECARE TAMESIDE & OLDHAM,Adult Social Care,Adults,Homecare Fees,21/04/2023,"5,041.17"
5494510,SURECARE TAMESIDE & OLDHAM,Adult Social Care,Adults,Homecare Fees,21/04/2023,"4,597.92"
5494512,Foundations Plus,Adult Social Care,Adults,Residential Home Long Stay Fees,21/04/2023,"5,331.24"
5494513,ACORN CARE & EDUCATION LTD (SALES),Education,Children's Services,Independent School Fees,21/04/2023,"19,916.67"
5494514,Footsteps A Path To Change 08 Ltd,Childrens Services,Children's Services,Childrens Homes Outside Local Authority Fees,21/04/2023,"18,043.50"
5494523,Foundations Plus,Adult Social Care,Adults,Residential Home Long Stay Fees,21/04/2023,"3,980.00"
5494525,Redacted Supplier,Hosted Services,Hosted Services,Event Related Activity,21/04/2023,629
5494526,ROUTES HEALTHCARE (NORTH) LIMITED,Adult Social Care,Adults,Homecare Fees,21/04/2023,"6,021.22"
5494527,ROUTES HEALTHCARE (NORTH) LIMITED,Adult Social Care,Adults,Homecare Fees,21/04/2023,"5,986.23"
5494528,HEXAGON CARE SERVICES LTD,Childrens Services,Children's Services,Childrens Homes Outside Local Authority Fees,21/04/2023,"19,862.14"
5494529,KONICA MINOLTA BUSINESS SOLUTIONS (UK) LTD,Digital Tameside,Finance & IT,Printing And Stationery,21/04/2023,"5,477.83"
5494531,SPALDINGS LIMITED,Operations and Neighbourhoods,Operations and Neighbourhoods,General Materials,21/04/2023,554.71
5494553,Redacted Supplier,Education,Children's Services,Professional Consultancy Services,21/04/2023,"7,000.00"
5494566,ALPHA BIOLABS,Childrens Services,Children's Services,Professional Medical Services,23/05/2023,582.5
5494568,CARETECH COMMUNITY SERVICES LIMITED,Adult Social Care,Adults,Residential Home Long Stay Fees,21/04/2023,"5,486.07"
5494571,CARETECH COMMUNITY SERVICES LIMITED,Adult Social Care,Adults,Residential Home Long Stay Fees,21/04/2023,"5,486.07"
5494572,CARETECH COMMUNITY SERVICES LIMITED,Adult Social Care,Adults,Residential Home Long Stay Fees,21/04/2023,"5,486.07"
5494573,CARETECH COMMUNITY SERVICES LIMITED,Adult Social Care,Adults,Residential Home Long Stay Fees,21/04/2023,"5,486.07"
5494575,CARETECH COMMUNITY SERVICES LIMITED,Adult Social Care,Adults,Residential Home Long Stay Fees,21/04/2023,"5,309.10"
5494579,CARETECH COMMUNITY SERVICES LIMITED,Adult Social Care,Adults,Residential Home Long Stay Fees,21/04/2023,"5,486.07"
5494580,CARETECH COMMUNITY SERVICES LIMITED,Adult Social Care,Adults,Residential Home Long Stay Fees,30/05/2023,"5,486.07"
5494581,CARETECH COMMUNITY SERVICES LIMITED,Adult Social Care,Adults,Residential Home Long Stay Fees,21/04/2023,"5,309.10"
5494584,CARETECH COMMUNITY SERVICES LIMITED,Adult Social Care,Adults,Residential Home Long Stay Fees,21/04/2023,"4,955.16"
5494587,Furniture Resource Centre Ltd,Operations and Neighbourhoods,Operations and Neighbourhoods,"Fixtures, Fittings & Furniture Purchase",21/04/2023,709.47
5494588,CARETECH COMMUNITY SERVICES LIMITED,Adult Social Care,Adults,Residential Home Long Stay Fees,21/04/2023,"5,309.10"
5494597,CARETECH COMMUNITY SERVICES LIMITED,Adult Social Care,Adults,Residential Home Long Stay Fees,21/04/2023,"5,309.10"
5494599,CARETECH COMMUNITY SERVICES LIMITED,Adult Social Care,Adults,Residential Home Long Stay Fees,21/04/2023,"5,486.07"
5494614,Origin Amenity Solutions Ltd,Operations and Neighbourhoods,Operations and Neighbourhoods,General Materials,21/04/2023,"3,360.00"
5494615,Furniture Resource Centre Ltd,Operations and Neighbourhoods,Operations and Neighbourhoods,"Fixtures, Fittings & Furniture Purchase",21/04/2023,529.2
5494643,SMT Projects,Place,Growth,Professional Consultancy Services,21/04/2023,"4,738.00"
5494652,STOCKPORT CP  SOCIETY,Adult Social Care,Adults,Day Care Fees,26/04/2023,"2,474.86"
5494696,Redacted Supplier,Education,Children's Services,Professional Services,21/04/2023,825
5494707,K P DODD CONSTRUCTION LTD,Housing,Director of Place,Mandatory Adaptations Grant (DFG),14/04/2023,"2,156.22"
5494708,STAMFORD CARS UK LTD,Education,Children's Services,Transport Of Ola Pupils,04/04/2023,"2,860.00"
5494709,STAMFORD CARS UK LTD,Operations and Neighbourhoods,Operations and Neighbourhoods,Hired Transport,04/04/2023,700
5494710,Jigsaw Homes Tameside,Population Health,Population Health,Professional Services,03/04/2023,"20,549.50"
5494711,STAMFORD CARS UK LTD,Education,Children's Services,Transport Of Post 16 Pupils,04/04/2023,"2,310.00"
5494712,STAMFORD CARS UK LTD,Education,Children's Services,Transport Of Ola Pupils,04/04/2023,"2,340.00"
5494713,STAMFORD CARS UK LTD,Operations and Neighbourhoods,Operations and Neighbourhoods,Hired Transport,04/04/2023,"2,300.00"
5494714,STAMFORD CARS UK LTD,Education,Children's Services,Transport Of Post 16 Pupils,04/04/2023,"2,310.00"
5494715,STAMFORD CARS UK LTD,Education,Children's Services,Transport Of Post 16 Pupils,04/04/2023,"1,430.00"
5494717,STAMFORD CARS UK LTD,Education,Children's Services,Transport Of Post 16 Pupils,04/04/2023,"1,760.00"
5494719,STAMFORD CARS UK LTD,Education,Children's Services,Transport Of Ola Pupils,04/04/2023,"2,750.00"
5494721,STAMFORD CARS UK LTD,Education,Children's Services,Transport Of Pupils,04/04/2023,"2,300.00"
5494724,STAMFORD CARS UK LTD,Operations and Neighbourhoods,Operations and Neighbourhoods,Hired Transport,04/04/2023,990
5494727,HOMES FOR LIFE LTD,Adult Social Care,Adults,Non-Authority Accommodation Rental,04/04/2023,977.44
5494728,STAMFORD CARS UK LTD,Operations and Neighbourhoods,Operations and Neighbourhoods,Hired Transport,04/04/2023,"1,840.00"
5494729,HUGH MASON PROPERTIES LIMITED,Adult Social Care,Adults,Non-Authority Accommodation Rental,04/04/2023,"3,103.57"
5494730,STAMFORD CARS UK LTD,Education,Children's Services,Transport Of Pupils,04/04/2023,"2,750.00"
5494731,HOMES FOR LIFE LTD,Adult Social Care,Adults,Non-Authority Accommodation Rental,04/04/2023,949.13
5494733,STAMFORD PROPERTIES,Adult Social Care,Adults,Non-Authority Accommodation Rental,04/04/2023,"1,190.83"
5494734,WESLEY PROPERTIES (NORTHERN) LTD,Adult Social Care,Adults,Non-Authority Accommodation Rental,24/04/2023,"1,601.98"
5494735,HAMILTON PROPERTIES,Adult Social Care,Adults,Non-Authority Accommodation Rental,04/04/2023,"1,842.99"
5494736,CROFT INVESTMENTS LTD,Adult Social Care,Adults,Non-Authority Accommodation Rental,24/04/2023,"2,367.53"
5494737,HUGH MASON PROPERTIES LIMITED,Adult Social Care,Adults,Non-Authority Accommodation Rental,04/04/2023,"2,987.84"
5494739,NORTHERN PROPERTIES LTD,Adult Social Care,Adults,Non-Authority Accommodation Rental,04/04/2023,"2,372.55"
5494740,HOMES FOR LIFE LTD,Adult Social Care,Adults,Non-Authority Accommodation Rental,04/04/2023,978.33
5494741,STAMFORD CARS UK LTD,Education,Children's Services,Transport Of Pupils,04/04/2023,"3,105.00"
5494742,HOMES FOR LIFE LTD,Adult Social Care,Adults,Non-Authority Accommodation Rental,04/04/2023,"1,077.99"
5494743,STAMFORD CARS UK LTD,Education,Children's Services,Transport Of Pupils,04/04/2023,"2,420.00"
5494744,HOMES FOR LIFE LTD,Adult Social Care,Adults,Non-Authority Accommodation Rental,04/04/2023,"1,077.99"
5494746,STAMFORD CARS UK LTD,Education,Children's Services,Transport Of Pupils,04/04/2023,"1,840.00"
5494748,STAMFORD CARS UK LTD,Education,Children's Services,Transport Of Ola Pupils,04/04/2023,"3,105.00"
5494749,STAMFORD CARS UK LTD,Operations and Neighbourhoods,Operations and Neighbourhoods,Hired Transport,04/04/2023,"1,515.00"
5494751,STAMFORD CARS UK LTD,Education,Children's Services,Transport Of Ola Pupils,04/04/2023,"2,750.00"
5494752,STAMFORD CARS UK LTD,Education,Children's Services,Transport Of Pupils,04/04/2023,"2,200.00"
5494753,STAMFORD CARS UK LTD,Education,Children's Services,Transport Of Pupils,04/04/2023,"2,420.00"
5494754,STAMFORD CARS UK LTD,Education,Children's Services,Transport Of Pupils,04/04/2023,"2,640.00"
5494755,STAMFORD CARS UK LTD,Education,Children's Services,Transport Of Ola Pupils,04/04/2023,950
5494756,STAMFORD CARS UK LTD,Education,Children's Services,Transport Of Ola Pupils,04/04/2023,"1,430.00"
5494757,STAMFORD CARS UK LTD,Education,Children's Services,Transport Of Pupils,04/04/2023,"1,300.00"
5494758,STAMFORD CARS UK LTD,Education,Children's Services,Transport Of Pupils,04/04/2023,"2,070.00"
5494759,STAMFORD CARS UK LTD,Education,Children's Services,Transport Of Ola Pupils,04/04/2023,"2,420.00"
5494760,STAMFORD CARS UK LTD,Education,Children's Services,Transport Of Pupils,04/04/2023,"1,760.00"
5494761,STAMFORD CARS UK LTD,Education,Children's Services,Transport Of Pupils,04/04/2023,"3,080.00"
5494762,STAMFORD CARS UK LTD,Education,Children's Services,Transport Of Ola Pupils,04/04/2023,"2,990.00"
5494763,STAMFORD CARS UK LTD,Education,Children's Services,Transport Of Ola Pupils,04/04/2023,"2,585.00"
5494764,STAMFORD CARS UK LTD,Education,Children's Services,Transport Of Pupils,04/04/2023,"2,596.00"
5494765,STAMFORD CARS UK LTD,Education,Children's Services,Transport Of Ola Pupils,04/04/2023,"2,750.00"
5494766,STAMFORD CARS UK LTD,Education,Children's Services,Transport Of Pupils,04/04/2023,"3,082.00"
5494767,STAMFORD CARS UK LTD,Education,Children's Services,Transport Of Pupils,04/04/2023,"2,640.00"
5494768,STAMFORD CARS UK LTD,Education,Children's Services,Transport Of Pupils,04/04/2023,"2,310.00"
5494769,STAMFORD CARS UK LTD,Operations and Neighbourhoods,Operations and Neighbourhoods,Hired Transport,04/04/2023,"1,175.00"
5494770,STAMFORD CARS UK LTD,Operations and Neighbourhoods,Operations and Neighbourhoods,Hired Transport,04/04/2023,575
5494771,STAMFORD CARS UK LTD,Operations and Neighbourhoods,Operations and Neighbourhoods,Hired Transport,04/04/2023,910
5494772,STAMFORD CARS UK LTD,Operations and Neighbourhoods,Operations and Neighbourhoods,Hired Transport,04/04/2023,"1,463.00"
5494773,STAMFORD CARS UK LTD,Operations and Neighbourhoods,Operations and Neighbourhoods,Hired Transport,04/04/2023,400
5494773,STAMFORD CARS UK LTD,Operations and Neighbourhoods,Operations and Neighbourhoods,Transport Of Pupils,04/04/2023,"1,575.00"
5494774,STAMFORD CARS UK LTD,Operations and Neighbourhoods,Operations and Neighbourhoods,Hired Transport,04/04/2023,"1,760.00"
5494775,STAMFORD CARS UK LTD,Education,Children's Services,Transport Of Ola Pupils,04/04/2023,"3,630.00"
5494777,STAMFORD CARS UK LTD,Education,Children's Services,Transport Of Pupils,04/04/2023,"2,875.00"
5494778,STAMFORD CARS UK LTD,Operations and Neighbourhoods,Operations and Neighbourhoods,Transport Of Pupils,04/04/2023,575
5494779,STAMFORD CARS UK LTD,Operations and Neighbourhoods,Operations and Neighbourhoods,Hired Transport,04/04/2023,500
5494780,STAMFORD CARS UK LTD,Education,Children's Services,Transport Of Pupils,04/04/2023,"1,265.00"
5494781,STAMFORD CARS UK LTD,Operations and Neighbourhoods,Operations and Neighbourhoods,Transport Of Pupils,04/04/2023,"2,420.00"
5494782,STAMFORD CARS UK LTD,Education,Children's Services,Transport Of Ola Pupils,04/04/2023,"2,310.00"
5494783,STAMFORD CARS UK LTD,Operations and Neighbourhoods,Operations and Neighbourhoods,Hired Transport,04/04/2023,"1,150.00"
5494785,STAMFORD CARS UK LTD,Operations and Neighbourhoods,Operations and Neighbourhoods,Transport Of Pupils,04/04/2023,"1,260.00"
5494786,STAMFORD CARS UK LTD,Education,Children's Services,Transport Of Ola Pupils,04/04/2023,"2,625.00"
5494788,STAMFORD CARS UK LTD,Education,Children's Services,Transport Of Ola Pupils,04/04/2023,"2,520.00"
5494789,STAMFORD CARS UK LTD,Education,Children's Services,Transport Of Ola Pupils,04/04/2023,"2,100.00"
5494791,STAMFORD CARS UK LTD,Education,Children's Services,Transport Of Ola Pupils,04/04/2023,"2,400.00"
5494792,STAMFORD CARS UK LTD,Education,Children's Services,Transport Of Pupils,04/04/2023,"2,640.00"
5494793,STAMFORD CARS UK LTD,Operations and Neighbourhoods,Operations and Neighbourhoods,Transport Of Pupils,04/04/2023,717.5
5494794,STAMFORD CARS UK LTD,Education,Children's Services,Transport Of Pupils,04/04/2023,"2,640.00"
5494795,STAMFORD CARS UK LTD,Operations and Neighbourhoods,Operations and Neighbourhoods,Transport Of Pupils,04/04/2023,"1,950.00"
5494796,STAMFORD CARS UK LTD,Operations and Neighbourhoods,Operations and Neighbourhoods,Hired Transport,04/04/2023,"1,045.00"
5494797,STAMFORD CARS UK LTD,Education,Children's Services,Transport Of Pupils,04/04/2023,"2,640.00"
5494798,STAMFORD CARS UK LTD,Operations and Neighbourhoods,Operations and Neighbourhoods,Transport Of Pupils,04/04/2023,"1,380.00"
5494799,STAMFORD CARS UK LTD,Operations and Neighbourhoods,Operations and Neighbourhoods,Hired Transport,04/04/2023,"1,980.00"
5494800,STAMFORD CARS UK LTD,Education,Children's Services,Transport Of Pupils,04/04/2023,"2,640.00"
5494801,STAMFORD CARS UK LTD,Education,Children's Services,Transport Of Post 16 Pupils,04/04/2023,"1,150.00"
5494805,Redacted Supplier,Childrens Services,Children's Services,Childrens Homes Outside Local Authority Fees,21/04/2023,"16,363.66"
5494806,Redacted Supplier,Childrens Services,Children's Services,Childrens Homes Outside Local Authority Fees,21/04/2023,"16,363.66"
5494808,QUEEN STREET PHARMACY LTD T/A ASHTON PCC PHARMACY,Population Health,Population Health,Local Enhanced Services,03/04/2023,502.68
5494812,QUEEN STREET PHARMACY LTD T/A ASHTON PCC PHARMACY,Population Health,Population Health,Local Enhanced Services,03/04/2023,622.05
5494814,QUEEN STREET PHARMACY LTD T/A ASHTON PCC PHARMACY,Population Health,Population Health,Local Enhanced Services,03/04/2023,648.24
5494818,Redacted Supplier,Operations and Neighbourhoods,Operations and Neighbourhoods,Text Books Periodicals and Newspapers,03/04/2023,558.3
5494825,HUGH MASON PROPERTIES LIMITED,Adult Social Care,Adults,Non-Authority Accommodation Rental,04/04/2023,"2,991.86"
5494828,WIGAN MBC,Hosted Services,Hosted Services,Indirect Employee Pay Expenditure,06/04/2023,"7,990.06"
5494828,WIGAN MBC,Hosted Services,Hosted Services,Professional Services,06/04/2023,"43,614.64"
5494828,WIGAN MBC,(blank),(blank),Indirect Employee Pay Expenditure,06/04/2023,"87,865.34"
5494828,WIGAN MBC,(blank),(blank),Professional Services,06/04/2023,"1,104.54"
5494830,Jigsaw Homes Tameside,Population Health,Population Health,Professional Services,03/04/2023,"34,166.00"
5494834,JACKSON & TAYLOR LTD,Housing,Director of Place,Mandatory Adaptations Grant (DFG),03/04/2023,"4,702.15"
5494840,JACKSON & TAYLOR LTD,Housing,Director of Place,Mandatory Adaptations Grant (DFG),06/04/2023,"4,507.15"
5494843,Smartway Health and Social Care Limited,Adult Social Care,Adults,Homecare Fees,03/04/2023,"4,290.70"
5494862,LIQUIDLOGIC LTD,People and Workforce Development,Governance,Miscellaneous Expenses,26/04/2023,"22,325.00"
5494872,Esteem Care Manchester Ltd,Adult Social Care,Adults,Homecare Fees,03/04/2023,619.6
5494873,STAFF CARE SERVICES,Adult Social Care,Adults,Professional Consultancy Services,24/04/2023,675
5494874,CARELINE HOMECARE LTD,Adult Social Care,Adults,Homecare Fees,14/04/2023,"26,610.43"
5494875,CARELINE HOMECARE LTD,Adult Social Care,Adults,Homecare Fees,14/04/2023,"1,315.75"
5494877,Redacted Supplier,Education,Children's Services,Professional Services,24/04/2023,550
5494881,BROXAP LIMITED,Operations and Neighbourhoods,Operations and Neighbourhoods,General Materials,21/04/2023,"1,598.00"
5494884,TROJAN CONSULTANTS LTD,Exchequer,Governance,Licences,21/04/2023,"5,932.00"
5494885,COMFORT CALL LIMITED,Adult Social Care,Adults,Homecare Fees,14/04/2023,"31,041.84"
5494886,Zeno Ltd,Adult Social Care,Adults,Homecare Fees,26/04/2023,"10,800.26"
5494888,DIRECT CARE (TAMESIDE) LTD,Adult Social Care,Adults,Homecare Fees,06/04/2023,"38,936.52"
5494889,PORISM LIMITED,Hosted Services,Hosted Services,Professional Consultancy Services,26/04/2023,"5,025.00"
5494890,Redacted Supplier,Education,Children's Services,Independent School Fees,17/04/2023,"6,333.33"
5494891,Ascendant Solutions Limited,Exchequer,Governance,Professional Services,26/04/2023,"2,100.00"
5494892,CITY CARE SOLUTIONS LTD,Adult Social Care,Adults,Homecare Fees,26/04/2023,"3,599.20"
5494893,RedQuadrant Ltd,Hosted Services,Hosted Services,Professional Consultancy Services,26/04/2023,"2,500.00"
5494894,Phoenix Abbey LTD,(blank),(blank),Childrens Homes Outside Local Authority Fees,26/04/2023,"4,500.00"
5494896,Your Chapter Limited,Childrens Services,Children's Services,Foster Carer Agency Fees,26/04/2023,"1,308.63"
5494897,ASKEWS  AND HOLTS LIBRARY SERVICES LTD,Operations and Neighbourhoods,Operations and Neighbourhoods,Purchase Books,26/04/2023,"1,153.88"
5494899,BREAKEY & NUTTALL,Operations and Neighbourhoods,Operations and Neighbourhoods,Fees,26/04/2023,"1,000.00"
5494900,BREAKEY & NUTTALL,(blank),(blank),Fees,26/04/2023,"1,125.00"
5494901,Essential Space Properties Ltd,Childrens Services,Children's Services,Financial Assistance - No Recourse to Public Funds,26/04/2023,578
5494902,Flintshire County Council,Education,Children's Services,Other Local Authorities Fees,26/04/2023,"44,949.00"
5494903,Redacted Supplier,Education,Children's Services,Professional Services,26/04/2023,550
5494906,Timeout Childrens Homes Ltd,Childrens Services,Children's Services,Childrens Homes Outside Local Authority Fees,26/04/2023,"17,692.01"
5494908,Timeout Childrens Homes Ltd,Childrens Services,Children's Services,Childrens Homes Outside Local Authority Fees,26/04/2023,"21,700.00"
5494909,LEGGETT PSYCHOLOGY LTD,Education,Children's Services,Professional Services,26/04/2023,"2,200.00"
5494910,BREAKEY & NUTTALL,(blank),(blank),Fees,26/04/2023,"1,435.00"
5494911,Cathmor,Childrens Services,Children's Services,Living With Formal Support,26/04/2023,"5,379.92"
5494913,TAMESIDE AND GLOSSOP INTEGRATED CARE NHS FOUNDATION TRUST,Contingency,Contingency,Professional Services,06/04/2023,"6,425.61"
5494915,THE UNIVERSITY OF MANCHESTER,Adult Social Care,Adults,Training Course Costs,26/04/2023,900
5494927,Sams Helping Hands Limited,Childrens Services,Children's Services,Homecare Fees,14/04/2023,672
5494991,CREATIVE SUPPORT LTD,Adult Social Care,Adults,Residential Home Long Stay Fees,17/04/2023,908.6
5494994,CREATIVE SUPPORT LTD,Adult Social Care,Adults,Homecare Fees,17/04/2023,"15,128.71"
5494996,CREATIVE SUPPORT LTD,Adult Social Care,Adults,Homecare Fees,17/04/2023,"190,515.43"
5494997,CREATIVE SUPPORT LTD,Adult Social Care,Adults,Homecare Fees,17/04/2023,"168,417.70"
5494998,STRUCTEC (NW) LTD,Housing,Director of Place,Mandatory Adaptations Grant (DFG),14/04/2023,"6,078.13"
5494999,STRUCTEC (NW) LTD,Housing,Director of Place,Mandatory Adaptations Grant (DFG),14/04/2023,"5,533.28"
5495003,BRANAS ISAF LTD,Childrens Services,Children's Services,Childrens Homes Outside Local Authority Fees,26/04/2023,"21,214.29"
5495004,The Networking People (TNP) Ltd,Digital Tameside,Finance & IT,Computer Software,26/04/2023,"3,250.00"
5495028,Esteem Care Manchester Ltd,Adult Social Care,Adults,Homecare Fees,06/04/2023,789.21
5495029,Esteem Care Manchester Ltd,Adult Social Care,Adults,Homecare Fees,06/04/2023,721.37
5495032,Her Majesty's Prison and Probation Service (National Offenders Management Service),Childrens Services,Children's Services,Other Accommodation Related Costs,26/04/2023,"8,596.00"
5495035,TRAFFORD MBC,Education,Children's Services,Transport Of Pupils,06/04/2023,"21,960.00"
5495036,Her Majesty's Prison and Probation Service (National Offenders Management Service),Childrens Services,Children's Services,Other Accommodation Related Costs,26/04/2023,"5,390.00"
5495040,STOCKPORT MBC,Place,Growth,Agency Staff,06/04/2023,"5,481.00"
5495044,FENTONS MINIBUSES LTD,Education,Children's Services,Transport Of Ola Pupils,06/04/2023,"3,277.50"
5495045,KEYFAX MANCHESTER LTD,Housing,Director of Place,Mandatory Adaptations Grant (DFG),06/04/2023,"3,632.96"
5495047,Stannybrook Property Consultants Ltd,Place,Growth,Fees,26/04/2023,925
5495048,Stannybrook Property Consultants Ltd,(blank),(blank),Fees,26/04/2023,"1,500.00"
5495050,Stannybrook Property Consultants Ltd,(blank),(blank),Fees,26/04/2023,800
5495052,Stannybrook Property Consultants Ltd,Place,Growth,Fees,26/04/2023,925
5495058,STAMFORD CARS UK LTD,Education,Children's Services,Transport Of Ola Pupils,06/04/2023,"2,730.00"
5495073,GRANART LIMITED,Operations and Neighbourhoods,Operations and Neighbourhoods,Building Works,26/04/2023,"4,400.00"
5495075,Sandcastle Care LTD,Childrens Services,Children's Services,Childrens Homes Outside Local Authority Fees,26/04/2023,"26,549.29"
5495077,PETERS LIMITED (PETERS BOOKSELLING SERVICES),Operations and Neighbourhoods,Operations and Neighbourhoods,Purchase Books,26/04/2023,"1,784.40"
5495078,GRANART LIMITED,Operations and Neighbourhoods,Operations and Neighbourhoods,Building Works,26/04/2023,"4,400.00"
5495079,Sandcastle Care LTD,Childrens Services,Children's Services,Childrens Homes Outside Local Authority Fees,26/04/2023,"26,549.29"
5495080,GRANART LIMITED,Operations and Neighbourhoods,Operations and Neighbourhoods,Plaques,26/04/2023,615
5495081,BOLTON MBC,Education,Children's Services,Professional Services,06/04/2023,769.36
5495082,The Mount Guest House Limited,Childrens Services,Children's Services,Financial Assistance - No Recourse to Public Funds,06/04/2023,"1,910.00"
5495083,Constellia Public Ltd,Place,Growth,Professional Consultancy Services,26/04/2023,"8,135.42"
5495084,SAFEHOUSES NORTH LIMITED,Childrens Services,Children's Services,Foster Carer Agency Fees,26/04/2023,"3,765.94"
5495085,Constellia Public Ltd,Place,Growth,Professional Consultancy Services,12/05/2023,"44,672.17"
5495086,Access UK Ltd,Education,Children's Services,Computer Software Maintenance Costs,29/06/2023,"1,800.00"
5495089,SAFEHOUSES NORTH LIMITED,Childrens Services,Children's Services,Foster Carer Agency Fees,26/04/2023,"3,456.64"
5495090,SAFEHOUSES NORTH LIMITED,Childrens Services,Children's Services,Foster Carer Agency Fees,26/04/2023,"3,477.17"
5495091,Nyela Information Governance Consultants Ltd t/a Nyela IG Consultants,Hosted Services,Hosted Services,Professional Consultancy Services,26/04/2023,"4,218.75"
5495093,FENTONS TAXIS,Education,Children's Services,Transport Of Pupils,06/04/2023,"2,576.00"
5495095,TEAM TEACH LTD,Childrens Services,Children's Services,Training Course Costs,26/04/2023,"2,303.20"
5495100,Milk Education Limited,Education,Children's Services,Agency Staff,26/04/2023,"1,042.50"
5495102,ZZ DUP Manchester City Council,(blank),(blank),Professional Services,26/04/2023,"59,430.00"
5495109,Project Inc,Education,Children's Services,Post 16 FE College Fees,17/04/2023,"10,666.70"
5495110,SIGN,Adult Social Care,Adults,Residential Home Long Stay Fees,26/04/2023,764.57
5495111,SIGN,Adult Social Care,Adults,Residential Home Long Stay Fees,26/04/2023,667.31
5495129,Avoira Ltd,Digital Tameside,Finance & IT,Telephone Landline Costs,12/04/2023,"5,890.89"
5495135,Avoira Ltd,Digital Tameside,Finance & IT,Telephone Landline Costs,13/04/2023,"6,325.59"
5495183,Redacted Supplier,(blank),(blank),COVID-19 Household Support Fund Payments,04/04/2023,"1,570.00"
5495186,Redacted Supplier,(blank),(blank),COVID-19 Household Support Fund Payments,04/04/2023,710
5495188,Redacted Supplier,(blank),(blank),COVID-19 Household Support Fund Payments,04/04/2023,710
5495190,Redacted Supplier,(blank),(blank),COVID-19 Household Support Fund Payments,04/04/2023,538.9
5495192,Redacted Supplier,(blank),(blank),COVID-19 Household Support Fund Payments,04/04/2023,625
5495195,Redacted Supplier,(blank),(blank),COVID-19 Household Support Fund Payments,04/04/2023,710
5495203,Redacted Supplier,(blank),(blank),COVID-19 Household Support Fund Payments,04/04/2023,540
5495205,Redacted Supplier,(blank),(blank),COVID-19 Household Support Fund Payments,04/04/2023,540
5495216,Redacted Supplier,(blank),(blank),COVID-19 Household Support Fund Payments,04/04/2023,540
5495225,Redacted Supplier,(blank),(blank),COVID-19 Household Support Fund Payments,04/04/2023,710
5495229,SEDGEMOOR DISTRICT COUNCIL,Hosted Services,Hosted Services,Professional Consultancy Services,13/04/2023,"20,942.86"
5495242,CITY OF BRADFORD METROPOLITAN DISTRICT COUNCIL,Hosted Services,Hosted Services,Contributions,13/04/2023,"30,000.00"
5495250,CARETECH COMMUNITY SERVICES LIMITED,Adult Social Care,Adults,Residential Home Long Stay Fees,30/05/2023,"13,816.08"
5495251,CARETECH COMMUNITY SERVICES LIMITED,Adult Social Care,Adults,Residential Home Long Stay Fees,16/06/2023,"6,066.30"
5495252,Redacted Supplier,Childrens Services,Children's Services,Foster Carer Agency Fees,28/04/2023,"4,036.82"
5495253,Redacted Supplier,Childrens Services,Children's Services,Foster Carer Agency Fees,28/04/2023,"4,161.75"
5495254,Redacted Supplier,Childrens Services,Children's Services,Foster Carer Agency Fees,28/04/2023,"4,036.82"
5495255,Redacted Supplier,Childrens Services,Children's Services,Childrens Homes Outside Local Authority Fees,28/04/2023,"18,600.00"
5495256,Redacted Supplier,Childrens Services,Children's Services,Childrens Homes Outside Local Authority Fees,28/04/2023,"14,392.99"
5495257,Redacted Supplier,Childrens Services,Children's Services,Childrens Homes Outside Local Authority Fees,03/05/2023,"14,392.99"
5495258,Redacted Supplier,Childrens Services,Children's Services,Childrens Homes Outside Local Authority Fees,28/04/2023,"15,198.85"
5495259,Redacted Supplier,Childrens Services,Children's Services,Childrens Homes Outside Local Authority Fees,28/04/2023,"15,198.85"
5495260,Redacted Supplier,Childrens Services,Children's Services,Childrens Homes Outside Local Authority Fees,28/04/2023,"15,198.85"
5495263,CYCLESCHEME LTD,(blank),(blank),Debits,03/04/2023,833.33
5495264,SANKOFA SPECIALIST CARE LIMITED,Childrens Services,Children's Services,Childrens Homes Outside Local Authority Fees,04/04/2023,"68,421.42"
5495267,Montrose Recruitment Limited TA Montrose Living,Adult Social Care,Adults,Homecare Fees,04/04/2023,"4,817.65"
5495271,INSPIREDSPACES TAMESIDE LTD,Asset & Investment Partnership Management,Growth,PFI FM Fees and Insurance Costs,11/04/2023,"47,990.29"
5495272,Northern Community Pathways Limited,(blank),(blank),Living With Formal Support,28/04/2023,"4,028.00"
5495272,Northern Community Pathways Limited,(blank),(blank),Semi independent - Weekly Living Allowances,28/04/2023,244.2
5495273,Northern Community Pathways Limited,(blank),(blank),Living With Formal Support,28/04/2023,"4,088.00"
5495273,Northern Community Pathways Limited,(blank),(blank),Semi independent - Weekly Living Allowances,28/04/2023,244.2
5495274,INSPIREDSPACES TAMESIDE LTD,Asset & Investment Partnership Management,Growth,PFI FM Fees and Insurance Costs,11/04/2023,"10,792.85"
5495275,Northern Community Pathways Limited,Childrens Services,Children's Services,Living With Formal Support,28/04/2023,"2,404.00"
5495277,Northern Community Pathways Limited,Childrens Services,Children's Services,Living With Formal Support,28/04/2023,"2,034.80"
5495278,Halo Project,Childrens Services,Children's Services,Therapy Costs,03/04/2023,900
5495279,Northern Community Pathways Limited,Adult Social Care,Adults,Homecare Fees,28/04/2023,"2,315.40"
5495280,TURNER GROUNDSCARE,Operations and Neighbourhoods,Operations and Neighbourhoods,General Equipment Repair & Maintenance,11/04/2023,"1,222.20"
5495281,Northern Community Pathways Limited,Adult Social Care,Adults,Homecare Fees,28/04/2023,"2,196.00"
5495283,TPR Care Services Ltd,(blank),(blank),Living With Formal Support,05/04/2023,"1,544.20"
5495285,THE YABOO COMPANY LIMITED,Operations and Neighbourhoods,Operations and Neighbourhoods,Computer Software,28/04/2023,710
5495288,Sams Helping Hands Limited,Adult Social Care,Adults,Homecare Fees,05/04/2023,"12,781.26"
5495289,TPR Care Services Ltd,(blank),(blank),Living With Formal Support,05/04/2023,"1,544.20"
5495292,THREE CIRCLES FOSTERING LTD,Childrens Services,Children's Services,Foster Carer Agency Fees,28/04/2023,"5,546.79"
5495295,Currys Group Ltd T/A Currys Business,Childrens Services,Children's Services,"Fixtures,Fittings & Furniture Purchase (Service Users)",28/04/2023,"1,013.33"
5495297,THREE CIRCLES FOSTERING LTD,Childrens Services,Children's Services,Foster Carer Agency Fees,28/04/2023,"3,059.10"
5495298,COOLSPIRIT LTD,Digital Tameside,Finance & IT,Computer Hardware Purchase,27/04/2023,766.1
5495299,Redacted Supplier,Education,Children's Services,Other Local Authorities Fees,28/04/2023,"25,103.10"
5495301,Redacted Supplier,Adult Social Care,Adults,Day Care Fees,28/04/2023,"1,344.00"
5495302,GRANART LIMITED,Operations and Neighbourhoods,Operations and Neighbourhoods,Plaques,28/04/2023,788
5495303,TPR Care Services Ltd,(blank),(blank),Living With Formal Support,05/04/2023,"1,244.20"
5495304,INSPIREDSPACES TAMESIDE LTD,(blank),(blank),Fees,03/04/2023,475.4
5495304,INSPIREDSPACES TAMESIDE LTD,(blank),(blank),Mechanical & Electrical Works,03/04/2023,"23,770.07"
5495306,We Support LTD,Adult Social Care,Adults,Homecare Fees,27/04/2023,"5,497.80"
5495307,GRANART LIMITED,Operations and Neighbourhoods,Operations and Neighbourhoods,Plaques,28/04/2023,"1,098.00"
5495309,GRANART LIMITED,Operations and Neighbourhoods,Operations and Neighbourhoods,Plaques,28/04/2023,664
5495312,INSPIREDSPACES TAMESIDE LTD,Asset & Investment Partnership Management,Growth,PFI FM Fees and Insurance Costs,13/04/2023,"1,369.50"
5495314,TPR Care Services Ltd,(blank),(blank),Living With Formal Support,05/04/2023,"1,544.20"
5495320,CARETECH COMMUNITY SERVICES LIMITED,Adult Social Care,Adults,Residential Home Long Stay Fees,16/06/2023,"8,485.20"
5495321,Fairfield Care Services,Adult Social Care,Adults,Day Care Fees,28/04/2023,"2,533.12"
5495322,INSPIREDSPACES TAMESIDE LTD,Asset & Investment Partnership Management,Growth,PFI FM Fees and Insurance Costs,13/04/2023,"9,532.65"
5495323,MIDA SIGN SERVICES UK,(blank),(blank),Printing And Stationery,06/04/2023,"1,161.50"
5495325,STAMFORD CARS UK LTD,Education,Children's Services,Transport Of Ola Pupils,06/04/2023,"3,080.00"
5495328,Furniture Resource Centre Ltd,Operations and Neighbourhoods,Operations and Neighbourhoods,"Fixtures, Fittings & Furniture Purchase",28/04/2023,831.24
5495332,DURHAM COUNTY COUNCIL,Childrens Services,Children's Services,Professional Services,26/05/2023,"2,266.00"
5495333,NEC Software Solutions UK Ltd,Digital Tameside,Finance & IT,Computer Software,12/04/2023,"55,000.00"
5495335,Redacted Supplier,Education,Children's Services,Other Local Authorities Fees,27/04/2023,"8,784.00"
5495337,Social Work Solutions NW Limited,Adult Social Care,Adults,Professional Services,13/04/2023,840.3
5495340,Furniture Resource Centre Ltd,Operations and Neighbourhoods,Operations and Neighbourhoods,"Fixtures, Fittings & Furniture Purchase",28/04/2023,844.42
5495341,CARETECH COMMUNITY SERVICES LIMITED,Adult Social Care,Adults,Residential Home Long Stay Fees,16/06/2023,"3,123.00"
5495345,INSPIREDSPACES TAMESIDE LTD,Asset & Investment Partnership Management,Growth,PFI FM Fees and Insurance Costs,13/04/2023,674.66
5495346,CARETECH COMMUNITY SERVICES LIMITED,Adult Social Care,Adults,Residential Home Long Stay Fees,16/06/2023,"4,981.80"
5495347,CARETECH COMMUNITY SERVICES LIMITED,Adult Social Care,Adults,Residential Home Long Stay Fees,16/06/2023,"5,725.50"
5495348,CARETECH COMMUNITY SERVICES LIMITED,Adult Social Care,Adults,Homecare Fees,21/06/2023,"14,484.60"
5495349,Proludic LTD,Operations and Neighbourhoods,Operations and Neighbourhoods,General Equipment Repair & Maintenance,28/04/2023,537.87
5495351,CARETECH COMMUNITY SERVICES LIMITED,Adult Social Care,Adults,Residential Home Long Stay Fees,16/06/2023,"5,673.60"
5495353,CARETECH COMMUNITY SERVICES LIMITED,Adult Social Care,Adults,Residential Home Long Stay Fees,16/06/2023,"3,934.20"
5495354,CARETECH COMMUNITY SERVICES LIMITED,Adult Social Care,Adults,Residential Home Long Stay Fees,16/06/2023,"5,309.10"
5495355,YOUNG PEOPLE FIRST LIMITED,(blank),(blank),Living With Formal Support,27/04/2023,"1,275.00"
5495355,YOUNG PEOPLE FIRST LIMITED,(blank),(blank),Semi independent - Weekly Living Allowances,27/04/2023,61.05
5495357,CARETECH COMMUNITY SERVICES LIMITED,Adult Social Care,Adults,Residential Home Long Stay Fees,16/06/2023,"7,287.00"
5495358,CARETECH COMMUNITY SERVICES LIMITED,Adult Social Care,Adults,Residential Home Long Stay Fees,16/06/2023,"6,766.50"
5495361,CARETECH COMMUNITY SERVICES LIMITED,Adult Social Care,Adults,Residential Home Long Stay Fees,16/06/2023,"6,766.50"
5495363,CARETECH COMMUNITY SERVICES LIMITED,Adult Social Care,Adults,Residential Home Long Stay Fees,16/06/2023,"7,287.00"
5495365,CARETECH COMMUNITY SERVICES LIMITED,Adult Social Care,Adults,Residential Home Long Stay Fees,16/06/2023,"4,164.00"
5495366,HARDSCAPE PRODUCTS LTD,Engineers Client,Director of Place,Highway Construction,27/04/2023,"29,335.16"
5495369,MIDA SIGN SERVICES UK,(blank),(blank),Printing And Stationery,06/04/2023,"1,637.50"
5495371,CARETECH COMMUNITY SERVICES LIMITED,Adult Social Care,Adults,Residential Home Long Stay Fees,16/06/2023,"5,725.50"
5495374,CARETECH COMMUNITY SERVICES LIMITED,Adult Social Care,Adults,Residential Home Long Stay Fees,16/06/2023,"2,506.97"
5495377,CARETECH COMMUNITY SERVICES LIMITED,Adult Social Care,Adults,Residential Home Long Stay Fees,16/06/2023,"2,316.30"
5495378,CARETECH COMMUNITY SERVICES LIMITED,Adult Social Care,Adults,Residential Home Long Stay Fees,16/06/2023,"5,725.50"
5495381,CARETECH COMMUNITY SERVICES LIMITED,Adult Social Care,Adults,Residential Home Long Stay Fees,16/06/2023,"5,725.50"
5495383,Kibble Education and Care Centre,Childrens Services,Children's Services,Childrens Homes Outside Local Authority Fees,28/04/2023,"28,551.00"
5495384,CARETECH COMMUNITY SERVICES LIMITED,Adult Social Care,Adults,Residential Home Long Stay Fees,16/06/2023,"3,123.00"
5495388,Hiraeth Services Ltd trading as Cope Community,Childrens Services,Children's Services,Therapy Costs,28/04/2023,"1,479.00"
5495390,MHR International UK Limited,People and Workforce Development,Governance,Labour Costs IT Services,28/04/2023,"8,862.25"
5495392,Redacted Supplier,Childrens Services,Children's Services,Childrens Homes Outside Local Authority Fees,28/04/2023,"15,771.33"
5495394,Redacted Supplier,(blank),(blank),Professional Services,28/04/2023,675
5495395,PARALLEL PARENTS,Childrens Services,Children's Services,Foster Carer Agency Fees,28/04/2023,"3,431.70"
5495396,PARALLEL PARENTS,Childrens Services,Children's Services,Foster Carer Agency Fees,28/04/2023,"3,414.34"
5495397,PARALLEL PARENTS,Childrens Services,Children's Services,Foster Carer Agency Fees,28/04/2023,"3,039.55"
5495398,MHR International UK Limited,People and Workforce Development,Governance,Labour Costs IT Services,28/04/2023,"24,497.50"
5495401,PARALLEL PARENTS,Childrens Services,Children's Services,Foster Carer Agency Fees,28/04/2023,"4,339.69"
5495405,VISION FOR EDUCATION LIMITED,Education,Children's Services,Independent School Fees,02/05/2023,854.44
5495406,PARALLEL PARENTS,Childrens Services,Children's Services,Foster Carer Agency Fees,28/04/2023,"2,883.93"
5495407,PARALLEL PARENTS,Childrens Services,Children's Services,Foster Carer Agency Fees,28/04/2023,"3,908.48"
5495408,PARALLEL PARENTS,Childrens Services,Children's Services,Foster Carer Agency Fees,28/04/2023,"3,145.57"
5495409,VISION FOR EDUCATION LIMITED,Education,Children's Services,Independent School Fees,04/05/2023,"1,437.96"
5495410,PARALLEL PARENTS,Childrens Services,Children's Services,Foster Carer Agency Fees,28/04/2023,"4,030.00"
5495411,PARALLEL PARENTS,Childrens Services,Children's Services,Foster Carer Agency Fees,28/04/2023,"3,807.42"
5495412,PARALLEL PARENTS,Childrens Services,Children's Services,Foster Carer Agency Fees,28/04/2023,"3,337.52"
5495413,PARALLEL PARENTS,Childrens Services,Children's Services,Foster Carer Agency Fees,28/04/2023,"3,807.42"
5495414,PARALLEL PARENTS,Childrens Services,Children's Services,Foster Carer Agency Fees,28/04/2023,"4,030.00"
5495415,PARALLEL PARENTS,Childrens Services,Children's Services,Foster Carer Agency Fees,28/04/2023,"3,615.22"
5495417,PARALLEL PARENTS,Childrens Services,Children's Services,Foster Carer Agency Fees,28/04/2023,"3,419.92"
5495418,PARALLEL PARENTS,Childrens Services,Children's Services,Foster Carer Agency Fees,04/05/2023,"3,961.50"
5495419,PARALLEL PARENTS,Childrens Services,Children's Services,Foster Carer Agency Fees,28/04/2023,"3,419.92"
5495420,TRANSPORT FOR GREATER MANCHESTER,(blank),(blank),Engineers -External,27/04/2023,"23,865.10"
5495429,VISION FOR EDUCATION LIMITED,Education,Children's Services,Independent School Fees,04/05/2023,"1,417.12"
5495430,VISION FOR EDUCATION LIMITED,Education,Children's Services,Independent School Fees,04/05/2023,"2,042.32"
5495432,VISION FOR EDUCATION LIMITED,Education,Children's Services,Independent School Fees,04/05/2023,"1,688.04"
5495436,INSPIREDSPACES TAMESIDE LTD,Asset & Investment Partnership Management,Growth,PFI FM Fees and Insurance Costs,13/04/2023,"6,088.95"
5495437,Redacted Supplier,Operations and Neighbourhoods,Operations and Neighbourhoods,Professional Entertainment Services,28/04/2023,562.5
5495438,Identity Care Housing Ltd,Adult Social Care,Adults,Residential Home Long Stay Fees,28/04/2023,"19,317.34"
5495439,2 BOARDS AND A PASSION C.I.C.,(blank),(blank),Professional Services,06/04/2023,"5,047.00"
5495440,Bloom Procurement Services Limited,Place,Growth,Professional Services,14/04/2023,"5,000.00"
5495441,GRANT THORNTON UK LLP,Finance,Finance & IT,Professional Services,28/04/2023,"2,500.00"
5495443,Bloom Procurement Services Limited,Place,Growth,Professional Services,14/04/2023,"40,137.00"
5495446,Bloom Procurement Services Limited,Place,Growth,Professional Services,14/04/2023,"31,044.77"
5495450,APS Group,Operations and Neighbourhoods,Operations and Neighbourhoods,Professional Medical Services,28/04/2023,953.92
5495452,The Mount Guest House Limited,(blank),(blank),Chief/Ground Rent,27/04/2023,"8,535.00"
5495453,iCare Solutions,Adult Social Care,Adults,Homecare Fees,28/04/2023,"15,777.63"
5495455,Imail Comms Limited,Exchequer,Governance,Printing And Stationery,28/04/2023,"4,554.82"
5495457,Northern Community Pathways Limited,Childrens Services,Children's Services,Living With Formal Support,27/04/2023,"3,244.00"
5495461,Imail Comms Limited,Exchequer,Governance,Printing And Stationery,28/04/2023,"6,596.82"
5495462,Redacted Supplier,Education,Children's Services,Professional Services,27/04/2023,"2,750.00"
5495463,RedQuadrant Ltd,Hosted Services,Hosted Services,Professional Consultancy Services,28/04/2023,"2,656.25"
5495465,OCTAGON CARE LTD,Childrens Services,Children's Services,Childrens Homes Outside Local Authority Fees,25/05/2023,"42,285.71"
5495469,KB Extruders Ltd,Operations and Neighbourhoods,Operations and Neighbourhoods,General Materials,27/04/2023,"2,073.80"
5495470,Imail Comms Limited,Exchequer,Governance,Printing And Stationery,28/04/2023,"62,377.10"
5495473,The Veterans Food Co,Operations and Neighbourhoods,Operations and Neighbourhoods,Project Costs,28/04/2023,"1,523.00"
5495475,The Veterans Food Co,Operations and Neighbourhoods,Operations and Neighbourhoods,Project Costs,28/04/2023,840
5495479,ABL HEALTH,Childrens Services,Children's Services,Homecare Fees,02/05/2023,868
5495480,Core Care Global Ltd t/a Vivid Care,(blank),(blank),Minor Works - Building,28/04/2023,"8,475.00"
5495481,Northern Community Pathways Limited,Childrens Services,Children's Services,Living With Formal Support,27/04/2023,"3,244.00"
5495482,NC Healthcare Limited,Childrens Services,Children's Services,Professional Services,27/04/2023,792.12
5495484,TRANSPORT FOR GREATER MANCHESTER,Engineers Client,Director of Place,Engineers -External,27/04/2023,"1,158.00"
5495486,TRANSPORT FOR GREATER MANCHESTER,Engineers Client,Director of Place,Survey/Surveyors Fees,27/04/2023,949.69
5495488,Northern Community Pathways Limited,Childrens Services,Children's Services,Living With Formal Support,27/04/2023,"3,244.00"
5495489,Precision Resource Group Ltd t/a Panoramic Associates,Education,Children's Services,Agency Staff,28/04/2023,"2,350.00"
5495490,Viva Minibus LTD,Childrens Services,Children's Services,Hired Transport,06/04/2023,"2,340.00"
5495495,DIRECT CARE (TAMESIDE) LTD,Adult Social Care,Adults,Homecare Fees,06/04/2023,"39,948.99"
5495497,Cathmor,Childrens Services,Children's Services,Living With Formal Support,27/04/2023,"5,956.34"
5495498,Strategy for Change,Population Health,Population Health,Professional Services,27/04/2023,"2,400.00"
5495499,Cathmor,Childrens Services,Children's Services,Living With Formal Support,27/04/2023,"3,433.67"
5495501,Cathmor,(blank),(blank),Living With Formal Support,27/04/2023,"4,995.64"
5495501,Cathmor,(blank),(blank),Semi independent - Weekly Living Allowances,27/04/2023,226.72
5495502,Constellia Public Ltd,Place,Growth,Professional Services,28/04/2023,"26,302.08"
5495504,Redacted Supplier,Education,Children's Services,Professional Services,27/04/2023,"1,100.00"
5495505,Constellia Public Ltd,Place,Growth,Professional Consultancy Services,28/04/2023,"20,000.00"
5495506,The Mount Guest House Limited,(blank),(blank),Chief/Ground Rent,27/04/2023,"10,330.00"
5495507,The Mount Guest House Limited,(blank),(blank),Chief/Ground Rent,27/04/2023,"9,740.00"
5495508,Constellia Public Ltd,Place,Growth,Professional Consultancy Services,27/04/2023,"7,000.00"
5495509,WILDE CONSULTING ENGINEERS,Engineers Client,Director of Place,Engineers -External,26/04/2023,"2,535.75"
5495510,Redacted Supplier,Childrens Services,Children's Services,Childrens Homes Outside Local Authority Fees,28/04/2023,"19,928.66"
5495512,National Youth Advocacy Service,Childrens Services,Children's Services,Professional Services,28/04/2023,"7,500.00"
5495513,Redacted Supplier,Childrens Services,Children's Services,Childrens Homes Outside Local Authority Fees,02/05/2023,"19,928.66"
5495514,Redacted Supplier,Adult Social Care,Adults,Homecare Fees,28/04/2023,"4,095.72"
5495515,Redacted Supplier,Childrens Services,Children's Services,Living With Formal Support,28/04/2023,"4,139.74"
5495516,Forever Manchester Trading Limited,Hosted Services,Hosted Services,Professional Consultancy Services,28/04/2023,"4,952.00"
5495519,THREE CIRCLES FOSTERING LTD,Childrens Services,Children's Services,Foster Carer Agency Fees,28/04/2023,"5,301.00"
5495521,CITY CARE SOLUTIONS LTD,Adult Social Care,Adults,Homecare Fees,19/05/2023,"3,599.20"
5495523,Headsets4Business Limited,Digital Tameside,Finance & IT,IT Equipment,06/04/2023,"9,125.00"
5495526,PERSON CENTRED CARE SERVICES LIMITED,Adult Social Care,Adults,Homecare Fees,21/04/2023,"6,807.04"
5495528,Care Today (Childrens Service) Limited,Childrens Services,Children's Services,Childrens Homes Outside Local Authority Fees,28/04/2023,"18,724.62"
5495530,K P DODD CONSTRUCTION LTD,Housing,Director of Place,Minor Works - Building,28/04/2023,"1,500.00"
5495532,Redacted Supplier,Operations and Neighbourhoods,Operations and Neighbourhoods,Professional Entertainment Services,28/04/2023,"1,400.00"
5495534,CITY LIFT SERVICES (NW) LTD,Adult Social Care,Adults,General Equipment Repair & Maintenance,28/04/2023,"1,450.00"
5495537,MASSEY & HARRIS LTD,Operations and Neighbourhoods,Operations and Neighbourhoods,General Materials,28/04/2023,"7,990.00"
5495539,K P DODD CONSTRUCTION LTD,Housing,Director of Place,Minor Works - Building,28/04/2023,580
5495540,HOME-START HOST,(blank),(blank),Professional Services,14/04/2023,"25,744.00"
5495542,The Networking People (TNP) Ltd,Digital Tameside,Finance & IT,Computer Hardware Maintenance Costs,27/04/2023,"77,441.73"
5495543,RHOMBUS CARE GROUP LIMITED,Adult Social Care,Adults,Homecare Fees,14/06/2023,"39,223.50"
5495546,Esteem Care Manchester Ltd,Adult Social Care,Adults,Homecare Fees,04/04/2023,"11,379.78"
5495548,Redacted Supplier,Education,Children's Services,Independent School Fees,27/04/2023,916.66
5495551,K Cotterill Transport Limited,Education,Children's Services,Furniture Removal Fees,27/04/2023,510
5495553,MASSEY & HARRIS LTD,(blank),(blank),General Materials,28/04/2023,"9,658.00"
5495554,MASSEY & HARRIS LTD,Operations and Neighbourhoods,Operations and Neighbourhoods,General Equipment Repair & Maintenance,27/04/2023,"1,010.00"
5495556,BLACK & WHITE PROMOTIONAL PRINT SERVICES,(blank),(blank),Printing And Stationery,06/04/2023,925
5495557,"TAMESIDE, OLDHAM AND GLOSSOP MIND",Adult Social Care,Adults,Professional Services,20/04/2023,"12,500.00"
5495558,"TAMESIDE, OLDHAM AND GLOSSOP MIND",Childrens Services,Children's Services,Training Course Costs,18/04/2023,"2,640.00"
5495561,Redacted Supplier,(blank),(blank),External Secondments,11/04/2023,"8,703.68"
5495562,438 MARKETING LIMITED,Place,Growth,"Marketing, Publicity and Recruitment",27/04/2023,"8,400.00"
5495564,Redacted Supplier,Education,Children's Services,Other Local Authorities Fees,28/04/2023,"4,303.00"
5495566,Redacted Supplier,Childrens Services,Children's Services,Childrens Homes Outside Local Authority Fees,28/04/2023,"11,645.00"
5495575,GLASDON UK LTD,Operations and Neighbourhoods,Operations and Neighbourhoods,General Materials,28/04/2023,701.41
5495579,Cromwood Housing Ltd,(blank),(blank),#N/A,05/04/2023,"3,805.26"
5495580,Cromwood Housing Ltd,(blank),(blank),#N/A,05/04/2023,"104,490.63"
5495581,Cromwood Housing Ltd,(blank),(blank),#N/A,05/04/2023,"7,071.90"
5495583,Cromwood Housing Ltd,(blank),(blank),#N/A,05/04/2023,"16,383.50"
5495585,Richmond Fellowship,Adult Social Care,Adults,Residential Home Long Stay Fees,28/04/2023,"3,675.00"
5495586,Richmond Fellowship,Adult Social Care,Adults,Residential Home Long Stay Fees,28/04/2023,"3,675.00"
5495587,Supporting Futures LTD,Childrens Services,Children's Services,Childrens Homes Outside Local Authority Fees,28/04/2023,"24,556.34"
5495589,North West Training Academy Ltd,Operations and Neighbourhoods,Operations and Neighbourhoods,Training Course Costs,13/04/2023,780
5495590,APOLLO HOME HEALTHCARE LTD,Childrens Services,Children's Services,Homecare Fees,28/04/2023,507.12
5495592,Newsquest Ltd T/A LOCALiQ,Childrens Services,Children's Services,"Marketing, Publicity and Recruitment",28/04/2023,"1,750.00"
5495593,Newsquest Ltd T/A LOCALiQ,Childrens Services,Children's Services,"Marketing, Publicity and Recruitment",28/04/2023,"1,750.00"
5495594,Access UK Ltd,Adult Social Care,Adults,Computer Software Maintenance Costs,20/04/2023,"3,041.36"
5495595,THREE CIRCLES FOSTERING LTD,Childrens Services,Children's Services,Foster Carer Agency Fees,28/04/2023,"3,534.00"
5495596,Redacted Supplier,Exchequer,Governance,Postages,20/04/2023,"1,185.06"
5495597,MANLEC ELECTRICAL(MANCHESTER) LTD,Housing,Director of Place,Minor Works - Building,06/04/2023,532.1
5495600,MANLEC ELECTRICAL(MANCHESTER) LTD,Housing,Director of Place,Minor Works - Building,06/04/2023,580.8
5495601,Great Minds Together Ltd,Childrens Services,Children's Services,Childrens Homes Outside Local Authority Fees,05/04/2023,"84,400.00"
5495602,Olive Branch Fostering LTD,Childrens Services,Children's Services,Foster Carer Agency Fees,28/04/2023,976.07
5495603,Olive Branch Fostering LTD,Childrens Services,Children's Services,Foster Carer Agency Fees,28/04/2023,"3,064.40"
5495605,Olive Branch Fostering LTD,Childrens Services,Children's Services,Foster Carer Agency Fees,28/04/2023,"3,095.35"
